Authority,URI,Effective Date,Service/Dir,Supplier,Supplier ID,Payment Date,Net Amount,Irrecoverable VAT,Purpose of Spend
Borough Council of Kings Lynn and West Norfolk,E07000146,30/06/18,Precepts Of Parish Councils   ,BURNHAM THORPE PARISH COUNCIL           ,100251      ,12-Apr-18,5787.36,0,Parishes                      
Borough Council of Kings Lynn and West Norfolk,E07000146,30/06/18,Precepts Of Parish Councils   ,CHURCHFIELD & PLAWFIELD IDB             ,100326      ,09-Apr-18,8654.5,0,Drainage Boards               
Borough Council of Kings Lynn and West Norfolk,E07000146,30/06/18,Special Expenses              ,HUNSTANTON TOWN COUNCIL                 ,100794      ,12-Apr-18,3261,0,Special Expenses Credit       
Borough Council of Kings Lynn and West Norfolk,E07000146,30/06/18,Precepts Of Parish Councils   ,HUNSTANTON TOWN COUNCIL                 ,100794      ,12-Apr-18,135000,0,Parishes                      
Borough Council of Kings Lynn and West Norfolk,E07000146,30/06/18,St Johns Business Park        ,LYNN CARPET CENTRE                      ,100976      ,07-Jun-18,1136,0,Repairs - Services Charges    
Borough Council of Kings Lynn and West Norfolk,E07000146,30/06/18,St Johns Business Park        ,LYNN CARPET CENTRE                      ,100976      ,07-Jun-18,3788.98,0,Repairs - Services Charges    
Borough Council of Kings Lynn and West Norfolk,E07000146,30/06/18,Precepts Of Parish Councils   ,STOKE FERRY PARISH COUNCIL              ,101485      ,12-Apr-18,16249,0,Parishes                      
Borough Council of Kings Lynn and West Norfolk,E07000146,30/06/18,Precepts Of Parish Councils   ,WORMEGAY PARISH COUNCIL                 ,101671      ,12-Apr-18,6100,0,Parishes                      
Borough Council of Kings Lynn and West Norfolk,E07000146,30/06/18,Precepts Of Parish Councils   ,WEST WALTON PARISH COUNCIL              ,101641      ,12-Apr-18,21480,0,Parishes                      
Borough Council of Kings Lynn and West Norfolk,E07000146,30/06/18,Waterfront / Regen Projects   ,VALUATION OFFICE AGENCY                 ,104974      ,24-May-18,950,0,External Fees/Consultancy     
Borough Council of Kings Lynn and West Norfolk,E07000146,30/06/18,Resort Seafront               ,C H S AMUSEMENTS LTD                    ,115391      ,02-Jul-18,1575,0,Miscellaneous Rents           
Borough Council of Kings Lynn and West Norfolk,E07000146,30/06/18,Broad St conversion to Houses ,INGLETON WOOD LLP                       ,119162      ,28-Jun-18,1000,0,Professional Fees             
Borough Council of Kings Lynn and West Norfolk,E07000146,30/06/18,Custom House & TIC            ,R GAWN 1990 ACCUMULATION&MAINT SETT'T   ,121238      ,21-Jun-18,1280,0,Rent                          
Borough Council of Kings Lynn and West Norfolk,E07000146,30/06/18,Precepts Of Parish Councils   ,NORFOLK RIVERS IDB                      ,125876      ,30-Apr-18,9295,0,Drainage Boards               
Borough Council of Kings Lynn and West Norfolk,E07000146,30/06/18,31006                         ,KEN ELENER ARCHITECTURAL DESIGN         ,132284      ,07-Jun-18,850,0,Agency                        
Borough Council of Kings Lynn and West Norfolk,E07000146,30/06/18,Care & Repair - Fenland Agency,KEN ELENER ARCHITECTURAL DESIGN         ,132284      ,07-Jun-18,850,0,Agency                        
Borough Council of Kings Lynn and West Norfolk,E07000146,30/06/18,Housing Options Programme     ,BRITTONS ESTATE AGENTS LTD              ,133666      ,04-Jun-18,850,0,Homelessness Prevention Fund  
Borough Council of Kings Lynn and West Norfolk,E07000146,30/06/18,Website & social media mktng  ,NEW VISION GROUP LTD                    ,135836      ,17-May-18,1620,0,"DMS licences, data steward    "
Borough Council of Kings Lynn and West Norfolk,E07000146,30/06/18,ICT                           ,THE TECHNOLOGY FORGE LTD                ,136219      ,09-Apr-18,1728,0,Computer Software Maintenance 
Borough Council of Kings Lynn and West Norfolk,E07000146,30/06/18,Nelson Quay Redevelopment     ,AECOM LTD                               ,139739      ,02-Jul-18,24161.62,0,External Fees/Consultancy     
Borough Council of Kings Lynn and West Norfolk,E07000146,30/06/18,Housing Options Programme     ,GENESIS HOUSING ASSOCIATION             ,139043      ,12-Apr-18,3590.4,0,Homelessness Prevention Fund  
Borough Council of Kings Lynn and West Norfolk,E07000146,30/06/18,ICT                           ,SUPREME SURFACING LTD                   ,135993      ,10-May-18,1350,0,Communications                
Borough Council of Kings Lynn and West Norfolk,E07000146,30/06/18,Benefit Administration        ,ACS LIMITED                             ,142128      ,07-Jun-18,500,0,Professional Fees             
Borough Council of Kings Lynn and West Norfolk,E07000146,30/06/18,ICT                           ,NETWORK UTILITIES (SYSTEMS) LTD         ,142753      ,31-May-18,1650.4,0,Computer Software Maintenance 
Borough Council of Kings Lynn and West Norfolk,E07000146,30/06/18,Event 2                       ,I PYCROFT                               ,142761      ,24-May-18,800,0,Professional Fees             
Borough Council of Kings Lynn and West Norfolk,E07000146,30/06/18,Resort Trading Operations     ,AMAZE BLIND & CURTAINS LTD              ,134692      ,09-Apr-18,2907,0,General Repairs               
Borough Council of Kings Lynn and West Norfolk,E07000146,30/06/18,Parking Operations - Borough  ,GLORY GLOBAL SOLUTIONS INTL LIMITED     ,142442      ,02-Jul-18,2700,0,Tools And Equipment           
Borough Council of Kings Lynn and West Norfolk,E07000146,30/06/18,Downham Market                ,LEICESTERSHIRE COUNTY COUNCIL           ,142448      ,24-May-18,674,0,Downham Mkt mini guide        
Borough Council of Kings Lynn and West Norfolk,E07000146,30/06/18,ICT                           ,GO COMMUNICATIONS SYSTEMS LTD           ,142616      ,07-Jun-18,765,0,Communications                
Borough Council of Kings Lynn and West Norfolk,E07000146,30/06/18,Cultural & Other Activities   ,BRITISH DESTINATIONS                    ,138081      ,14-May-18,1550,0,Subscriptions                 
Borough Council of Kings Lynn and West Norfolk,E07000146,30/06/18,Special Expenses              ,DOWNHAM MARKET TOWN COUNCIL             ,127774      ,12-Apr-18,7689,0,Special Expenses Credit       
Borough Council of Kings Lynn and West Norfolk,E07000146,30/06/18,Precepts Of Parish Councils   ,DOWNHAM MARKET TOWN COUNCIL             ,127774      ,12-Apr-18,339897.33,0,Parishes                      
Borough Council of Kings Lynn and West Norfolk,E07000146,30/06/18,Precepts Of Parish Councils   ,DENVER PARISH COUNCIL                   ,100456      ,12-Apr-18,16109,0,Parishes                      
Borough Council of Kings Lynn and West Norfolk,E07000146,30/06/18,ICT                           ,XPRESS SOFTWARE SOLUTIONS LTD           ,126446      ,26-Apr-18,6910.72,0,Computer Software Maintenance 
Borough Council of Kings Lynn and West Norfolk,E07000146,30/06/18,ICT                           ,XPRESS SOFTWARE SOLUTIONS LTD           ,126446      ,26-Apr-18,2858.31,0,Computer Software Maintenance 
Borough Council of Kings Lynn and West Norfolk,E07000146,30/06/18,ICT                           ,XPRESS SOFTWARE SOLUTIONS LTD           ,126446      ,26-Apr-18,505,0,Computer Software Maintenance 
Borough Council of Kings Lynn and West Norfolk,E07000146,30/06/18,Precepts Of Parish Councils   ,OUTWELL PARISH COUNCIL                  ,101202      ,12-Apr-18,14630,0,Parishes                      
Borough Council of Kings Lynn and West Norfolk,E07000146,30/06/18,Custom House & TIC            ,KINGS LYNN TOWN GUIDES                  ,120679      ,14-Jun-18,626,0,Sale Of Goods                 
Borough Council of Kings Lynn and West Norfolk,E07000146,30/06/18,General Properties            ,NEVILLE GODFREY LTD                     ,101117      ,26-Apr-18,595,0,General Repairs               
Borough Council of Kings Lynn and West Norfolk,E07000146,30/06/18,12301                         ,NEVILLE GODFREY LTD                     ,101117      ,26-Apr-18,595,0,General Repairs               
Borough Council of Kings Lynn and West Norfolk,E07000146,30/06/18,Event 2                       ,MED PTS AMBULANCE SERVICES              ,143090      ,04-Jun-18,560,0,Professional Fees             
Borough Council of Kings Lynn and West Norfolk,E07000146,30/06/18,Air Quality                   ,NPL MANAGEMENT LTD                      ,143144      ,14-Jun-18,650,0,Servicing                     
Borough Council of Kings Lynn and West Norfolk,E07000146,30/06/18,Handyperson Scheme Kings Lynn ,A SMITH CONTRACTORS                     ,115351      ,26-Apr-18,545,0,Contractor Payments           
Borough Council of Kings Lynn and West Norfolk,E07000146,30/06/18,Handyperson Scheme Kings Lynn ,A SMITH CONTRACTORS                     ,115351      ,07-May-18,585,0,Contractor Payments           
Borough Council of Kings Lynn and West Norfolk,E07000146,30/06/18,Disabled Facilties Grant      ,A SMITH CONTRACTORS                     ,115351      ,21-Jun-18,1181.83,0,Works                         
Borough Council of Kings Lynn and West Norfolk,E07000146,30/06/18,KL Arts Centre                ,ST CLEMENTS HIGH SCHOOL                 ,116337      ,18-Jun-18,547.5,0,Hirings Ticketed              
Borough Council of Kings Lynn and West Norfolk,E07000146,30/06/18,Precepts Of Parish Councils   ,SOUTHERY & DISTRICT IDB                 ,101451      ,30-Apr-18,99938.16,0,Drainage Boards               
Borough Council of Kings Lynn and West Norfolk,E07000146,30/06/18,CCTV                          ,UK POWER NETWORKS (OPERATIONS) LTD      ,114412      ,10-May-18,640,0,Maint Plant & Equip           
Borough Council of Kings Lynn and West Norfolk,E07000146,30/06/18,Learning Catalyst             ,HEACHAM INFANT & NURSERY SCHOOL         ,125578      ,03-May-18,1917,0,Partnerships                  
Borough Council of Kings Lynn and West Norfolk,E07000146,30/06/18,Event 2                       ,N P S S SECURITY SERVICES               ,144185      ,18-Jun-18,1320.4,0,Professional Fees             
Borough Council of Kings Lynn and West Norfolk,E07000146,30/06/18,Precepts Of Parish Councils   ,BARTON BENDISH PARISH COUNCIL           ,100157      ,12-Apr-18,4647,0,Parishes                      
Borough Council of Kings Lynn and West Norfolk,E07000146,30/06/18,Precepts Of Parish Councils   ,SHOULDHAM PARISH COUNCIL                ,101428      ,12-Apr-18,12913,0,Parishes                      
Borough Council of Kings Lynn and West Norfolk,E07000146,30/06/18,Mayor Making                  ,WEST NORFOLKS FLYING CHEF               ,101803      ,28-May-18,938.5,0,Hospitality                   
Borough Council of Kings Lynn and West Norfolk,E07000146,30/06/18,Equipment                     ,ANGLIA MOWERS                           ,143745      ,24-May-18,1428.1,0,Materials                     
Borough Council of Kings Lynn and West Norfolk,E07000146,30/06/18,Supplier Holding Account      ,PAUL JOHNSON MTR SERVICES LTD           ,104221      ,19-Apr-18,3951.8,0,Materials                     
Borough Council of Kings Lynn and West Norfolk,E07000146,30/06/18,Nora Phase 4                  ,E C BENTON T/A GOLDEN TREE SURGEONS     ,145155      ,12-Apr-18,12600,0,Works                         
Borough Council of Kings Lynn and West Norfolk,E07000146,30/06/18,Town Centre Manager           ,PUBLIC POLICY EXCHANGE LIMITED          ,142936      ,14-Jun-18,530,0,Operational Costs - Kings Lynn
Borough Council of Kings Lynn and West Norfolk,E07000146,30/06/18,Nelson Quay Redevelopment     ,URBAN DELIVERY LTD                      ,145443      ,28-Jun-18,5449.4,0,External Fees/Consultancy     
Borough Council of Kings Lynn and West Norfolk,E07000146,30/06/18,Neigbourhood Planning Grant   ,MOTT MACDONALD LIMITED                  ,101083      ,26-Apr-18,3574.38,0,Fees                          
Borough Council of Kings Lynn and West Norfolk,E07000146,30/06/18,62702                         ,MOTT MACDONALD LIMITED                  ,101083      ,26-Apr-18,3574.38,0,Fees                          
Borough Council of Kings Lynn and West Norfolk,E07000146,30/06/18,NORA                          ,MOTT MACDONALD LIMITED                  ,101083      ,21-Jun-18,541.8,0,External Fees/Consultancy     
Borough Council of Kings Lynn and West Norfolk,E07000146,30/06/18,NORA                          ,MOTT MACDONALD LIMITED                  ,101083      ,21-Jun-18,1195.1,0,External Fees/Consultancy     
Borough Council of Kings Lynn and West Norfolk,E07000146,30/06/18,Sports Grounds North          ,COLLIER TURF CARE LTD                   ,100362      ,25-Jun-18,599.52,0,Materials                     
Borough Council of Kings Lynn and West Norfolk,E07000146,30/06/18,Electricity Direct Recharge Ac,BRITISH GAS BUSINESS                    ,100216      ,14-Jun-18,24501.99,0,Electricity Bulk Billing      
Borough Council of Kings Lynn and West Norfolk,E07000146,30/06/18,Mintlyn Crematorium           ,FACULTATIEVE TECHNOLOGIESLTD            ,125759      ,16-Apr-18,906.3,0,Trade Waste                   
Borough Council of Kings Lynn and West Norfolk,E07000146,30/06/18,Mintlyn Crematorium           ,FACULTATIEVE TECHNOLOGIESLTD            ,125759      ,31-May-18,892.1,0,Trade Waste                   
Borough Council of Kings Lynn and West Norfolk,E07000146,30/06/18,Care & Repair - Home Impro Agy,SEVEN RESOURCING LTD                    ,145043      ,03-May-18,558.91,0,Agency Staff                  
Borough Council of Kings Lynn and West Norfolk,E07000146,30/06/18,Lease Car Revenue Account     ,COMMERCIAL SERVICES KENT LTD            ,146328      ,17-May-18,2349.86,0,Leasing                       
Borough Council of Kings Lynn and West Norfolk,E07000146,30/06/18,Lease Car Revenue Account     ,COMMERCIAL SERVICES KENT LTD            ,146328      ,17-May-18,3121.94,0,Leasing                       
Borough Council of Kings Lynn and West Norfolk,E07000146,30/06/18,Adapt Grant                   ,GASWISE SERVICES LTD.                   ,100677      ,12-Apr-18,2753.68,0,Works                         
Borough Council of Kings Lynn and West Norfolk,E07000146,30/06/18,Adapt Grant                   ,GASWISE SERVICES LTD.                   ,100677      ,10-May-18,3971.91,0,Works                         
Borough Council of Kings Lynn and West Norfolk,E07000146,30/06/18,Postage Services Kings Court  ,POSTAGE BY PHONE                        ,101299      ,11-Jun-18,1000,0,Postages                      
Borough Council of Kings Lynn and West Norfolk,E07000146,30/06/18,Adapt Grant                   ,FREEBRIDGE COMMUNITY HOUSING            ,127987      ,09-Apr-18,1114.08,0,Works                         
Borough Council of Kings Lynn and West Norfolk,E07000146,30/06/18,Adapt Grant                   ,FREEBRIDGE COMMUNITY HOUSING            ,127987      ,03-May-18,1694.54,0,Works                         
Borough Council of Kings Lynn and West Norfolk,E07000146,30/06/18,Adapt Grant                   ,FREEBRIDGE COMMUNITY HOUSING            ,127987      ,14-Jun-18,3535.39,0,Works                         
Borough Council of Kings Lynn and West Norfolk,E07000146,30/06/18,Grounds Maintenance Equipment ,BARTRAM MOWERS LTD                      ,100158      ,14-Jun-18,119500,0,Equipment/Materials           
Borough Council of Kings Lynn and West Norfolk,E07000146,30/06/18,Telephones                    ,BRITISH TELECOMMUNICATIONS PLC          ,100222      ,21-May-18,1298.5,0,Telephones Recharged          
Borough Council of Kings Lynn and West Norfolk,E07000146,30/06/18,Telephones                    ,BRITISH TELECOMMUNICATIONS PLC          ,100222      ,18-Jun-18,1083.62,0,Broadband Charge              
Borough Council of Kings Lynn and West Norfolk,E07000146,30/06/18,CCTV                          ,FOCUS SECURITY (EAST ANGLIA) LTD        ,136665      ,19-Apr-18,1150,0,Planned Maintenance           
Borough Council of Kings Lynn and West Norfolk,E07000146,30/06/18,BCKLWN Control Account        ,ROSSENDALES LTD                         ,101364      ,19-Apr-18,914.95,0,VAT Input (VAT Only Invoice)  
Borough Council of Kings Lynn and West Norfolk,E07000146,30/06/18,Handyperson Scheme Kings Lynn ,CHAS D ALLFLATT LTD                     ,100315      ,25-Jun-18,892.18,0,Contractor Payments           
Borough Council of Kings Lynn and West Norfolk,E07000146,30/06/18,50302                         ,ADVANCED BUSINESS SOLUTIONS             ,121937      ,26-Apr-18,950,0,IT Developments/Enhancements  
Borough Council of Kings Lynn and West Norfolk,E07000146,30/06/18,Financial Services            ,ADVANCED BUSINESS SOLUTIONS             ,121937      ,26-Apr-18,950,0,IT Developments/Enhancements  
Borough Council of Kings Lynn and West Norfolk,E07000146,30/06/18,ICT                           ,SYSTEMS ON SITE                         ,144268      ,21-Jun-18,2187,0,Computer Software Maintenance 
Borough Council of Kings Lynn and West Norfolk,E07000146,30/06/18,Kings Court Kings Lynn        ,JD COOLING SYSTEMS LTD                  ,119491      ,14-Jun-18,646,0,Maintenance Contracts         
Borough Council of Kings Lynn and West Norfolk,E07000146,30/06/18,Refuse & Recyc Mgmt           ,WHITESPACE WORK SOFTWARE LTD            ,137896      ,03-May-18,8400,0,Computer Equipment            
Borough Council of Kings Lynn and West Norfolk,E07000146,30/06/18,AU05 FAK Massey Ferguson UB   ,THURLOW NUNN STANDEN LTD                ,101547      ,03-May-18,1381.88,0,Materials                     
Borough Council of Kings Lynn and West Norfolk,E07000146,30/06/18,Food Hygiene General          ,IN EQUILIBRIUM                          ,146980      ,11-Jun-18,4348,0,Small Projects                
Borough Council of Kings Lynn and West Norfolk,E07000146,30/06/18,Market Contribution Tesco     ,RAY LINGE MARKET STALLS LTD             ,147166      ,09-Apr-18,1123,0,Works                         
Borough Council of Kings Lynn and West Norfolk,E07000146,30/06/18,westnorfolkwins               ,GATHERWELL LTD                          ,147177      ,19-Apr-18,3000,0,Small Projects                
Borough Council of Kings Lynn and West Norfolk,E07000146,30/06/18,Finance & Resource - Legal Com,NORFOLK COUNTY COUNCIL                  ,101142      ,12-Apr-18,3057.4,0,Commissioning Ext. Legal fees 
Borough Council of Kings Lynn and West Norfolk,E07000146,30/06/18,Greenpark Avenue (Adopted NCC),NORFOLK COUNTY COUNCIL                  ,101142      ,26-Apr-18,4935,0,External Fees/Consultancy     
Borough Council of Kings Lynn and West Norfolk,E07000146,30/06/18,Greenpark Avenue (Adopted NCC),NORFOLK COUNTY COUNCIL                  ,101142      ,26-Apr-18,37220.13,0,Works                         
Borough Council of Kings Lynn and West Norfolk,E07000146,30/06/18,HLF Activities                ,NORFOLK COUNTY COUNCIL                  ,101142      ,30-Apr-18,8436.97,0,Professional Fees             
Borough Council of Kings Lynn and West Norfolk,E07000146,30/06/18,Parking Operations - Borough  ,NORFOLK COUNTY COUNCIL                  ,101142      ,17-May-18,4231.71,0,Winter Maintenance            
Borough Council of Kings Lynn and West Norfolk,E07000146,30/06/18,Equal Opportunities           ,NORFOLK COUNTY COUNCIL                  ,101142      ,28-Jun-18,2325,0,Small Projects                
Borough Council of Kings Lynn and West Norfolk,E07000146,30/06/18,Mintlyn Crematorium           ,CORONA ENERGY RETAIL 4 LTD              ,131838      ,26-Apr-18,3364.12,0,Gas                           
Borough Council of Kings Lynn and West Norfolk,E07000146,30/06/18,Oasis General Account         ,CORONA ENERGY RETAIL 4 LTD              ,131838      ,21-May-18,3201.12,0,Gas                           
Borough Council of Kings Lynn and West Norfolk,E07000146,30/06/18,Disabled Facilties Grant      ,T M BROWNE LTD                          ,131470      ,09-Apr-18,5134.66,0,Works                         
Borough Council of Kings Lynn and West Norfolk,E07000146,30/06/18,ICT                           ,BLUESOURCE INFORMATION LTD              ,147065      ,03-May-18,2850,0,Computer Software Maintenance 
Borough Council of Kings Lynn and West Norfolk,E07000146,30/06/18,50302                         ,HAVAS PEOPLE LIMITED                    ,100966      ,23-Apr-18,547.4,0,Recruitment                   
Borough Council of Kings Lynn and West Norfolk,E07000146,30/06/18,Financial Services            ,HAVAS PEOPLE LIMITED                    ,100966      ,23-Apr-18,547.4,0,Recruitment                   
Borough Council of Kings Lynn and West Norfolk,E07000146,30/06/18,Disabled Facilties Grant      ,STANNAH LIFT SERVICES LTD               ,101479      ,31-May-18,4974,0,Works                         
Borough Council of Kings Lynn and West Norfolk,E07000146,30/06/18,Disabled Facilties Grant      ,STANNAH LIFT SERVICES LTD               ,101479      ,07-Jun-18,2730,0,Works                         
Borough Council of Kings Lynn and West Norfolk,E07000146,30/06/18,Disabled Facilties Grant      ,STANNAH LIFT SERVICES LTD               ,101479      ,25-Jun-18,745,0,Works                         
Borough Council of Kings Lynn and West Norfolk,E07000146,30/06/18,NORA Phase 3                  ,LOVELL PARTNERSHIPS LTD                 ,143432      ,10-May-18,302349,0,Works                         
Borough Council of Kings Lynn and West Norfolk,E07000146,30/06/18,Major Hous: Add Lynnsprt Works,C G GODFREY LIMITED                     ,101717      ,10-May-18,5493.81,0,Works                         
Borough Council of Kings Lynn and West Norfolk,E07000146,30/06/18,General Properties            ,ED JOLLY                                ,147305      ,25-Jun-18,26812.39,0,Miscellaneous                 
Borough Council of Kings Lynn and West Norfolk,E07000146,30/06/18,12301                         ,ED JOLLY                                ,147305      ,25-Jun-18,26812.39,0,Miscellaneous                 
Borough Council of Kings Lynn and West Norfolk,E07000146,30/06/18,CCTV                          ,E AKERS                                 ,100500      ,21-May-18,640,0,Maint Plant & Equip           
Borough Council of Kings Lynn and West Norfolk,E07000146,30/06/18,CCTV                          ,E AKERS                                 ,100500      ,14-Jun-18,1020,0,Maint Plant & Equip           
Borough Council of Kings Lynn and West Norfolk,E07000146,30/06/18,Resort Seafront               ,V & J KNITWEAR LTD                      ,116027      ,28-Jun-18,724.5,0,Clothing/Uniforms             
Borough Council of Kings Lynn and West Norfolk,E07000146,30/06/18,Postage Services Kings Court  ,ROYAL MAIL GROUP LTD                    ,101369      ,19-Apr-18,821.67,0,Postages                      
Borough Council of Kings Lynn and West Norfolk,E07000146,30/06/18,Cost of Collection - CTax     ,ROYAL MAIL GROUP LTD                    ,101369      ,11-Jun-18,1875,0,Postages                      
Borough Council of Kings Lynn and West Norfolk,E07000146,30/06/18,Pub & Tourism internal charges,ROYAL MAIL GROUP LTD                    ,101369      ,11-Jun-18,787,0,Postages Recharged            
Borough Council of Kings Lynn and West Norfolk,E07000146,30/06/18,Disabled Facilties Grant      ,G SMITH CARPENTER & JOINER              ,147210      ,26-Apr-18,6418.53,0,Works                         
Borough Council of Kings Lynn and West Norfolk,E07000146,30/06/18,Event 2                       ,JBGB EVENTS                             ,147227      ,10-May-18,750,0,Professional Fees             
Borough Council of Kings Lynn and West Norfolk,E07000146,30/06/18,Cafe in the Park              ,EDEN FARM HULLEYS LTD                   ,118383      ,25-Jun-18,667.14,0,Purchases - Cafe Ices         
Borough Council of Kings Lynn and West Norfolk,E07000146,30/06/18,Domestic Refuse               ,KIER SERVICES ENVIRONMENTAL             ,141535      ,11-Jun-18,2852.22,0,Contracted Services           
Borough Council of Kings Lynn and West Norfolk,E07000146,30/06/18,Food Waste                    ,KIER SERVICES ENVIRONMENTAL             ,141535      ,11-Jun-18,561.78,0,Contracted Services           
Borough Council of Kings Lynn and West Norfolk,E07000146,30/06/18,Domestic Refuse               ,KIER SERVICES ENVIRONMENTAL             ,141535      ,11-Jun-18,78801.15,0,Contracted Services           
Borough Council of Kings Lynn and West Norfolk,E07000146,30/06/18,Domestic Refuse               ,KIER SERVICES ENVIRONMENTAL             ,141535      ,11-Jun-18,2977.93,0,Contracted Services           
Borough Council of Kings Lynn and West Norfolk,E07000146,30/06/18,Domestic Refuse               ,KIER SERVICES ENVIRONMENTAL             ,141535      ,11-Jun-18,3807.66,0,Clinical & Medical Waste      
Borough Council of Kings Lynn and West Norfolk,E07000146,30/06/18,Dry Box Collection Scheme     ,KIER SERVICES ENVIRONMENTAL             ,141535      ,11-Jun-18,80297.55,0,Contracted Services           
Borough Council of Kings Lynn and West Norfolk,E07000146,30/06/18,Dry Box Collection Scheme     ,KIER SERVICES ENVIRONMENTAL             ,141535      ,11-Jun-18,3021.33,0,Contracted Services           
Borough Council of Kings Lynn and West Norfolk,E07000146,30/06/18,Recycling Composting          ,KIER SERVICES ENVIRONMENTAL             ,141535      ,11-Jun-18,31095.19,0,Contracted Services           
Borough Council of Kings Lynn and West Norfolk,E07000146,30/06/18,Trade Refuse                  ,KIER SERVICES ENVIRONMENTAL             ,141535      ,11-Jun-18,9065.59,0,Contracted Services           
Borough Council of Kings Lynn and West Norfolk,E07000146,30/06/18,Recycling Composting          ,KIER SERVICES ENVIRONMENTAL             ,141535      ,11-Jun-18,15824.59,0,Waste Processing Cost         
Borough Council of Kings Lynn and West Norfolk,E07000146,30/06/18,Food Waste                    ,KIER SERVICES ENVIRONMENTAL             ,141535      ,11-Jun-18,1883.53,0,Contracted Services           
Borough Council of Kings Lynn and West Norfolk,E07000146,30/06/18,Food Waste                    ,KIER SERVICES ENVIRONMENTAL             ,141535      ,11-Jun-18,27367.84,0,Contracted Services           
Borough Council of Kings Lynn and West Norfolk,E07000146,30/06/18,Food Waste                    ,KIER SERVICES ENVIRONMENTAL             ,141535      ,11-Jun-18,23018.6,0,Waste Processing Cost         
Borough Council of Kings Lynn and West Norfolk,E07000146,30/06/18,Recycling Commercial          ,KIER SERVICES ENVIRONMENTAL             ,141535      ,11-Jun-18,760.94,0,Contracted Services           
Borough Council of Kings Lynn and West Norfolk,E07000146,30/06/18,Community Infrastructure Levy ,BRANCASTER PARISH COUNCIL               ,100209      ,26-Apr-18,756,0,Payment to Parishes           
Borough Council of Kings Lynn and West Norfolk,E07000146,30/06/18,Refuse & Recyc Mgmt           ,BROADLAND DISTRICT COUNCIL              ,100225      ,21-May-18,10000,0,Professional Fees             
Borough Council of Kings Lynn and West Norfolk,E07000146,30/06/18,Precepts Of Parish Councils   ,DOWNHAM & STOW BARDOLPH IDB             ,100480      ,30-Apr-18,28434.29,0,Drainage Boards               
Borough Council of Kings Lynn and West Norfolk,E07000146,30/06/18,Hunstanton Parks for People   ,KINGS LYNN GLASS& TRIMMING LTD          ,100881      ,23-Apr-18,2080,0,Equipment/Materials           
Borough Council of Kings Lynn and West Norfolk,E07000146,30/06/18,Parking Operations - Borough  ,LE STRANGE ESTATE                       ,100920      ,09-Apr-18,22500,0,Rent                          
Borough Council of Kings Lynn and West Norfolk,E07000146,30/06/18,Resort Trading Operations     ,LE STRANGE ESTATE                       ,100920      ,09-Apr-18,3250,0,Rent                          
Borough Council of Kings Lynn and West Norfolk,E07000146,30/06/18,Precepts Of Parish Councils   ,WALPOLE CROSS KEYS PARISH CNCL          ,101608      ,12-Apr-18,8115,0,Parishes                      
Borough Council of Kings Lynn and West Norfolk,E07000146,30/06/18,Major Planning Appeals        ,BENNETT HOMES PLC                       ,103956      ,16-Apr-18,3500,0,Consultants Fees              
Borough Council of Kings Lynn and West Norfolk,E07000146,30/06/18,Community Transport           ,S N KINGSTON MARINE SERVICES            ,112276      ,09-Apr-18,5150,0,Transport Subsidies           
Borough Council of Kings Lynn and West Norfolk,E07000146,30/06/18,Closed Churchyards            ,APPLETON & FLOWERS LTD                  ,118637      ,30-Apr-18,900,0,General Repairs               
Borough Council of Kings Lynn and West Norfolk,E07000146,30/06/18,Broad St conversion to Houses ,INGLETON WOOD LLP                       ,119162      ,26-Apr-18,1000,0,Professional Fees             
Borough Council of Kings Lynn and West Norfolk,E07000146,30/06/18,Street Sweeping               ,ASCO UK LTD                             ,119487      ,04-Jun-18,570,0,Hazardous Waste Disposal      
Borough Council of Kings Lynn and West Norfolk,E07000146,30/06/18,Nursery                       ,RUDY RAES BLOEMZADEN N.V.               ,121484      ,19-Apr-18,3791.43,0,Materials                     
Borough Council of Kings Lynn and West Norfolk,E07000146,30/06/18,Discover KL Distribution      ,TAKE ONE MEDIA LTD                      ,121327      ,12-Apr-18,2341.5,0,Discover KL Distribution      
Borough Council of Kings Lynn and West Norfolk,E07000146,30/06/18,Brown Bins/Compost            ,SSI SCHAEFER LIMITED                    ,123743      ,02-Jul-18,13395.6,0,Equipment/Materials           
Borough Council of Kings Lynn and West Norfolk,E07000146,30/06/18,Kings Court Kings Lynn        ,UPS SYSTEMS PLC                         ,133035      ,17-May-18,1260,0,Maintenance Contracts         
Borough Council of Kings Lynn and West Norfolk,E07000146,30/06/18,Careline                      ,SUPRA UK LTD                            ,134960      ,09-Apr-18,1698,0,Items Purchased For Resale    
Borough Council of Kings Lynn and West Norfolk,E07000146,30/06/18,King's Court - DWP Specific   ,DREAMCLEAN                              ,133212      ,16-Apr-18,595,0,Works                         
Borough Council of Kings Lynn and West Norfolk,E07000146,30/06/18,Mintlyn Crematorium           ,ZAGOTA CREATION LTD                     ,133357      ,10-May-18,550,0,Maintenance Contracts         
Borough Council of Kings Lynn and West Norfolk,E07000146,30/06/18,Trade Refuse                  ,UK CONTAINER MAINTENANCE LTD            ,137174      ,19-Apr-18,1430.66,0,General Repairs               
Borough Council of Kings Lynn and West Norfolk,E07000146,30/06/18,Refuse - Black Bins           ,UK CONTAINER MAINTENANCE LTD            ,137174      ,07-May-18,2101.3,0,Equipment/Materials           
Borough Council of Kings Lynn and West Norfolk,E07000146,30/06/18,Precepts Of Parish Councils   ,SNETTISHAM PARISH COUNCIL               ,101445      ,12-Apr-18,77500,0,Parishes                      
Borough Council of Kings Lynn and West Norfolk,E07000146,30/06/18,Special Expenses              ,SNETTISHAM PARISH COUNCIL               ,101445      ,12-Apr-18,1682,0,Special Expenses Credit       
Borough Council of Kings Lynn and West Norfolk,E07000146,30/06/18,PURFLEET TRUST                ,THE PURFLEET TRUST                      ,102360      ,28-May-18,10000,0,Donations                     
Borough Council of Kings Lynn and West Norfolk,E07000146,30/06/18,Precepts Of Parish Councils   ,FINCHAM PARISH COUNCIL                  ,100634      ,12-Apr-18,7725,0,Parishes                      
Borough Council of Kings Lynn and West Norfolk,E07000146,30/06/18,NORA                          ,JAPANESE KNOTWEED LTD                   ,143028      ,11-Jun-18,900,0,Remediation                   
Borough Council of Kings Lynn and West Norfolk,E07000146,30/06/18,PROJECTIONS                   ,AV PARTS MASTER LTD                     ,143034      ,14-May-18,2590,0,Tools And Equipment           
Borough Council of Kings Lynn and West Norfolk,E07000146,30/06/18,Kings Lynn Bus Station        ,ZURICH INSURANCE PLC                    ,101688      ,17-May-18,500,0,Insurance Excess              
Borough Council of Kings Lynn and West Norfolk,E07000146,30/06/18,Precepts Of Parish Councils   ,SYDERSTONE PARISH COUNCIL               ,101505      ,12-Apr-18,9566,0,Parishes                      
Borough Council of Kings Lynn and West Norfolk,E07000146,30/06/18,Mintlyn Crematorium           ,DORMA UK LTD                            ,104955      ,05-Jul-18,540.26,0,Planned Maintenance           
Borough Council of Kings Lynn and West Norfolk,E07000146,30/06/18,Precepts Of Parish Councils   ,PENTNEY PARISH COUNCIL                  ,101243      ,12-Apr-18,12500,0,Parishes                      
Borough Council of Kings Lynn and West Norfolk,E07000146,30/06/18,Event 7                       ,KL PUBLICATIONS LTD                     ,137190      ,28-Jun-18,576,0,Advertising                   
Borough Council of Kings Lynn and West Norfolk,E07000146,30/06/18,Corporate                     ,REDCENTRIC SOLUTIONS LTD                ,143387      ,02-Jul-18,1870,0,Stationery & Office Supplies  
Borough Council of Kings Lynn and West Norfolk,E07000146,30/06/18,ICT                           ,TECTRADE COMPUTERS LIMITED              ,123794      ,19-Apr-18,4709.25,0,Computer Software Maintenance 
Borough Council of Kings Lynn and West Norfolk,E07000146,30/06/18,Community Projects CRS        ,S.W.A.N YOUTH OPPORTUNITIES PROJECT     ,144059      ,10-May-18,2500,0,Service Level Agreements      
Borough Council of Kings Lynn and West Norfolk,E07000146,30/06/18,Precepts Of Parish Councils   ,CASTLE RISING PARISH COUNCIL            ,100298      ,12-Apr-18,840,0,Parishes                      
Borough Council of Kings Lynn and West Norfolk,E07000146,30/06/18,Special Expenses              ,TERRINGTON ST JOHN PARISH COUNCIL       ,101534      ,12-Apr-18,913,0,Special Expenses Credit       
Borough Council of Kings Lynn and West Norfolk,E07000146,30/06/18,Precepts Of Parish Councils   ,TERRINGTON ST JOHN PARISH COUNCIL       ,101534      ,12-Apr-18,50000,0,Parishes                      
Borough Council of Kings Lynn and West Norfolk,E07000146,30/06/18,Freedom of the Boro           ,WEST NORFOLKS FLYING CHEF               ,101803      ,17-May-18,1285,0,Hospitality                   
Borough Council of Kings Lynn and West Norfolk,E07000146,30/06/18,Disabled Facilties Grant      ,LINDUM GROUP LTD                        ,144896      ,30-May-18,1749.79,0,Works                         
Borough Council of Kings Lynn and West Norfolk,E07000146,30/06/18,Street Sweeping               ,WYBONE LTD                              ,116492      ,18-Jun-18,3485,0,Litter Bins                   
Borough Council of Kings Lynn and West Norfolk,E07000146,30/06/18,Corporate Project Manager     ,TELEFONICA02UK LTD                      ,144207      ,19-Apr-18,1363.26,0,Stationery & Office Supplies  
Borough Council of Kings Lynn and West Norfolk,E07000146,30/06/18,Corporate Project Manager     ,TELEFONICA02UK LTD                      ,144207      ,19-Apr-18,900,0,Stationery & Office Supplies  
Borough Council of Kings Lynn and West Norfolk,E07000146,30/06/18,Business Development& Start Up,TELEFONICA02UK LTD                      ,144207      ,28-Jun-18,597.83,0,BBUSINESS ADVICE SERVICES     
Borough Council of Kings Lynn and West Norfolk,E07000146,30/06/18,Careline                      ,HEREFORDSHIRE HOUSING LTD               ,145434      ,30-Apr-18,16667.13,0,Contracted Services           
Borough Council of Kings Lynn and West Norfolk,E07000146,30/06/18,Neigbourhood Planning Grant   ,MOTT MACDONALD LIMITED                  ,101083      ,26-Apr-18,12640.67,0,Fees                          
Borough Council of Kings Lynn and West Norfolk,E07000146,30/06/18,62702                         ,MOTT MACDONALD LIMITED                  ,101083      ,26-Apr-18,12640.67,0,Fees                          
Borough Council of Kings Lynn and West Norfolk,E07000146,30/06/18,Sports Grounds North          ,COLLIER TURF CARE LTD                   ,100362      ,14-May-18,938.16,0,Materials                     
Borough Council of Kings Lynn and West Norfolk,E07000146,30/06/18,Sports Grounds South          ,COLLIER TURF CARE LTD                   ,100362      ,14-May-18,938.15,0,Materials                     
Borough Council of Kings Lynn and West Norfolk,E07000146,30/06/18,Sports Grounds Central        ,COLLIER TURF CARE LTD                   ,100362      ,14-May-18,938.15,0,Materials                     
Borough Council of Kings Lynn and West Norfolk,E07000146,30/06/18,Electricity Direct Recharge Ac,BRITISH GAS BUSINESS                    ,100216      ,09-Apr-18,27962.96,0,Electricity Bulk Billing      
Borough Council of Kings Lynn and West Norfolk,E07000146,30/06/18,Care & Repair - Home Impro Agy,SEVEN RESOURCING LTD                    ,145043      ,31-May-18,676,0,Agency Staff                  
Borough Council of Kings Lynn and West Norfolk,E07000146,30/06/18,Care & Repair - Home Impro Agy,SEVEN RESOURCING LTD                    ,145043      ,14-Jun-18,879.19,0,Agency Staff                  
Borough Council of Kings Lynn and West Norfolk,E07000146,30/06/18,Careline                      ,TUNSTALL HEALTHCARE (UK) LTD            ,101569      ,23-Apr-18,3747,0,Tools And Equipment           
Borough Council of Kings Lynn and West Norfolk,E07000146,30/06/18,Careline-Replacement Alarm Uni,TUNSTALL HEALTHCARE (UK) LTD            ,101569      ,23-Apr-18,9900,0,Equipment/Materials           
Borough Council of Kings Lynn and West Norfolk,E07000146,30/06/18,Careline-Replacement Alarm Uni,TUNSTALL HEALTHCARE (UK) LTD            ,101569      ,23-Apr-18,1500,0,Equipment/Materials           
Borough Council of Kings Lynn and West Norfolk,E07000146,30/06/18,Parking Operations - Borough  ,METRIC GROUP LTD                        ,101041      ,28-Jun-18,3181.5,0,Maint Contr KL P&D            
Borough Council of Kings Lynn and West Norfolk,E07000146,30/06/18,Parking Operations - Borough  ,METRIC GROUP LTD                        ,101041      ,28-Jun-18,1742.25,0,Maint Contr Hunstanton        
Borough Council of Kings Lynn and West Norfolk,E07000146,30/06/18,ICT                           ,SWITCHSHOP LTD                          ,124299      ,03-May-18,1548.66,0,Computer Hardware Maintenance 
Borough Council of Kings Lynn and West Norfolk,E07000146,30/06/18,Dry Box Collection Scheme     ,NORSE ENVIRONMENTAL WASTE SVCS          ,102093      ,21-Jun-18,538.03,0,Waste Processing Cost         
Borough Council of Kings Lynn and West Norfolk,E07000146,30/06/18,Disabled Facilties Grant      ,GASWISE SERVICES LTD.                   ,100677      ,10-May-18,5853.42,0,Works                         
Borough Council of Kings Lynn and West Norfolk,E07000146,30/06/18,Postage Services Kings Court  ,POSTAGE BY PHONE                        ,101299      ,31-May-18,5000,0,Postages                      
Borough Council of Kings Lynn and West Norfolk,E07000146,30/06/18,Kings Court Kings Lynn        ,SMITH BUILDING SERVICES LTD             ,101443      ,21-Jun-18,4389.8,0,General Repairs               
Borough Council of Kings Lynn and West Norfolk,E07000146,30/06/18,Nora Phase 4                  ,WSP UK LTD                              ,146574      ,28-Jun-18,4725,0,External Fees/Consultancy     
Borough Council of Kings Lynn and West Norfolk,E07000146,30/06/18,Nora Phase 4                  ,WSP UK LTD                              ,146574      ,28-Jun-18,1575,0,External Fees/Consultancy     
Borough Council of Kings Lynn and West Norfolk,E07000146,30/06/18,Nora Phase 4                  ,WSP UK LTD                              ,146574      ,28-Jun-18,500,0,External Fees/Consultancy     
Borough Council of Kings Lynn and West Norfolk,E07000146,30/06/18,Hunstanton Parks HLF          ,KIDZ PARTY TIMES!                       ,146620      ,05-Jul-18,1150,0,Special Events                
Borough Council of Kings Lynn and West Norfolk,E07000146,30/06/18,Public Cleansing              ,ISR HORTICULTURAL SERVICES LTD          ,146471      ,14-Jun-18,550,0,Initiatives                   
Borough Council of Kings Lynn and West Norfolk,E07000146,30/06/18,Flexi homeless Support Grant  ,EVOLVE SECURITY SERVICES LTD            ,146648      ,03-May-18,1242.8,0,Homelessness Prevention Fund  
Borough Council of Kings Lynn and West Norfolk,E07000146,30/06/18,King's Court - DWP Specific   ,T GILL & SON (NORWICH) LTD              ,146727      ,19-Apr-18,114357.98,0,Works                         
Borough Council of Kings Lynn and West Norfolk,E07000146,30/06/18,Hunstanton Marketing          ,XLT DISTRIBUTION LTD                    ,139038      ,17-May-18,895,0,Distribution                  
Borough Council of Kings Lynn and West Norfolk,E07000146,30/06/18,Event 10                      ,RAZZ UK LTD                             ,129267      ,28-Jun-18,900,0,Advertising                   
Borough Council of Kings Lynn and West Norfolk,E07000146,30/06/18,Apprenticeship Scheme         ,BEDFORD BOROUGH COUNCIL                 ,124800      ,26-Apr-18,4141,0,Apprentice Levi               
Borough Council of Kings Lynn and West Norfolk,E07000146,30/06/18,Dog Warden and Services       ,DOGOTEL KENNELS & CATTERY               ,140387      ,24-May-18,771.28,0,Contracted Services           
Borough Council of Kings Lynn and West Norfolk,E07000146,30/06/18,Dog Warden and Services       ,DOGOTEL KENNELS & CATTERY               ,140387      ,24-May-18,600,0,Contracted Services           
Borough Council of Kings Lynn and West Norfolk,E07000146,30/06/18,Vehicle Recharge On Account   ,WORLDLINE IT SERVICESUK LTD RE FUELGENIE,135817      ,19-Apr-18,8776.42,0,Petrol                        
Borough Council of Kings Lynn and West Norfolk,E07000146,30/06/18,Cost of Collection - CTax     ,ROSSENDALES LTD                         ,101364      ,16-Apr-18,657.13,0,Professional Fees             
Borough Council of Kings Lynn and West Norfolk,E07000146,30/06/18,BCKLWN Control Account        ,ROSSENDALES LTD                         ,101364      ,16-Apr-18,935.73,0,VAT Input (VAT Only Invoice)  
Borough Council of Kings Lynn and West Norfolk,E07000146,30/06/18,Disabled Facilties Grant      ,CHAS D ALLFLATT LTD                     ,100315      ,31-May-18,11000,0,Works                         
Borough Council of Kings Lynn and West Norfolk,E07000146,30/06/18,Adapt Grant                   ,CHAS D ALLFLATT LTD                     ,100315      ,25-Jun-18,3583.42,0,Works                         
Borough Council of Kings Lynn and West Norfolk,E07000146,30/06/18,Adapt Grant                   ,CHAS D ALLFLATT LTD                     ,100315      ,28-Jun-18,3108.72,0,Works                         
Borough Council of Kings Lynn and West Norfolk,E07000146,30/06/18,Air Quality                   ,IPPC CONSULTANTS LTD                    ,146846      ,23-Apr-18,820,0,Professional Fees             
Borough Council of Kings Lynn and West Norfolk,E07000146,30/06/18,Townscape Heritage Initiative ,GROCOTT AND MURFIT LTD                  ,146883      ,09-Apr-18,42196.81,0,THI Critical Grant Projects   
Borough Council of Kings Lynn and West Norfolk,E07000146,30/06/18,Hunstanton Parks for People   ,BLAKEDOWN ENVIRONMENT & LEISURE PLC     ,146045      ,19-Apr-18,811.52,0,Repair and Conservation       
Borough Council of Kings Lynn and West Norfolk,E07000146,30/06/18,DMLC - Refurb Toilets         ,JD COOLING SYSTEMS LTD                  ,119491      ,26-Apr-18,6545,0,Works                         
Borough Council of Kings Lynn and West Norfolk,E07000146,30/06/18,Telephones                    ,VODAFONE (CORPORATE) LTD                ,102257      ,07-Jun-18,513.1,0,Mobile Phone Usage & Top-up   
Borough Council of Kings Lynn and West Norfolk,E07000146,30/06/18,Amazon Leafsweeper            ,THURLOW NUNN STANDEN LTD                ,101547      ,18-Jun-18,757.92,0,Materials                     
Borough Council of Kings Lynn and West Norfolk,E07000146,30/06/18,Townscape Heritage Initiative ,TOWERGATE INSURANCE LTD                 ,147039      ,11-Jun-18,1230.75,0,THI Critical Grant Projects   
Borough Council of Kings Lynn and West Norfolk,E07000146,30/06/18,Parking Operations - Borough  ,NAGELS UK LTD                           ,147141      ,30-Apr-18,1383.2,0,Stationery & Office Supplies  
Borough Council of Kings Lynn and West Norfolk,E07000146,30/06/18,The Walks                     ,24/7 PAINTING LTD                       ,147143      ,07-Jun-18,8500,0,General Repairs               
Borough Council of Kings Lynn and West Norfolk,E07000146,30/06/18,The Walks                     ,24/7 PAINTING LTD                       ,147143      ,07-Jun-18,16500,0,General Repairs               
Borough Council of Kings Lynn and West Norfolk,E07000146,30/06/18,Improving Attainment          ,WEST NORFOLK ACADEMIES TRUST            ,147163      ,14-Jun-18,7613.15,0,Small Projects                
Borough Council of Kings Lynn and West Norfolk,E07000146,30/06/18,Housing Joint Venture         ,E HYDE                                  ,147179      ,09-Apr-18,1534,0,Other                         
Borough Council of Kings Lynn and West Norfolk,E07000146,30/06/18,Emergency Response Planning   ,THE MAYDAY ANGEL                        ,147199      ,19-Apr-18,1725,0,Training Exercises            
Borough Council of Kings Lynn and West Norfolk,E07000146,30/06/18,Greenpark Avenue (Adopted NCC),NORFOLK COUNTY COUNCIL                  ,101142      ,26-Apr-18,1511,0,External Fees/Consultancy     
Borough Council of Kings Lynn and West Norfolk,E07000146,30/06/18,Adapt Grant                   ,NORFOLK COUNTY COUNCIL                  ,101142      ,11-Jun-18,789.38,0,Works                         
Borough Council of Kings Lynn and West Norfolk,E07000146,30/06/18,Mintlyn Crematorium           ,CORONA ENERGY RETAIL 4 LTD              ,131838      ,12-Apr-18,3149,0,Gas                           
Borough Council of Kings Lynn and West Norfolk,E07000146,30/06/18,Downham Market Sports Centre  ,CORONA ENERGY RETAIL 4 LTD              ,131838      ,23-Apr-18,1895.36,0,Gas                           
Borough Council of Kings Lynn and West Norfolk,E07000146,30/06/18,KL Arts Centre                ,CORONA ENERGY RETAIL 4 LTD              ,131838      ,21-May-18,525.83,0,Gas                           
Borough Council of Kings Lynn and West Norfolk,E07000146,30/06/18,Adapt Grant                   ,T M BROWNE LTD                          ,131470      ,12-Apr-18,4227.02,0,Works                         
Borough Council of Kings Lynn and West Norfolk,E07000146,30/06/18,Mintlyn Crematorium           ,1-2 CALL DRAINAGE & GROUNDWORK LTD      ,131800      ,09-Apr-18,1180,0,Maint Plant & Equip           
Borough Council of Kings Lynn and West Norfolk,E07000146,30/06/18,Parking Operations - Borough  ,HAVAS PEOPLE LIMITED                    ,100966      ,19-Apr-18,4262.4,0,Advertising                   
Borough Council of Kings Lynn and West Norfolk,E07000146,30/06/18,ICT                           ,HAVAS PEOPLE LIMITED                    ,100966      ,23-Apr-18,947.58,0,Recruitment                   
Borough Council of Kings Lynn and West Norfolk,E07000146,30/06/18,westnorfolkwins               ,KLFM LTD                                ,102963      ,07-Jun-18,603,0,Marketing                     
Borough Council of Kings Lynn and West Norfolk,E07000146,30/06/18,Regis Place Unit1-Non Inv Care,ADVANCED WATER TREATMENT (UK) LTD       ,136018      ,26-Apr-18,690,0,Maint Plant & Equip           
Borough Council of Kings Lynn and West Norfolk,E07000146,30/06/18,Resort Seafront               ,PENTY CONTRACTORS LTD                   ,101244      ,26-Apr-18,3840,0,General Repairs               
Borough Council of Kings Lynn and West Norfolk,E07000146,30/06/18,OPE- Hunstanton Housing Sites ,G C BAXTER & ASSOCIATES LTD             ,105203      ,24-May-18,535,0,Professional Fees             
Borough Council of Kings Lynn and West Norfolk,E07000146,30/06/18,Phase 1-Lynnsport 3-Contractor,LOVELL PARTNERSHIPS LTD                 ,143432      ,10-May-18,13073.4,0,Works                         
Borough Council of Kings Lynn and West Norfolk,E07000146,30/06/18,Phase -Lynnsport 4 /5 Contract,LOVELL PARTNERSHIPS LTD                 ,143432      ,14-Jun-18,744924.97,0,Works                         
Borough Council of Kings Lynn and West Norfolk,E07000146,30/06/18,Telephones                    ,EE LIMITED                              ,143434      ,28-May-18,571.4,0,Telephones Recharged          
Borough Council of Kings Lynn and West Norfolk,E07000146,30/06/18,Cashless Park KZ (KLWN off St),CHIPSIDE LTD                            ,146272      ,31-May-18,805.5,0,Transaction Fee               
Borough Council of Kings Lynn and West Norfolk,E07000146,30/06/18,Community Housing Fund        ,NORTH NORFOLK DISTRICT COUNCIL          ,101156      ,14-May-18,3825.59,0,Professional Fees             
Borough Council of Kings Lynn and West Norfolk,E07000146,30/06/18,Enforcement                   ,SPEARING WAITE                          ,147285      ,18-Jun-18,1200,0,Direct Action Fees            
Borough Council of Kings Lynn and West Norfolk,E07000146,30/06/18,Major Planning Appeals        ,OPINION RESEARCH SERVICES               ,147330      ,02-Jul-18,1830.06,0,Consultants Fees              
Borough Council of Kings Lynn and West Norfolk,E07000146,30/06/18,Cost of Collection - CTax     ,ROYAL MAIL GROUP LTD                    ,101369      ,09-Apr-18,712.94,0,Postages                      
Borough Council of Kings Lynn and West Norfolk,E07000146,30/06/18,BCKLWN Control Account        ,ROSSENDALES LTD                         ,101364      ,31-May-18,904.99,0,VAT Input (VAT Only Invoice)  
Borough Council of Kings Lynn and West Norfolk,E07000146,30/06/18,BCKLWN Control Account        ,ROSSENDALES LTD                         ,101364      ,14-Jun-18,1013.19,0,VAT Input (VAT Only Invoice)  
Borough Council of Kings Lynn and West Norfolk,E07000146,30/06/18,BCKLWN Control Account        ,ROSSENDALES LTD                         ,101364      ,21-Jun-18,845.94,0,VAT Input (VAT Only Invoice)  
Borough Council of Kings Lynn and West Norfolk,E07000146,30/06/18,Parks & Open Spaces           ,CGM GROUP (EAST ANGLIA) LTD             ,100401      ,21-May-18,630,0,Tree Work/Storm Damage etc    
Borough Council of Kings Lynn and West Norfolk,E07000146,30/06/18,King's Court - DWP Specific   ,CHUBB FIRE & SECURITY LTD               ,100324      ,14-May-18,1116,0,Works                         
Borough Council of Kings Lynn and West Norfolk,E07000146,30/06/18,Precepts Of Parish Councils   ,DOWNHAM WEST PARISH COUNCIL             ,100486      ,12-Apr-18,5380,0,Parishes                      
Borough Council of Kings Lynn and West Norfolk,E07000146,30/06/18,Precepts Of Parish Councils   ,HUNDRED OF WISBECH IDB                  ,100792      ,25-Jun-18,986,0,Drainage Boards               
Borough Council of Kings Lynn and West Norfolk,E07000146,30/06/18,Precepts Of Parish Councils   ,LITTLEPORT & DOWNHAM IDB                ,100950      ,30-Apr-18,11303.84,0,Drainage Boards               
Borough Council of Kings Lynn and West Norfolk,E07000146,30/06/18,Precepts Of Parish Councils   ,MARSHLAND ST JAMES PARISH CNCL          ,101012      ,12-Apr-18,20825,0,Parishes                      
Borough Council of Kings Lynn and West Norfolk,E07000146,30/06/18,King's Court - DWP Specific   ,MILLAR WEST                             ,101066      ,16-Apr-18,62165.01,0,Equipment/Materials           
Borough Council of Kings Lynn and West Norfolk,E07000146,30/06/18,Precepts Of Parish Councils   ,WEREHAM PARISH COUNCIL                  ,101632      ,12-Apr-18,16000,0,Parishes                      
Borough Council of Kings Lynn and West Norfolk,E07000146,30/06/18,Precepts Of Parish Councils   ,WIGGENHALL ST MARY MAGDALEN PC          ,101652      ,12-Apr-18,14500,0,Parishes                      
Borough Council of Kings Lynn and West Norfolk,E07000146,30/06/18,The Walks                     ,KERNOCK PARK PLANTS LTD                 ,102061      ,25-Jun-18,727.5,0,Materials                     
Borough Council of Kings Lynn and West Norfolk,E07000146,30/06/18,The Walks                     ,KERNOCK PARK PLANTS LTD                 ,102061      ,25-Jun-18,1650.32,0,Materials                     
Borough Council of Kings Lynn and West Norfolk,E07000146,30/06/18,Major Planning Appeals        ,BENNETT HOMES PLC                       ,103956      ,09-Apr-18,1000,0,Consultants Fees              
Borough Council of Kings Lynn and West Norfolk,E07000146,30/06/18,Adapt Grant                   ,ELY BUILDING & MAINTENANCE SERVICES LTD ,106268      ,16-Apr-18,4571.42,0,Works                         
Borough Council of Kings Lynn and West Norfolk,E07000146,30/06/18,Event 2                       ,RUDD MARQUEES LTD                       ,108214      ,31-May-18,845,0,Tools And Equipment           
Borough Council of Kings Lynn and West Norfolk,E07000146,30/06/18,Enabler Role                  ,RICS                                    ,118547      ,16-Apr-18,1866,0,Subscriptions                 
Borough Council of Kings Lynn and West Norfolk,E07000146,30/06/18,OPE- Hunstanton Housing Sites ,FOCUS CONSULTANTS 2010 LLP              ,121748      ,14-May-18,2473.75,0,External Fees/Consultancy     
Borough Council of Kings Lynn and West Norfolk,E07000146,30/06/18,Domestic Abuse Funding        ,LEEWAY DOMESTIC VIOLENCE & ABUSE SERVICE,124931      ,21-May-18,3213.3,0,Grants                        
Borough Council of Kings Lynn and West Norfolk,E07000146,30/06/18,Corn Exc -Replace Bar Tills   ,KLSBIZ                                  ,124957      ,21-May-18,6474,0,Works                         
Borough Council of Kings Lynn and West Norfolk,E07000146,30/06/18,L/sport - Playform Lift       ,MANUAL HANDLING SOLUTIONS               ,123969      ,12-Apr-18,1172,0,Works                         
Borough Council of Kings Lynn and West Norfolk,E07000146,30/06/18,National Assist Act Burials   ,THORNALLEY FUNERAL SERVICES LTD         ,125811      ,14-Jun-18,1516,0,Burial Fees-Nat.Ass.Act       
Borough Council of Kings Lynn and West Norfolk,E07000146,30/06/18,National Assist Act Burials   ,THORNALLEY FUNERAL SERVICES LTD         ,125811      ,14-Jun-18,1352,0,Burial Fees-Nat.Ass.Act       
Borough Council of Kings Lynn and West Norfolk,E07000146,30/06/18,Parking Operations - Borough  ,DESIGNA UK LTD                          ,127215      ,05-Jul-18,885.2,0,Maint Contr St James          
Borough Council of Kings Lynn and West Norfolk,E07000146,30/06/18,Careline                      ,SUPRA UK LTD                            ,134960      ,28-May-18,1698,0,Items Purchased For Resale    
Borough Council of Kings Lynn and West Norfolk,E07000146,30/06/18,Adapt Grant                   ,CLIVE CLARK PLUMBING & HEATING          ,133166      ,18-Jun-18,2851.99,0,Works                         
Borough Council of Kings Lynn and West Norfolk,E07000146,30/06/18,Major Planning Appeals        ,EMOTIVE SOUND & LIGHT LTD               ,136450      ,14-Jun-18,508.9,0,Room Hire                     
Borough Council of Kings Lynn and West Norfolk,E07000146,30/06/18,Trade Refuse                  ,UK CONTAINER MAINTENANCE LTD            ,137174      ,09-Apr-18,2043.8,0,General Repairs               
Borough Council of Kings Lynn and West Norfolk,E07000146,30/06/18,Trade Refuse                  ,UK CONTAINER MAINTENANCE LTD            ,137174      ,24-May-18,1598,0,General Repairs               
Borough Council of Kings Lynn and West Norfolk,E07000146,30/06/18,Housing Options Programme     ,LONGHURST & HAVELOK HOMES               ,137451      ,14-Jun-18,509.32,0,Homelessness Prevention Fund  
Borough Council of Kings Lynn and West Norfolk,E07000146,30/06/18,BCKLWN Debtors Control        ,M & L HUMPHREY                          ,139839      ,30-Apr-18,519,0,Control Account Ledger 4      
Borough Council of Kings Lynn and West Norfolk,E07000146,30/06/18,Precepts Of Parish Councils   ,SOUTH CREAKE PARISH COUNCIL             ,101448      ,12-Apr-18,12815,0,Parishes                      
Borough Council of Kings Lynn and West Norfolk,E07000146,30/06/18,Kings Lynn Bus Station        ,VANCOUVER GP LTD                        ,142742      ,14-Jun-18,8480,0,Rent                          
Borough Council of Kings Lynn and West Norfolk,E07000146,30/06/18,Precepts Of Parish Councils   ,THORNHAM PARISH COUNCIL                 ,101546      ,12-Apr-18,22000,0,Parishes                      
Borough Council of Kings Lynn and West Norfolk,E07000146,30/06/18,Housing Options Programme     ,CRUSO & WILKIN                          ,100418      ,31-May-18,795,0,Homelessness Prevention Fund  
Borough Council of Kings Lynn and West Norfolk,E07000146,30/06/18,ICT                           ,MIDLAND COMPUTER SERVICES LTD           ,139465      ,31-May-18,715,0,Computer Hardware Maintenance 
Borough Council of Kings Lynn and West Norfolk,E07000146,30/06/18,Precepts Of Parish Councils   ,NORTH CREAKE PARISH COUNCIL             ,101155      ,12-Apr-18,16142,0,Parishes                      
Borough Council of Kings Lynn and West Norfolk,E07000146,30/06/18,Special Expenses              ,DERSINGHAM PARISH COUNCIL               ,100458      ,12-Apr-18,3072,0,Special Expenses Credit       
Borough Council of Kings Lynn and West Norfolk,E07000146,30/06/18,Precepts Of Parish Councils   ,DERSINGHAM PARISH COUNCIL               ,100458      ,12-Apr-18,179648,0,Parishes                      
Borough Council of Kings Lynn and West Norfolk,E07000146,30/06/18,Parks & Open Spaces           ,BARCHAM TREES PLC                       ,100144      ,09-Apr-18,645,0,Tree Work/Storm Damage etc    
Borough Council of Kings Lynn and West Norfolk,E07000146,30/06/18,CCTV                          ,SSAIB                                   ,142895      ,24-May-18,2175,0,Planned Maintenance           
Borough Council of Kings Lynn and West Norfolk,E07000146,30/06/18,BCKLWN Control Account        ,HMRC VAT                                ,136625      ,03-May-18,87955.37,0,VAT Input (VAT Only Invoice)  
Borough Council of Kings Lynn and West Norfolk,E07000146,30/06/18,Safety and Welfare            ,SPECSAVERS CORPORATE EYECARE            ,136972      ,21-Jun-18,850,0,Eye Test                      
Borough Council of Kings Lynn and West Norfolk,E07000146,30/06/18,KL Arts Centre                ,KINGS LYNN PLAYERS                      ,102178      ,26-Apr-18,5019.79,0,Hirings Ticketed              
Borough Council of Kings Lynn and West Norfolk,E07000146,30/06/18,BCKLWN Control Account        ,KINGS LYNN PLAYERS                      ,102178      ,26-Apr-18,1003.96,0,VAT Output                    
Borough Council of Kings Lynn and West Norfolk,E07000146,30/06/18,Corporate Insurance           ,ZURICH INSURANCE PLC                    ,101688      ,18-Jun-18,54319.08,0,ZM Shops & Factory            
Borough Council of Kings Lynn and West Norfolk,E07000146,30/06/18,Corporate Insurance           ,ZURICH INSURANCE PLC                    ,101688      ,28-Jun-18,4858.34,0,ZM Premium                    
Borough Council of Kings Lynn and West Norfolk,E07000146,30/06/18,One Public Estate             ,SLR CONSULTING LTD                      ,128730      ,28-Jun-18,5575,0,Professional Fees             
Borough Council of Kings Lynn and West Norfolk,E07000146,30/06/18,Vulnerable Person Resettlement,NORWICH CITY COUNCIL                    ,101166      ,25-Jun-18,1376.01,0,Contributions                 
Borough Council of Kings Lynn and West Norfolk,E07000146,30/06/18,Corn Exc -Pit Lift Brakes Repl,CAMTRAK (UK) LTD                        ,143370      ,21-May-18,3222.15,0,Works                         
Borough Council of Kings Lynn and West Norfolk,E07000146,30/06/18,Corporate                     ,REDCENTRIC SOLUTIONS LTD                ,143387      ,09-Apr-18,1870,0,Miscellaneous                 
Borough Council of Kings Lynn and West Norfolk,E07000146,30/06/18,Investment & Place Marketing  ,COMMERCIAL PROPERTY MONTHLY             ,124882      ,31-May-18,1018,0,Promotional Activities        
Borough Council of Kings Lynn and West Norfolk,E07000146,30/06/18,Dev & Estate Capital Receipts ,SOUTH WOOTTON PARISH COUNCIL            ,101450      ,14-Jun-18,3666.66,0,Income                        
Borough Council of Kings Lynn and West Norfolk,E07000146,30/06/18,OPE- Hunstanton Housing Sites ,CHAPLIN FARRANT LIMITED                 ,123551      ,24-May-18,1050,0,External Fees/Consultancy     
Borough Council of Kings Lynn and West Norfolk,E07000146,30/06/18,ICT                           ,MEDIA RESOURCES                         ,101031      ,07-Jun-18,1039,0,Computer Hardware Maintenance 
Borough Council of Kings Lynn and West Norfolk,E07000146,30/06/18,Major Hous: Add Lynnsprt Works,KINGS LYNN FENCING & LANDSCAPES         ,144183      ,10-May-18,3150,0,Works                         
Borough Council of Kings Lynn and West Norfolk,E07000146,30/06/18,Precepts Of Parish Councils   ,FLITCHAM CUM APPLETON PARISH COUNCIL    ,100646      ,12-Apr-18,3160,0,Parishes                      
Borough Council of Kings Lynn and West Norfolk,E07000146,30/06/18,Precepts Of Parish Councils   ,TITCHWELL PARISH MTG                    ,102697      ,12-Apr-18,940,0,Parishes                      
Borough Council of Kings Lynn and West Norfolk,E07000146,30/06/18,DMLC - Flooring Replacement   ,STEVEN SEALS BUILDER LTD                ,108597      ,28-May-18,1985,0,Works                         
Borough Council of Kings Lynn and West Norfolk,E07000146,30/06/18,DMLC - Flooring Replacement   ,STEVEN SEALS BUILDER LTD                ,108597      ,28-May-18,3073.14,0,Works                         
Borough Council of Kings Lynn and West Norfolk,E07000146,30/06/18,KL Arts Centre                ,K WHYBORN                               ,144336      ,25-Jun-18,2091.67,0,Hirings Ticketed              
Borough Council of Kings Lynn and West Norfolk,E07000146,30/06/18,Parking Operations - Borough  ,KINGS LYNN SIGNS                        ,100887      ,09-Apr-18,796,0,Gen Rep Hunstanton            
Borough Council of Kings Lynn and West Norfolk,E07000146,30/06/18,NORA                          ,MOTT MACDONALD LIMITED                  ,101083      ,07-Jun-18,1098.2,0,External Fees/Consultancy     
Borough Council of Kings Lynn and West Norfolk,E07000146,30/06/18,Kings Court Grnd Floor Modify ,BAILEY PARTNERSHIP                      ,145971      ,19-Apr-18,4958.4,0,Professional Fees             
Borough Council of Kings Lynn and West Norfolk,E07000146,30/06/18,Care & Repair - Home Impro Agy,SEVEN RESOURCING LTD                    ,145043      ,19-Apr-18,1121.86,0,Agency Staff                  
Borough Council of Kings Lynn and West Norfolk,E07000146,30/06/18,Care & Repair - Home Impro Agy,SEVEN RESOURCING LTD                    ,145043      ,03-May-18,882.61,0,Agency Staff                  
Borough Council of Kings Lynn and West Norfolk,E07000146,30/06/18,Care & Repair - Home Impro Agy,SEVEN RESOURCING LTD                    ,145043      ,10-May-18,1165.1,0,Agency Staff                  
Borough Council of Kings Lynn and West Norfolk,E07000146,30/06/18,Lease Car Revenue Account     ,COMMERCIAL SERVICES KENT LTD            ,146328      ,02-Jul-18,2565.02,0,Leasing                       
Borough Council of Kings Lynn and West Norfolk,E07000146,30/06/18,Lease Car Revenue Account     ,COMMERCIAL SERVICES KENT LTD            ,146328      ,02-Jul-18,1885.9,0,Leasing                       
Borough Council of Kings Lynn and West Norfolk,E07000146,30/06/18,Parking Operations - Borough  ,LOOMIS UK LTD                           ,140581      ,16-Apr-18,969.22,0,Security Services Charge      
Borough Council of Kings Lynn and West Norfolk,E07000146,30/06/18,Leisure Management Costs      ,LOOMIS UK LTD                           ,140581      ,16-Apr-18,540.94,0,Security Services Charge      
Borough Council of Kings Lynn and West Norfolk,E07000146,30/06/18,Revs & Bens System Replacement,CIVICA  UK LTD                          ,128548      ,17-May-18,10000,0,Computer Equip (Hardware)     
Borough Council of Kings Lynn and West Norfolk,E07000146,30/06/18,Dry Box Collection Scheme     ,NORSE ENVIRONMENTAL WASTE SVCS          ,102093      ,26-Apr-18,30000.16,0,Waste Processing Cost         
Borough Council of Kings Lynn and West Norfolk,E07000146,30/06/18,Cashless Park KZ (KLWN off St),CHIPSIDE LTD                            ,146272      ,23-Apr-18,698.83,0,Transaction Fee               
Borough Council of Kings Lynn and West Norfolk,E07000146,30/06/18,Adapt Grant                   ,FREEBRIDGE COMMUNITY HOUSING            ,127987      ,03-May-18,1395.49,0,Works                         
Borough Council of Kings Lynn and West Norfolk,E07000146,30/06/18,Adapt Grant                   ,FREEBRIDGE COMMUNITY HOUSING            ,127987      ,07-Jun-18,4098.14,0,Works                         
Borough Council of Kings Lynn and West Norfolk,E07000146,30/06/18,ICT                           ,ADEPT TELECOM PLC                       ,135085      ,11-Jun-18,1139.16,0,Communications                
Borough Council of Kings Lynn and West Norfolk,E07000146,30/06/18,NORA Phase 3                  ,WSP UK LTD                              ,146574      ,31-May-18,4625,0,External Fees/Consultancy     
Borough Council of Kings Lynn and West Norfolk,E07000146,30/06/18,Nora Phase 4                  ,WSP UK LTD                              ,146574      ,31-May-18,2025,0,External Fees/Consultancy     
Borough Council of Kings Lynn and West Norfolk,E07000146,30/06/18,KL Arts Centre                ,KINGS LYNN FESTIVAL LTD                 ,100877      ,26-Apr-18,5580,0,Hirings Ticketed              
Borough Council of Kings Lynn and West Norfolk,E07000146,30/06/18,BCKLWN Control Account        ,KINGS LYNN FESTIVAL LTD                 ,100877      ,26-Apr-18,1116,0,VAT Output                    
Borough Council of Kings Lynn and West Norfolk,E07000146,30/06/18,Vehicle Recharge On Account   ,WORLDLINE IT SERVICESUK LTD RE FUELGENIE,135817      ,17-May-18,11585.63,0,Petrol                        
Borough Council of Kings Lynn and West Norfolk,E07000146,30/06/18,CCTV                          ,FOCUS SECURITY (EAST ANGLIA) LTD        ,136665      ,21-Jun-18,620.85,0,Maint Plant & Equip           
Borough Council of Kings Lynn and West Norfolk,E07000146,30/06/18,Supplier Holding Account      ,CERTAS ENERGY T/A PACE FUELCARE         ,142805      ,21-May-18,5543.48,0,Derv.                         
Borough Council of Kings Lynn and West Norfolk,E07000146,30/06/18,BCKLWN Control Account        ,ROSSENDALES LTD                         ,101364      ,26-Apr-18,852.28,0,VAT Input (VAT Only Invoice)  
Borough Council of Kings Lynn and West Norfolk,E07000146,30/06/18,BCKLWN Control Account        ,ROSSENDALES LTD                         ,101364      ,10-May-18,1204.5,0,VAT Input (VAT Only Invoice)  
Borough Council of Kings Lynn and West Norfolk,E07000146,30/06/18,Adapt Grant                   ,CHAS D ALLFLATT LTD                     ,100315      ,16-Apr-18,4166.98,0,Works                         
Borough Council of Kings Lynn and West Norfolk,E07000146,30/06/18,Disabled Facilties Grant      ,CHAS D ALLFLATT LTD                     ,100315      ,16-Apr-18,4590.11,0,Works                         
Borough Council of Kings Lynn and West Norfolk,E07000146,30/06/18,Adapt Grant                   ,CHAS D ALLFLATT LTD                     ,100315      ,17-May-18,3398.81,0,Works                         
Borough Council of Kings Lynn and West Norfolk,E07000146,30/06/18,Adapt Grant                   ,CHAS D ALLFLATT LTD                     ,100315      ,07-Jun-18,3966.15,0,Works                         
Borough Council of Kings Lynn and West Norfolk,E07000146,30/06/18,Handyperson Scheme Kings Lynn ,CHAS D ALLFLATT LTD                     ,100315      ,07-Jun-18,1339.64,0,Contractor Payments           
Borough Council of Kings Lynn and West Norfolk,E07000146,30/06/18,Air Quality                   ,IPPC CONSULTANTS LTD                    ,146846      ,10-May-18,1090,0,Professional Fees             
Borough Council of Kings Lynn and West Norfolk,E07000146,30/06/18,Air Quality                   ,IPPC CONSULTANTS LTD                    ,146846      ,10-May-18,1000,0,Professional Fees             
Borough Council of Kings Lynn and West Norfolk,E07000146,30/06/18,Mintlyn Crematorium           ,VIDA HEALTHCARE                         ,130101      ,17-May-18,2693.44,0,Professional Fees             
Borough Council of Kings Lynn and West Norfolk,E07000146,30/06/18,Kings Court Kings Lynn        ,AMR ELECTRICAL SERVICES LTD             ,126614      ,10-May-18,738.32,0,General Repairs               
Borough Council of Kings Lynn and West Norfolk,E07000146,30/06/18,Open Cemeteries               ,CTS SECURITY LTD                        ,110565      ,09-Apr-18,1922,0,General Repairs               
Borough Council of Kings Lynn and West Norfolk,E07000146,30/06/18,AV in meeting rooms           ,TRANSPUTEC LTD                          ,147050      ,19-Apr-18,1383.48,0,Computer Equip (Hardware)     
Borough Council of Kings Lynn and West Norfolk,E07000146,30/06/18,AV in meeting rooms           ,TRANSPUTEC LTD                          ,147050      ,19-Apr-18,2032.16,0,Computer Equip (Hardware)     
Borough Council of Kings Lynn and West Norfolk,E07000146,30/06/18,AV in meeting rooms           ,TRANSPUTEC LTD                          ,147050      ,19-Apr-18,5020.84,0,Computer Equip (Hardware)     
Borough Council of Kings Lynn and West Norfolk,E07000146,30/06/18,KL Arts Centre                ,PURFLEET TRUST RESETTLEMENT PROJECT     ,147172      ,09-Apr-18,1245.83,0,Hirings Ticketed              
Borough Council of Kings Lynn and West Norfolk,E07000146,30/06/18,OPE- Hunstanton Housing Sites ,NORFOLK COUNTY COUNCIL                  ,101142      ,16-Apr-18,1993,0,External Fees/Consultancy     
Borough Council of Kings Lynn and West Norfolk,E07000146,30/06/18,Head of Legal Services        ,NORFOLK COUNTY COUNCIL                  ,101142      ,11-Jun-18,7821.6,0,Commissioning Ext. Legal fees 
Borough Council of Kings Lynn and West Norfolk,E07000146,30/06/18,Corn Exchange                 ,CORONA ENERGY RETAIL 4 LTD              ,131838      ,26-Apr-18,1400.18,0,Gas                           
Borough Council of Kings Lynn and West Norfolk,E07000146,30/06/18,Corn Exchange                 ,CORONA ENERGY RETAIL 4 LTD              ,131838      ,21-May-18,962.04,0,Gas                           
Borough Council of Kings Lynn and West Norfolk,E07000146,30/06/18,Disabled Facilties Grant      ,T M BROWNE LTD                          ,131470      ,12-Apr-18,3195.21,0,Works                         
Borough Council of Kings Lynn and West Norfolk,E07000146,30/06/18,Disabled Facilties Grant      ,T M BROWNE LTD                          ,131470      ,26-Apr-18,4773.84,0,Works                         
Borough Council of Kings Lynn and West Norfolk,E07000146,30/06/18,BC System Suspense            ,ALIVE MANAGEMENT LTD                    ,143925      ,16-Apr-18,8336.01,0,ER Balance Held               
Borough Council of Kings Lynn and West Norfolk,E07000146,30/06/18,Kingsway Sports Pavillion     ,ALIVE MANAGEMENT LTD                    ,143925      ,03-May-18,1136.56,0,Pavilion Recharge (fr AML)    
Borough Council of Kings Lynn and West Norfolk,E07000146,30/06/18,KL Arts Centre                ,ALIVE MANAGEMENT LTD                    ,143925      ,03-May-18,1566.96,0,Recharge Staffing (fr AMLA918)
Borough Council of Kings Lynn and West Norfolk,E07000146,30/06/18,KL Arts Centre                ,ALIVE MANAGEMENT LTD                    ,143925      ,03-May-18,819.59,0,Recharge Staffing (fr AMLA918)
Borough Council of Kings Lynn and West Norfolk,E07000146,30/06/18,Dutton Sports Pavillion       ,ALIVE MANAGEMENT LTD                    ,143925      ,03-May-18,692.09,0,Pavilion Recharge (fr AML)    
Borough Council of Kings Lynn and West Norfolk,E07000146,30/06/18,Public Conveniences           ,1-2 CALL DRAINAGE & GROUNDWORK LTD      ,131800      ,09-Apr-18,620,0,General Repairs               
Borough Council of Kings Lynn and West Norfolk,E07000146,30/06/18,Heacham Industrial Est        ,1-2 CALL DRAINAGE & GROUNDWORK LTD      ,131800      ,14-May-18,2100,0,General Repairs               
Borough Council of Kings Lynn and West Norfolk,E07000146,30/06/18,Precepts Of Parish Councils   ,OLD HUNSTANTON PARISH COUNCIL           ,101187      ,12-Apr-18,11594,0,Parishes                      
Borough Council of Kings Lynn and West Norfolk,E07000146,30/06/18,Public Cleansing              ,RIDGEONS LTD                            ,101348      ,28-Jun-18,591.24,0,Initiatives                   
Borough Council of Kings Lynn and West Norfolk,E07000146,30/06/18,Public Cleansing              ,JOHNSTON SWEEPERS LTD                   ,121881      ,14-Jun-18,646.48,0,Sweeper Consumables           
Borough Council of Kings Lynn and West Norfolk,E07000146,30/06/18,Printing & Copying - Printroom,HAVAS PEOPLE LIMITED                    ,100966      ,09-Apr-18,550.16,0,Recruitment                   
Borough Council of Kings Lynn and West Norfolk,E07000146,30/06/18,Housing Standards             ,HAVAS PEOPLE LIMITED                    ,100966      ,31-May-18,1697.4,0,Recruitment                   
Borough Council of Kings Lynn and West Norfolk,E07000146,30/06/18,Resort Seafront               ,PENTY CONTRACTORS LTD                   ,101244      ,07-Jun-18,604.07,0,General Repairs               
Borough Council of Kings Lynn and West Norfolk,E07000146,30/06/18,Major Housing Management      ,G C BAXTER & ASSOCIATES LTD             ,105203      ,03-May-18,832.57,0,External Fees/Consultancy     
Borough Council of Kings Lynn and West Norfolk,E07000146,30/06/18,Disabled Facilties Grant      ,STANNAH LIFT SERVICES LTD               ,101479      ,19-Apr-18,1251.93,0,Works                         
Borough Council of Kings Lynn and West Norfolk,E07000146,30/06/18,Disabled Facilties Grant      ,STANNAH LIFT SERVICES LTD               ,101479      ,28-Jun-18,5284,0,Works                         
Borough Council of Kings Lynn and West Norfolk,E07000146,30/06/18,Development Control           ,LOVELL PARTNERSHIPS LTD                 ,143432      ,19-Apr-18,1848,0,Planning Fees                 
Borough Council of Kings Lynn and West Norfolk,E07000146,30/06/18,Phase 1 -  Marsh Lane         ,LOVELL PARTNERSHIPS LTD                 ,143432      ,10-May-18,712093.43,0,Works                         
Borough Council of Kings Lynn and West Norfolk,E07000146,30/06/18,Phase 1-Lynnsport 3-Contractor,LOVELL PARTNERSHIPS LTD                 ,143432      ,18-Jun-18,88876.24,0,Works                         
Borough Council of Kings Lynn and West Norfolk,E07000146,30/06/18,DMLC - Chemical Storage Tank  ,STERLING HYDROTECH LTD                  ,137682      ,30-Apr-18,8940,0,Works                         
Borough Council of Kings Lynn and West Norfolk,E07000146,30/06/18,DMLC - Chemical Storage Tank  ,STERLING HYDROTECH LTD                  ,137682      ,30-Apr-18,856,0,Works                         
Borough Council of Kings Lynn and West Norfolk,E07000146,30/06/18,Planning & Regen - Legal Com  ,NORTH NORFOLK DISTRICT COUNCIL          ,101156      ,03-May-18,900,0,Commissioning Ext. Legal fees 
Borough Council of Kings Lynn and West Norfolk,E07000146,30/06/18,King's Court - DWP Specific   ,E AKERS                                 ,100500      ,30-Apr-18,800,0,Equipment/Materials           
Borough Council of Kings Lynn and West Norfolk,E07000146,30/06/18,50302                         ,ROYAL MAIL GROUP LTD                    ,101369      ,26-Apr-18,2386.38,0,Postages                      
Borough Council of Kings Lynn and West Norfolk,E07000146,30/06/18,Financial Services            ,ROYAL MAIL GROUP LTD                    ,101369      ,26-Apr-18,2386.38,0,Postages                      
Borough Council of Kings Lynn and West Norfolk,E07000146,30/06/18,Benefit Administration        ,ROYAL MAIL GROUP LTD                    ,101369      ,26-Apr-18,572.06,0,Postages                      
Borough Council of Kings Lynn and West Norfolk,E07000146,30/06/18,Cost of Collection - CTax     ,ROYAL MAIL GROUP LTD                    ,101369      ,26-Apr-18,1153.84,0,Postages                      
Borough Council of Kings Lynn and West Norfolk,E07000146,30/06/18,Benefit Administration        ,ROYAL MAIL GROUP LTD                    ,101369      ,21-May-18,510.06,0,Postages                      
Borough Council of Kings Lynn and West Norfolk,E07000146,30/06/18,Nora Phase 4                  ,P J THORY LTD                           ,147239      ,02-Jul-18,17533.5,0,Works                         
Borough Council of Kings Lynn and West Norfolk,E07000146,30/06/18,Precepts Of Parish Councils   ,BRANCASTER PARISH COUNCIL               ,100209      ,12-Apr-18,14901,0,Parishes                      
Borough Council of Kings Lynn and West Norfolk,E07000146,30/06/18,Kings Court Kings Lynn        ,CHUBB FIRE & SECURITY LTD               ,100324      ,21-May-18,1035.83,0,Maintenance Contracts         
Borough Council of Kings Lynn and West Norfolk,E07000146,30/06/18,Precepts Of Parish Councils   ,CLENCHWARTON PARISH COUNCIL             ,100348      ,12-Apr-18,41500,0,Parishes                      
Borough Council of Kings Lynn and West Norfolk,E07000146,30/06/18,Special Expenses              ,CLENCHWARTON PARISH COUNCIL             ,100348      ,12-Apr-18,1016,0,Special Expenses Credit       
Borough Council of Kings Lynn and West Norfolk,E07000146,30/06/18,Housing Joint Venture Phase 2 ,EARTH ANCHORS LTD                       ,100508      ,03-May-18,1152,0,Equipment/Materials           
Borough Council of Kings Lynn and West Norfolk,E07000146,30/06/18,Precepts Of Parish Councils   ,EAST WINCH & WEST BILNEY PARISH CNCL    ,100519      ,12-Apr-18,12500,0,Parishes                      
Borough Council of Kings Lynn and West Norfolk,E07000146,30/06/18,Precepts Of Parish Councils   ,MANEA & WELNEY  DIST DRAINAGE COMMRS    ,101000      ,25-Jun-18,9388.5,0,Drainage Boards               
Borough Council of Kings Lynn and West Norfolk,E07000146,30/06/18,Precepts Of Parish Councils   ,NORTHWOLD PARISH COUNCIL                ,101164      ,12-Apr-18,18135,0,Parishes                      
Borough Council of Kings Lynn and West Norfolk,E07000146,30/06/18,Precepts Of Parish Councils   ,ROYDON PARISH COUNCIL                   ,101371      ,12-Apr-18,5000,0,Parishes                      
Borough Council of Kings Lynn and West Norfolk,E07000146,30/06/18,Townscape Heritage Initiative ,RUSSEN & TURNER                         ,101379      ,12-Apr-18,814.21,0,THI Critical Grant Projects   
Borough Council of Kings Lynn and West Norfolk,E07000146,30/06/18,Precepts Of Parish Councils   ,WRETTON PARISH COUNCIL                  ,101672      ,12-Apr-18,4500,0,Parishes                      
Borough Council of Kings Lynn and West Norfolk,E07000146,30/06/18,MNP HLF Project               ,NORFOLK WILDLIFE SERVICES LTD           ,110112      ,14-May-18,652.01,0,Project Costs                 
Borough Council of Kings Lynn and West Norfolk,E07000146,30/06/18,Housing Options Programme     ,THE INCOM GROUP                         ,116830      ,26-Apr-18,619.96,0,Homelessness Prevention Fund  
Borough Council of Kings Lynn and West Norfolk,E07000146,30/06/18,Improving Attainment          ,ST MARTHAS RC VA PRIMARY SCHOOL         ,118783      ,18-Jun-18,866.66,0,Small Projects                
Borough Council of Kings Lynn and West Norfolk,E07000146,30/06/18,OPE- Hunstanton Housing Sites ,FOCUS CONSULTANTS 2010 LLP              ,121748      ,19-Apr-18,2500,0,External Fees/Consultancy     
Borough Council of Kings Lynn and West Norfolk,E07000146,30/06/18,Heritage Room                 ,FOSTER PROPERTY MAINTENANCE LTD         ,124851      ,17-May-18,46366.07,0,Works                         
Borough Council of Kings Lynn and West Norfolk,E07000146,30/06/18,Austin Fields Industrial Est  ,WEAAR LTD                               ,130750      ,31-May-18,600,0,General Repairs               
Borough Council of Kings Lynn and West Norfolk,E07000146,30/06/18,ICT                           ,CTI DATA SOLUTIONS LIMITED              ,131485      ,25-Jun-18,983.16,0,Computer Hardware Maintenance 
Borough Council of Kings Lynn and West Norfolk,E07000146,30/06/18,Careline                      ,SUPRA UK LTD                            ,134960      ,21-Jun-18,1698,0,Items Purchased For Resale    
Borough Council of Kings Lynn and West Norfolk,E07000146,30/06/18,BCKLWN Debtors Control        ,JD WETHERSPOON PLC                      ,133600      ,16-May-18,1465.41,0,Control Account Ledger 4      
Borough Council of Kings Lynn and West Norfolk,E07000146,30/06/18,Air Quality                   ,ENVITECH EUROPELTD                      ,138114      ,25-Jun-18,4500,0,Servicing                     
Borough Council of Kings Lynn and West Norfolk,E07000146,30/06/18,Careline                      ,NORTHERN HOUSING CONSORTIUM             ,138130      ,26-Apr-18,1085,0,Subscriptions                 
Borough Council of Kings Lynn and West Norfolk,E07000146,30/06/18,Time Credits                  ,SPICE INNOVATIONS LTD                   ,137400      ,26-Apr-18,2000,0,Small Projects                
Borough Council of Kings Lynn and West Norfolk,E07000146,30/06/18,Adapt Grant                   ,NORFOLK STAIRLIFTS                      ,141686      ,09-Apr-18,5454,0,Works                         
Borough Council of Kings Lynn and West Norfolk,E07000146,30/06/18,Improving Attainment          ,GAYTON PRIMARY SCHOOL                   ,110720      ,21-Jun-18,866.66,0,Small Projects                
Borough Council of Kings Lynn and West Norfolk,E07000146,30/06/18,Printing & Copying - Printroom,KONICA MINOLTA BUSINESS SOLUTIONS       ,141349      ,12-Apr-18,2269.41,0,Xerox Usage                   
Borough Council of Kings Lynn and West Norfolk,E07000146,30/06/18,Precepts Of Parish Councils   ,KINGS LYNN INTERNAL DRAINAGE BOARD      ,124992      ,30-Apr-18,905514,0,Drainage Boards               
Borough Council of Kings Lynn and West Norfolk,E07000146,30/06/18,Supplier Holding Account      ,NORTH STREET TYRES                      ,119959      ,11-Jun-18,2473.54,0,Materials                     
Borough Council of Kings Lynn and West Norfolk,E07000146,30/06/18,Discover KL Distribution      ,LEICESTERSHIRE COUNTY COUNCIL           ,142448      ,12-Apr-18,597,0,Town guides guided walks      
Borough Council of Kings Lynn and West Norfolk,E07000146,30/06/18,Discover KL Distribution      ,BEST 4 PROMOTIONS NORFOLK               ,136650      ,26-Apr-18,1859.25,0,Discover KL Distribution      
Borough Council of Kings Lynn and West Norfolk,E07000146,30/06/18,Precepts Of Parish Councils   ,NORTH WOOTTON PARISH COUNCIL            ,101160      ,12-Apr-18,36527,0,Parishes                      
Borough Council of Kings Lynn and West Norfolk,E07000146,30/06/18,Dev & Estate Capital Receipts ,NORTH WOOTTON PARISH COUNCIL            ,101160      ,14-Jun-18,3666.66,0,Income                        
Borough Council of Kings Lynn and West Norfolk,E07000146,30/06/18,31006                         ,MORTON & HALL CONSULTING LIMITED        ,131054      ,21-Jun-18,610,0,Agency                        
Borough Council of Kings Lynn and West Norfolk,E07000146,30/06/18,Care & Repair - Fenland Agency,MORTON & HALL CONSULTING LIMITED        ,131054      ,21-Jun-18,610,0,Agency                        
Borough Council of Kings Lynn and West Norfolk,E07000146,30/06/18,Community Infrastructure Levy ,DOWNHAM MARKET TOWN COUNCIL             ,127774      ,26-Apr-18,1941.18,0,Payment to Parishes           
Borough Council of Kings Lynn and West Norfolk,E07000146,30/06/18,Supplier Holding Account      ,LAWN BOY (FARM SERVICES)                ,100919      ,24-May-18,2793.81,0,Materials                     
Borough Council of Kings Lynn and West Norfolk,E07000146,30/06/18,Supplier Holding Account      ,LAWN BOY (FARM SERVICES)                ,100919      ,25-Jun-18,1420.27,0,Materials                     
Borough Council of Kings Lynn and West Norfolk,E07000146,30/06/18,Precepts Of Parish Councils   ,MIDDLE LEVEL COMMISSIONERS              ,101053      ,28-May-18,101797,0,Drainage Boards               
Borough Council of Kings Lynn and West Norfolk,E07000146,30/06/18,MHP HLF Project               ,BARCHAM TREES PLC                       ,100144      ,28-Jun-18,1550.31,0,Works                         
Borough Council of Kings Lynn and West Norfolk,E07000146,30/06/18,Nora Phase 4                  ,MIDDLETON AGGREGATES LTD                ,101054      ,31-May-18,950,0,Works                         
Borough Council of Kings Lynn and West Norfolk,E07000146,30/06/18,Air Quality                   ,G BROUGHTON                             ,143029      ,21-Jun-18,1000,0,Tools And Equipment           
Borough Council of Kings Lynn and West Norfolk,E07000146,30/06/18,Kings Court Kings Lynn        ,SITE SOLUTIONS (TD) LTD                 ,143269      ,04-Jun-18,3513.74,0,General Repairs               
Borough Council of Kings Lynn and West Norfolk,E07000146,30/06/18,Planning Policy               ,NORWICH CITY COUNCIL                    ,101166      ,24-May-18,10000,0,Professional Fees             
Borough Council of Kings Lynn and West Norfolk,E07000146,30/06/18,Corn Exc -Pit Lift Brakes Repl,CAMTRAK (UK) LTD                        ,143370      ,21-May-18,3222.15,0,Works                         
Borough Council of Kings Lynn and West Norfolk,E07000146,30/06/18,Corporate                     ,REDCENTRIC SOLUTIONS LTD                ,143387      ,04-Jun-18,1870,0,Miscellaneous                 
Borough Council of Kings Lynn and West Norfolk,E07000146,30/06/18,Handyperson Scheme Kings Lynn ,A SMITH CONTRACTORS                     ,115351      ,07-May-18,525,0,Contractor Payments           
Borough Council of Kings Lynn and West Norfolk,E07000146,30/06/18,Special Expenses              ,SOUTHERY PARISH COUNCIL                 ,101452      ,12-Apr-18,525,0,Special Expenses Credit       
Borough Council of Kings Lynn and West Norfolk,E07000146,30/06/18,Precepts Of Parish Councils   ,SOUTHERY PARISH COUNCIL                 ,101452      ,12-Apr-18,22000,0,Parishes                      
Borough Council of Kings Lynn and West Norfolk,E07000146,30/06/18,Purfleet Floating Restaurant  ,CW INDUSTRIAL PARTS LTD T/A CW GROUP    ,100271      ,25-Jun-18,15528,0,Works                         
Borough Council of Kings Lynn and West Norfolk,E07000146,30/06/18,ICT                           ,TECTRADE COMPUTERS LIMITED              ,123794      ,09-Apr-18,4129,0,Computer Hardware Maintenance 
Borough Council of Kings Lynn and West Norfolk,E07000146,30/06/18,50121                         ,DISABLED ENABLED LTD                    ,144157      ,25-Jun-18,500,0,E-learning                    
Borough Council of Kings Lynn and West Norfolk,E07000146,30/06/18,Personnel Services            ,DISABLED ENABLED LTD                    ,144157      ,25-Jun-18,500,0,E-learning                    
Borough Council of Kings Lynn and West Norfolk,E07000146,30/06/18,Freedom of the Boro           ,N P S S SECURITY SERVICES               ,144185      ,24-May-18,760.5,0,Miscellaneous                 
Borough Council of Kings Lynn and West Norfolk,E07000146,30/06/18,Precepts Of Parish Councils   ,SEDGEFORD PARISH COUNCIL                ,101408      ,12-Apr-18,8757,0,Parishes                      
Borough Council of Kings Lynn and West Norfolk,E07000146,30/06/18,Precepts Of Parish Councils   ,CONGHAM PARISH COUNCIL                  ,100382      ,12-Apr-18,5800,0,Parishes                      
Borough Council of Kings Lynn and West Norfolk,E07000146,30/06/18,Radio Phones                  ,DIRECT COMMUNICATIONS RADIO SERVICES LTD,121188      ,28-Jun-18,2188,0,Maint Plant & Equip           
Borough Council of Kings Lynn and West Norfolk,E07000146,30/06/18,Radio Phones                  ,DIRECT COMMUNICATIONS RADIO SERVICES LTD,121188      ,28-Jun-18,900,0,Maint Plant & Equip           
Borough Council of Kings Lynn and West Norfolk,E07000146,30/06/18,Disabled Facilties Grant      ,LINDUM GROUP LTD                        ,144896      ,06-Jun-18,4142.8,0,Works                         
Borough Council of Kings Lynn and West Norfolk,E07000146,30/06/18,E-Tendering                   ,BIP SOLUTIONS LTD                       ,123489      ,30-Apr-18,6000,0,Computer Equip (Software)     
Borough Council of Kings Lynn and West Norfolk,E07000146,30/06/18,Supplier Holding Account      ,PAUL JOHNSON MTR SERVICES LTD           ,104221      ,14-Jun-18,4462.02,0,Materials                     
Borough Council of Kings Lynn and West Norfolk,E07000146,30/06/18,King's Court - DWP Specific   ,FIRE SAFETY SERVICES (UK) LTD           ,141853      ,26-Apr-18,523.2,0,Equipment/Materials           
Borough Council of Kings Lynn and West Norfolk,E07000146,30/06/18,ICT                           ,BYTES SOFTWARE SERVICES LTD             ,145245      ,31-May-18,1081.89,0,Computer Hardware Maintenance 
Borough Council of Kings Lynn and West Norfolk,E07000146,30/06/18,ICT                           ,BYTES SOFTWARE SERVICES LTD             ,145245      ,31-May-18,503.82,0,Computer Hardware Maintenance 
Borough Council of Kings Lynn and West Norfolk,E07000146,30/06/18,ICT                           ,BYTES SOFTWARE SERVICES LTD             ,145245      ,31-May-18,1038.06,0,Computer Hardware Maintenance 
Borough Council of Kings Lynn and West Norfolk,E07000146,30/06/18,Crematorium Trading AC        ,F G MARSHALL LTD                        ,100603      ,02-Jul-18,648.27,0,Book Of Remembrance Costs     
Borough Council of Kings Lynn and West Norfolk,E07000146,30/06/18,CCTV Breckland                ,OPENVIEW SECURITY SOLUTIONS LTD         ,145424      ,25-Jun-18,9250.2,0,Maint Plant & Equip           
Borough Council of Kings Lynn and West Norfolk,E07000146,30/06/18,CCTV                          ,OPENVIEW SECURITY SOLUTIONS LTD         ,145424      ,25-Jun-18,6166.8,0,Maint Plant & Equip           
Borough Council of Kings Lynn and West Norfolk,E07000146,30/06/18,Care & Repair - Home Impro Agy,DAVID TRUNDLEY DESIGN SERVS LTD         ,103063      ,07-Jun-18,595,0,Agency                        
Borough Council of Kings Lynn and West Norfolk,E07000146,30/06/18,Electricity Direct Recharge Ac,BRITISH GAS BUSINESS                    ,100216      ,03-May-18,10612.26,0,Electricity Bulk Billing      
Borough Council of Kings Lynn and West Norfolk,E07000146,30/06/18,Townscape Heritage Initiative ,W SPICE BUILDING LTD                    ,145648      ,26-Apr-18,100000,0,THI Critical Grant Projects   
Borough Council of Kings Lynn and West Norfolk,E07000146,30/06/18,Careline-Replacement Alarm Uni,TUNSTALL HEALTHCARE (UK) LTD            ,101569      ,21-Jun-18,9400,0,Equipment/Materials           
Borough Council of Kings Lynn and West Norfolk,E07000146,30/06/18,Parking Operations - Borough  ,LOOMIS UK LTD                           ,140581      ,11-Jun-18,969.22,0,Security Services Charge      
Borough Council of Kings Lynn and West Norfolk,E07000146,30/06/18,Leisure Management Costs      ,LOOMIS UK LTD                           ,140581      ,11-Jun-18,540.94,0,Security Services Charge      
Borough Council of Kings Lynn and West Norfolk,E07000146,30/06/18,Parking Operations - Borough  ,METRIC GROUP LTD                        ,101041      ,03-May-18,3294,0,Cost of Crime                 
Borough Council of Kings Lynn and West Norfolk,E07000146,30/06/18,Disabled Facilties Grant      ,GASWISE SERVICES LTD.                   ,100677      ,30-Apr-18,2797.63,0,Works                         
Borough Council of Kings Lynn and West Norfolk,E07000146,30/06/18,Disabled Facilties Grant      ,GASWISE SERVICES LTD.                   ,100677      ,18-Jun-18,2898.15,0,Works                         
Borough Council of Kings Lynn and West Norfolk,E07000146,30/06/18,Postage Services Kings Court  ,POSTAGE BY PHONE                        ,101299      ,25-Jun-18,1000,0,Postages                      
Borough Council of Kings Lynn and West Norfolk,E07000146,30/06/18,Postage Services Kings Court  ,POSTAGE BY PHONE                        ,101299      ,25-Jun-18,1000,0,Postages                      
Borough Council of Kings Lynn and West Norfolk,E07000146,30/06/18,Postage Services Kings Court  ,POSTAGE BY PHONE                        ,101299      ,28-Jun-18,1001.03,0,Postages                      
Borough Council of Kings Lynn and West Norfolk,E07000146,30/06/18,ICT                           ,ADEPT TELECOM PLC                       ,135085      ,10-May-18,1139.16,0,Communications                
Borough Council of Kings Lynn and West Norfolk,E07000146,30/06/18,Telephones                    ,ADEPT TELECOM PLC                       ,135085      ,10-May-18,704.04,0,Telephones Recharged          
Borough Council of Kings Lynn and West Norfolk,E07000146,30/06/18,Telephones                    ,ADEPT TELECOM PLC                       ,135085      ,10-May-18,3971.85,0,Telephones Recharged          
Borough Council of Kings Lynn and West Norfolk,E07000146,30/06/18,Supplier Holding Account      ,BARTRAM MOWERS LTD                      ,100158      ,26-Apr-18,1544.25,0,Materials                     
Borough Council of Kings Lynn and West Norfolk,E07000146,30/06/18,Town Hall Kings Lynn          ,CLIVEDEN CONSERVATION                   ,146680      ,17-May-18,3950,0,General Repairs               
Borough Council of Kings Lynn and West Norfolk,E07000146,30/06/18,CCTV                          ,BRITISH TELECOMMUNICATIONS PLC          ,100222      ,10-May-18,1200,0,Rental CCTV - BT              
Borough Council of Kings Lynn and West Norfolk,E07000146,30/06/18,Community Projects PDS        ,COMMUNITY ACTION NORFOLK                ,145473      ,24-May-18,8000,0,Service Level Agreements      
Borough Council of Kings Lynn and West Norfolk,E07000146,30/06/18,CCTV                          ,FOCUS SECURITY (EAST ANGLIA) LTD        ,136665      ,19-Apr-18,530,0,General Repairs               
Borough Council of Kings Lynn and West Norfolk,E07000146,30/06/18,Supplier Holding Account      ,CERTAS ENERGY T/A PACE FUELCARE         ,142805      ,21-May-18,2638.41,0,Derv.                         
Borough Council of Kings Lynn and West Norfolk,E07000146,30/06/18,BCKLWN Control Account        ,ROSSENDALES LTD                         ,101364      ,16-Apr-18,877.9,0,VAT Input (VAT Only Invoice)  
Borough Council of Kings Lynn and West Norfolk,E07000146,30/06/18,Adapt Grant                   ,CHAS D ALLFLATT LTD                     ,100315      ,24-May-18,6494.23,0,Works                         
Borough Council of Kings Lynn and West Norfolk,E07000146,30/06/18,Disabled Facilties Grant      ,CHAS D ALLFLATT LTD                     ,100315      ,25-Jun-18,3436.56,0,Works                         
Borough Council of Kings Lynn and West Norfolk,E07000146,30/06/18,ICT                           ,ADVANCED BUSINESS SOLUTIONS             ,121937      ,26-Apr-18,654.78,0,Computer Software Maintenance 
Borough Council of Kings Lynn and West Norfolk,E07000146,30/06/18,ICT                           ,ADVANCED BUSINESS SOLUTIONS             ,121937      ,26-Apr-18,16712.87,0,Computer Software Maintenance 
Borough Council of Kings Lynn and West Norfolk,E07000146,30/06/18,Townscape Heritage Initiative ,GROCOTT AND MURFIT LTD                  ,146883      ,04-Jun-18,54181.24,0,THI Critical Grant Projects   
Borough Council of Kings Lynn and West Norfolk,E07000146,30/06/18,Regis Place Unit 2-WN Vol     ,JD COOLING SYSTEMS LTD                  ,119491      ,11-Jun-18,2656,0,Repairs - Services Charges    
Borough Council of Kings Lynn and West Norfolk,E07000146,30/06/18,Market Contribution Tesco     ,RAY LINGE MARKET STALLS LTD             ,147166      ,09-Apr-18,1123,0,Works                         
Borough Council of Kings Lynn and West Norfolk,E07000146,30/06/18,Parking Operations - Borough  ,NORFOLK COUNTY COUNCIL                  ,101142      ,16-Apr-18,7052.85,0,Winter Maintenance            
Borough Council of Kings Lynn and West Norfolk,E07000146,30/06/18,HLF Activities                ,NORFOLK COUNTY COUNCIL                  ,101142      ,26-Apr-18,6959.27,0,Professional Fees             
Borough Council of Kings Lynn and West Norfolk,E07000146,30/06/18,Greenpark Avenue (Adopted NCC),NORFOLK COUNTY COUNCIL                  ,101142      ,26-Apr-18,3127,0,External Fees/Consultancy     
Borough Council of Kings Lynn and West Norfolk,E07000146,30/06/18,Community Safety              ,NORFOLK COUNTY COUNCIL                  ,101142      ,14-Jun-18,944,0,Corporate Items               
Borough Council of Kings Lynn and West Norfolk,E07000146,30/06/18,Head of Legal Services        ,NORFOLK COUNTY COUNCIL                  ,101142      ,18-Jun-18,758,0,Commissioning Ext. Legal fees 
Borough Council of Kings Lynn and West Norfolk,E07000146,30/06/18,Head of Legal Services        ,NORFOLK COUNTY COUNCIL                  ,101142      ,18-Jun-18,4783.7,0,Commissioning Ext. Legal fees 
Borough Council of Kings Lynn and West Norfolk,E07000146,30/06/18,St James General Account      ,CORONA ENERGY RETAIL 4 LTD              ,131838      ,02-Jul-18,1856.7,0,Gas                           
Borough Council of Kings Lynn and West Norfolk,E07000146,30/06/18,Disabled Facilties Grant      ,T M BROWNE LTD                          ,131470      ,09-Apr-18,7521.72,0,Works                         
Borough Council of Kings Lynn and West Norfolk,E07000146,30/06/18,Adapt Grant                   ,T M BROWNE LTD                          ,131470      ,12-Apr-18,1883.35,0,Works                         
Borough Council of Kings Lynn and West Norfolk,E07000146,30/06/18,Adapt Grant                   ,T M BROWNE LTD                          ,131470      ,14-Jun-18,3384.96,0,Works                         
Borough Council of Kings Lynn and West Norfolk,E07000146,30/06/18,KL Arts Centre                ,ALIVE MANAGEMENT LTD                    ,143925      ,03-May-18,600,0,Cleaning Materials & Equipment
Borough Council of Kings Lynn and West Norfolk,E07000146,30/06/18,Corn Exchange                 ,ALIVE MANAGEMENT LTD                    ,143925      ,28-Jun-18,1204.83,0,Recharge Maint (Fr AML A910)  
Borough Council of Kings Lynn and West Norfolk,E07000146,30/06/18,Lynnsport General Account     ,ALIVE MANAGEMENT LTD                    ,143925      ,28-Jun-18,20322.49,0,Recharge Maint (Fr AML A910)  
Borough Council of Kings Lynn and West Norfolk,E07000146,30/06/18,Oasis General Account         ,ALIVE MANAGEMENT LTD                    ,143925      ,28-Jun-18,745,0,Recharge Maint (Fr AML A910)  
Borough Council of Kings Lynn and West Norfolk,E07000146,30/06/18,Parking Operations - Borough  ,1-2 CALL DRAINAGE & GROUNDWORK LTD      ,131800      ,19-Apr-18,1325,0,Tools And Equipment           
Borough Council of Kings Lynn and West Norfolk,E07000146,30/06/18,HLF Activities                ,1-2 CALL DRAINAGE & GROUNDWORK LTD      ,131800      ,14-May-18,1560,0,Project Costs                 
Borough Council of Kings Lynn and West Norfolk,E07000146,30/06/18,Open Cemeteries               ,1-2 CALL DRAINAGE & GROUNDWORK LTD      ,131800      ,25-Jun-18,1550,0,General Repairs               
Borough Council of Kings Lynn and West Norfolk,E07000146,30/06/18,NORA                          ,NETWORK RAIL INFRASTRUCTURE LTD         ,147073      ,28-Jun-18,1391.26,0,External Fees/Consultancy     
Borough Council of Kings Lynn and West Norfolk,E07000146,30/06/18,GX11 CGE (STREETS)            ,JOHNSTON SWEEPERS LTD                   ,121881      ,28-Jun-18,972.4,0,Contract Repairs              
Borough Council of Kings Lynn and West Norfolk,E07000146,30/06/18,Register of Electors          ,HAVAS PEOPLE LIMITED                    ,100966      ,09-Apr-18,1741.83,0,Recruitment                   
Borough Council of Kings Lynn and West Norfolk,E07000146,30/06/18,Food Hygiene/H&S Sals/Sup cost,HAVAS PEOPLE LIMITED                    ,100966      ,18-Jun-18,2386.48,0,Recruitment                   
Borough Council of Kings Lynn and West Norfolk,E07000146,30/06/18,Kings Lynn Bid                ,KINGS LYNN BID GROUP                    ,141482      ,12-Apr-18,164074.2,0,Agency                        
Borough Council of Kings Lynn and West Norfolk,E07000146,30/06/18,Public Conveniences           ,MARATHON SERVICES LIMITED               ,101003      ,09-Apr-18,695,0,General Repairs               
Borough Council of Kings Lynn and West Norfolk,E07000146,30/06/18,Public Conveniences           ,MARATHON SERVICES LIMITED               ,101003      ,09-Apr-18,551,0,General Repairs               
Borough Council of Kings Lynn and West Norfolk,E07000146,30/06/18,NEWS Depot                    ,MARATHON SERVICES LIMITED               ,101003      ,10-May-18,1477.83,0,Contract Cleaning             
Borough Council of Kings Lynn and West Norfolk,E07000146,30/06/18,NEWS Depot                    ,MARATHON SERVICES LIMITED               ,101003      ,11-Jun-18,1555.63,0,Contract Cleaning             
Borough Council of Kings Lynn and West Norfolk,E07000146,30/06/18,Resort Seafront               ,PENTY CONTRACTORS LTD                   ,101244      ,31-May-18,1830,0,General Repairs               
Borough Council of Kings Lynn and West Norfolk,E07000146,30/06/18,Heritage Room                 ,G C BAXTER & ASSOCIATES LTD             ,105203      ,24-May-18,511,0,External Fees/Consultancy     
Borough Council of Kings Lynn and West Norfolk,E07000146,30/06/18,Phase 1 -  Marsh Lane         ,LOVELL PARTNERSHIPS LTD                 ,143432      ,19-Apr-18,14773.18,0,Works                         
Borough Council of Kings Lynn and West Norfolk,E07000146,30/06/18,Phase 1 -  Marsh Lane         ,LOVELL PARTNERSHIPS LTD                 ,143432      ,14-Jun-18,725451.49,0,Works                         
Borough Council of Kings Lynn and West Norfolk,E07000146,30/06/18,Domestic Refuse               ,KIER SERVICES ENVIRONMENTAL             ,141535      ,11-Jun-18,2210.26,0,Delivery/Carriage Charge      
Borough Council of Kings Lynn and West Norfolk,E07000146,30/06/18,Major Hous: Add Lynnsprt Works,C G GODFREY LIMITED                     ,101717      ,09-Apr-18,2160,0,Works                         
Borough Council of Kings Lynn and West Norfolk,E07000146,30/06/18,Princess Theatre              ,C G GODFREY LIMITED                     ,101717      ,25-Jun-18,5693.09,0,Other                         
Borough Council of Kings Lynn and West Norfolk,E07000146,30/06/18,NNDC Carpark Operation        ,BEMROSE BOOTH PARAGON LTD               ,119101      ,26-Apr-18,1001.25,0,Stationery & Office Supplies  
Borough Council of Kings Lynn and West Norfolk,E07000146,30/06/18,Parking Operations - Borough  ,BEMROSE BOOTH PARAGON LTD               ,119101      ,02-Jul-18,1300,0,Tools And Equipment           
Borough Council of Kings Lynn and West Norfolk,E07000146,30/06/18,Cost of Collection - CTax     ,ROYAL MAIL GROUP LTD                    ,101369      ,25-Jun-18,1462.99,0,Postages                      
Borough Council of Kings Lynn and West Norfolk,E07000146,30/06/18,50302                         ,ROYAL MAIL GROUP LTD                    ,101369      ,25-Jun-18,1098.4,0,Postages                      
Borough Council of Kings Lynn and West Norfolk,E07000146,30/06/18,Financial Services            ,ROYAL MAIL GROUP LTD                    ,101369      ,25-Jun-18,1098.4,0,Postages                      
Borough Council of Kings Lynn and West Norfolk,E07000146,30/06/18,BCKLWN Control Account        ,M CLARK                                 ,147216      ,30-Apr-18,626,0,VAT Output                    
Borough Council of Kings Lynn and West Norfolk,E07000146,30/06/18,KL Arts Centre                ,M CLARK                                 ,147216      ,30-Apr-18,3130,0,Hirings Ticketed              
Borough Council of Kings Lynn and West Norfolk,E07000146,30/06/18,Townscape Heritage Initiative ,UNIQ DEVELOPMENTS LTD                   ,147246      ,28-May-18,7074,0,THI Priority Grant Projects   
Borough Council of Kings Lynn and West Norfolk,E07000146,30/06/18,Precepts Of Parish Councils   ,BOUGHTON PARISH COUNCIL                 ,100201      ,12-Apr-18,3130,0,Parishes                      
Borough Council of Kings Lynn and West Norfolk,E07000146,30/06/18,Printing&Copying-Floor Copiers,CAPITA BUSINESS SERVICES LTD            ,100288      ,07-Jun-18,2005.75,0,Other Machine Lease           
Borough Council of Kings Lynn and West Norfolk,E07000146,30/06/18,Resort Seafront               ,D SAYERS                                ,100428      ,16-Apr-18,1150,0,General Repairs               
Borough Council of Kings Lynn and West Norfolk,E07000146,30/06/18,Resort Trading Operations     ,D SAYERS                                ,100428      ,16-Apr-18,3400,0,Internal Decorations          
Borough Council of Kings Lynn and West Norfolk,E07000146,30/06/18,Precepts Of Parish Councils   ,DOCKING PARISH COUNCIL                  ,100471      ,12-Apr-18,13000,0,Parishes                      
Borough Council of Kings Lynn and West Norfolk,E07000146,30/06/18,Sports Grounds North          ,LE STRANGE ESTATE                       ,100920      ,09-Apr-18,1750,0,Rent                          
Borough Council of Kings Lynn and West Norfolk,E07000146,30/06/18,Precepts Of Parish Councils   ,HOCKWOLD PARISH COUNCIL                 ,100780      ,12-Apr-18,16775,0,Parishes                      
Borough Council of Kings Lynn and West Norfolk,E07000146,30/06/18,Precepts Of Parish Councils   ,WATLINGTON PARISH COUNCIL               ,101622      ,12-Apr-18,51625,0,Parishes                      
Borough Council of Kings Lynn and West Norfolk,E07000146,30/06/18,Special Expenses              ,WATLINGTON PARISH COUNCIL               ,101622      ,12-Apr-18,1030,0,Special Expenses Credit       
Borough Council of Kings Lynn and West Norfolk,E07000146,30/06/18,Precepts Of Parish Councils   ,UPWELL INTERNAL DRAINAGE BOARD          ,101587      ,25-Jun-18,13479,0,Drainage Boards               
Borough Council of Kings Lynn and West Norfolk,E07000146,30/06/18,Playareas Kings Lynn          ,FENLAND LEISURE PRODUCTS LTD            ,117418      ,16-Apr-18,1063.58,0,Play Area Maintenance         
Borough Council of Kings Lynn and West Norfolk,E07000146,30/06/18,Discover KL Distribution      ,BARNWELL PRINT LTD                      ,116990      ,12-Apr-18,1400,0,Discover Kings Lynn           
Borough Council of Kings Lynn and West Norfolk,E07000146,30/06/18,Day visitor awareness         ,BARNWELL PRINT LTD                      ,116990      ,12-Apr-18,9383,0,Where to go & What to do      
Borough Council of Kings Lynn and West Norfolk,E07000146,30/06/18,Port Health - Env Protection  ,FENLAND COUNCIL                         ,118303      ,02-May-18,641,0,Miscellaneous                 
Borough Council of Kings Lynn and West Norfolk,E07000146,30/06/18,Green Bins/Recycling          ,SSI SCHAEFER LIMITED                    ,123743      ,21-May-18,15006,0,Equipment/Materials           
Borough Council of Kings Lynn and West Norfolk,E07000146,30/06/18,MHP HLF Project               ,S C H (SUPPLIES) LTD                    ,131304      ,14-Jun-18,2675,0,Equipment/Materials           
Borough Council of Kings Lynn and West Norfolk,E07000146,30/06/18,Careline                      ,SUPRA UK LTD                            ,134960      ,28-May-18,1698,0,Items Purchased For Resale    
Borough Council of Kings Lynn and West Norfolk,E07000146,30/06/18,Housing Options Programme     ,BRITTONS ESTATE AGENTS LTD              ,133666      ,24-May-18,850,0,Homelessness Prevention Fund  
Borough Council of Kings Lynn and West Norfolk,E07000146,30/06/18,Salaries Oncost Account       ,EAST OF ENGLAND LGA                     ,136515      ,16-Apr-18,1360,0,Miscellaneous                 
Borough Council of Kings Lynn and West Norfolk,E07000146,30/06/18,Leisure Options               ,EAST OF ENGLAND LGA                     ,136515      ,14-Jun-18,5175,0,Professional Fees             
Borough Council of Kings Lynn and West Norfolk,E07000146,30/06/18,ICT                           ,ACCESS INTELLIGENCE MEDIA & COMM. LTD   ,136524      ,14-May-18,912.38,0,Computer Software Maintenance 
Borough Council of Kings Lynn and West Norfolk,E07000146,30/06/18,ICT                           ,ACCESS INTELLIGENCE MEDIA & COMM. LTD   ,136524      ,14-May-18,1115.08,0,Computer Software Maintenance 
Borough Council of Kings Lynn and West Norfolk,E07000146,30/06/18,ICT                           ,ACCESS INTELLIGENCE MEDIA & COMM. LTD   ,136524      ,14-May-18,861.62,0,Computer Software Maintenance 
Borough Council of Kings Lynn and West Norfolk,E07000146,30/06/18,ICT                           ,ACCESS INTELLIGENCE MEDIA & COMM. LTD   ,136524      ,14-May-18,810.92,0,Computer Software Maintenance 
Borough Council of Kings Lynn and West Norfolk,E07000146,30/06/18,Building Control - Non Fee    ,CNC BUILDING CONTROL                    ,137497      ,26-Apr-18,17299.25,0,Agency                        
Borough Council of Kings Lynn and West Norfolk,E07000146,30/06/18,Tek- Main                     ,TRAFFIC ENFORCEMENT CENTRE              ,139856      ,24-May-18,10000,0,Tek Fund                      
Borough Council of Kings Lynn and West Norfolk,E07000146,30/06/18,Community Infrastructure Levy ,HOCKWOLD-CUM-WILTON VILLAGE HALL        ,140059      ,25-Apr-18,540,0,Payment to Parishes           
Borough Council of Kings Lynn and West Norfolk,E07000146,30/06/18,Parking Operations - Borough  ,DOWNHAM DOOR SERVICES                   ,100481      ,28-Jun-18,1880,0,Gen Rep St James              
Borough Council of Kings Lynn and West Norfolk,E07000146,30/06/18,Hunstanton Marketing          ,LEICESTERSHIRE COUNTY COUNCIL           ,142448      ,19-Apr-18,1460,0,Hunstanton mini guide         
Borough Council of Kings Lynn and West Norfolk,E07000146,30/06/18,Decrim - Operational          ,PATROL                                  ,139511      ,10-May-18,897.05,0,Miscellaneous                 
Borough Council of Kings Lynn and West Norfolk,E07000146,30/06/18,Housing Options Programme     ,WILLIAM H BROWN                         ,127708      ,28-May-18,825,0,Homelessness Prevention Fund  
Borough Council of Kings Lynn and West Norfolk,E07000146,30/06/18,CCTV                          ,NET-CTRL LTD                            ,142211      ,23-Apr-18,706,0,Tools And Equipment           
Borough Council of Kings Lynn and West Norfolk,E07000146,30/06/18,Councillors' Allowances & Exps,LOCAL GOVERNMENT ASSOCIATION            ,101774      ,03-May-18,545,0,Conferences                   
Borough Council of Kings Lynn and West Norfolk,E07000146,30/06/18,Councillors' Allowances & Exps,LOCAL GOVERNMENT ASSOCIATION            ,101774      ,03-May-18,545,0,Conferences                   
Borough Council of Kings Lynn and West Norfolk,E07000146,30/06/18,Mintlyn Crematorium           ,TELESHORE (UK) LTD                      ,119322      ,28-Jun-18,768,0,Tools And Equipment           
Borough Council of Kings Lynn and West Norfolk,E07000146,30/06/18,Learning Catalyst             ,WEST WALTON EXTENDED SCHOOLS            ,133897      ,12-Apr-18,944.51,0,Partnerships                  
Borough Council of Kings Lynn and West Norfolk,E07000146,30/06/18,Precepts Of Parish Councils   ,NEEDHAM AND LADDUS IDB                  ,101106      ,28-May-18,9544.5,0,Drainage Boards               
Borough Council of Kings Lynn and West Norfolk,E07000146,30/06/18,Town Hall Kings Lynn          ,D M ALCOTT                              ,138970      ,09-Apr-18,1545,0,Maintenance Contracts         
Borough Council of Kings Lynn and West Norfolk,E07000146,30/06/18,Equipment                     ,THOMPSON FORKTRUCK SERVICES LTD         ,101544      ,09-Apr-18,746.9,0,Contract Repairs              
Borough Council of Kings Lynn and West Norfolk,E07000146,30/06/18,Precepts Of Parish Councils   ,GRIMSTON PARISH COUNCIL                 ,100720      ,12-Apr-18,19679,0,Parishes                      
Borough Council of Kings Lynn and West Norfolk,E07000146,30/06/18,One Public Estate             ,SLR CONSULTING LTD                      ,128730      ,04-Jun-18,1200,0,Professional Fees             
Borough Council of Kings Lynn and West Norfolk,E07000146,30/06/18,HLF Activities                ,KL PUBLICATIONS LTD                     ,137190      ,09-Apr-18,576,0,Advertising                   
Borough Council of Kings Lynn and West Norfolk,E07000146,30/06/18,Adapt Grant                   ,A SMITH CONTRACTORS                     ,115351      ,07-Jun-18,885,0,Works                         
Borough Council of Kings Lynn and West Norfolk,E07000146,30/06/18,Emergency Repair Grant        ,TURNER CONTRACTING LTD                  ,125613      ,31-May-18,1496.4,0,Works                         
Borough Council of Kings Lynn and West Norfolk,E07000146,30/06/18,Special Expenses              ,SOUTH WOOTTON PARISH COUNCIL            ,101450      ,12-Apr-18,605,0,Special Expenses Credit       
Borough Council of Kings Lynn and West Norfolk,E07000146,30/06/18,Precepts Of Parish Councils   ,SOUTH WOOTTON PARISH COUNCIL            ,101450      ,12-Apr-18,94230,0,Parishes                      
Borough Council of Kings Lynn and West Norfolk,E07000146,30/06/18,Community Infrastructure Levy ,SOUTH WOOTTON PARISH COUNCIL            ,101450      ,26-Apr-18,10061.25,0,Payment to Parishes           
Borough Council of Kings Lynn and West Norfolk,E07000146,30/06/18,Housing Options Programme     ,BELTON & DUFFEY                         ,124246      ,25-Jun-18,675,0,Homelessness Prevention Fund  
Borough Council of Kings Lynn and West Norfolk,E07000146,30/06/18,Community Safety              ,MALLARD CONSULTANCY LTD.                ,117177      ,17-May-18,990,0,Corporate Items               
Borough Council of Kings Lynn and West Norfolk,E07000146,30/06/18,Event 8                       ,MORTONS MEDIA GROUP                     ,144153      ,11-Jun-18,750,0,Advertising                   
Borough Council of Kings Lynn and West Norfolk,E07000146,30/06/18,Precepts Of Parish Councils   ,BURNHAM OVERY PARISH COUNCIL            ,100250      ,12-Apr-18,6418.65,0,Parishes                      
Borough Council of Kings Lynn and West Norfolk,E07000146,30/06/18,Precepts Of Parish Councils   ,WEST ACRE PARISH COUNCIL                ,101634      ,12-Apr-18,750,0,Parishes                      
Borough Council of Kings Lynn and West Norfolk,E07000146,30/06/18,Precepts Of Parish Councils   ,WEST DEREHAM PARISH COUNCIL             ,101635      ,12-Apr-18,16995.84,0,Parishes                      
Borough Council of Kings Lynn and West Norfolk,E07000146,30/06/18,Project Mmgt / Marketing      ,NEES LTD                                ,144715      ,03-May-18,1060,0,Repair and Conservation       
Borough Council of Kings Lynn and West Norfolk,E07000146,30/06/18,Precepts Of Parish Councils   ,STANHOE PARISH COUNCIL                  ,101478      ,12-Apr-18,6500,0,Parishes                      
Borough Council of Kings Lynn and West Norfolk,E07000146,30/06/18,Recycling Reward Scheme       ,LOCAL GREEN POINTS LLP                  ,145082      ,26-Apr-18,6000.33,0,Small Projects                
Borough Council of Kings Lynn and West Norfolk,E07000146,30/06/18,Public Cleansing              ,ECO REMOVAL SYSTEM                      ,145406      ,26-Apr-18,2995,0,Tools And Equipment           
Borough Council of Kings Lynn and West Norfolk,E07000146,30/06/18,NORA                          ,MOTT MACDONALD LIMITED                  ,101083      ,21-Jun-18,2507.4,0,External Fees/Consultancy     
Borough Council of Kings Lynn and West Norfolk,E07000146,30/06/18,Parking Operations - Borough  ,OWENS DIY LTD                           ,101205      ,28-Jun-18,525,0,Gen Rep Hunstanton            
Borough Council of Kings Lynn and West Norfolk,E07000146,30/06/18,Dev & Estate Capital Receipts ,DAVID TRUNDLEY DESIGN SERVS LTD         ,103063      ,14-Jun-18,1028.4,0,Disposal Cost Planning Fees   
Borough Council of Kings Lynn and West Norfolk,E07000146,30/06/18,Enforcement                   ,MR TIMOTHY LEADER                       ,143485      ,31-May-18,2000,0,Direct Action Fees            
Borough Council of Kings Lynn and West Norfolk,E07000146,30/06/18,Mintlyn Crematorium           ,FACULTATIEVE TECHNOLOGIESLTD            ,125759      ,14-May-18,6894.18,0,Maintenance Contracts         
Borough Council of Kings Lynn and West Norfolk,E07000146,30/06/18,Care & Repair - Home Impro Agy,SEVEN RESOURCING LTD                    ,145043      ,24-May-18,1014.18,0,Agency Staff                  
Borough Council of Kings Lynn and West Norfolk,E07000146,30/06/18,Domestic Refuse               ,NORSE ENVIRONMENTAL WASTE SVCS          ,102093      ,26-Apr-18,30261.42,0,Waste Processing Cost         
Borough Council of Kings Lynn and West Norfolk,E07000146,30/06/18,Dry Box Collection Scheme     ,NORSE ENVIRONMENTAL WASTE SVCS          ,102093      ,24-May-18,23730.35,0,Waste Processing Cost         
Borough Council of Kings Lynn and West Norfolk,E07000146,30/06/18,Dry Box Collection Scheme     ,NORSE ENVIRONMENTAL WASTE SVCS          ,102093      ,28-Jun-18,23209.5,0,Waste Processing Cost         
Borough Council of Kings Lynn and West Norfolk,E07000146,30/06/18,Adapt Grant                   ,GASWISE SERVICES LTD.                   ,100677      ,16-Apr-18,3511.94,0,Works                         
Borough Council of Kings Lynn and West Norfolk,E07000146,30/06/18,Disabled Facilties Grant      ,GASWISE SERVICES LTD.                   ,100677      ,16-Apr-18,7244.99,0,Works                         
Borough Council of Kings Lynn and West Norfolk,E07000146,30/06/18,Adapt Grant                   ,GASWISE SERVICES LTD.                   ,100677      ,25-Jun-18,3869.65,0,Works                         
Borough Council of Kings Lynn and West Norfolk,E07000146,30/06/18,Postage Services Kings Court  ,POSTAGE BY PHONE                        ,101299      ,02-Jul-18,1000,0,Postages                      
Borough Council of Kings Lynn and West Norfolk,E07000146,30/06/18,Flitcham Industrial Est       ,SMITH BUILDING SERVICES LTD             ,101443      ,21-Jun-18,550,0,General Repairs               
Borough Council of Kings Lynn and West Norfolk,E07000146,30/06/18,Telephones                    ,ADEPT TELECOM PLC                       ,135085      ,11-Jun-18,3968.28,0,Telephones Recharged          
Borough Council of Kings Lynn and West Norfolk,E07000146,30/06/18,Telephones                    ,ADEPT TELECOM PLC                       ,135085      ,11-Jun-18,610.63,0,Telephones Recharged          
Borough Council of Kings Lynn and West Norfolk,E07000146,30/06/18,Supplier Holding Account      ,BARTRAM MOWERS LTD                      ,100158      ,24-May-18,505.9,0,Materials                     
Borough Council of Kings Lynn and West Norfolk,E07000146,30/06/18,Supplier Holding Account      ,BARTRAM MOWERS LTD                      ,100158      ,28-Jun-18,1706.29,0,Materials                     
Borough Council of Kings Lynn and West Norfolk,E07000146,30/06/18,North Lynn Industrial Est     ,BROWNS REMOVALS & STORAGE               ,146688      ,07-Jun-18,580,0,General Repairs               
Borough Council of Kings Lynn and West Norfolk,E07000146,30/06/18,King's Court - DWP Specific   ,EAST COAST SIGNS LTD                    ,139037      ,12-Apr-18,2225,0,Works                         
Borough Council of Kings Lynn and West Norfolk,E07000146,30/06/18,Apprenticeship Scheme         ,BEDFORD BOROUGH COUNCIL                 ,124800      ,07-Jun-18,4276,0,Apprentice Levi               
Borough Council of Kings Lynn and West Norfolk,E07000146,30/06/18,Dog Warden and Services       ,DOGOTEL KENNELS & CATTERY               ,140387      ,19-Apr-18,600,0,Contracted Services           
Borough Council of Kings Lynn and West Norfolk,E07000146,30/06/18,Dog Warden and Services       ,DOGOTEL KENNELS & CATTERY               ,140387      ,19-Apr-18,565,0,Contracted Services           
Borough Council of Kings Lynn and West Norfolk,E07000146,30/06/18,LILY PHASES 2 & 3             ,COMMUNITY ACTION NORFOLK                ,145473      ,21-May-18,962.5,0,Professional Fees             
Borough Council of Kings Lynn and West Norfolk,E07000146,30/06/18,Community Projects CRS        ,KINGS LYNN FESTIVAL LTD                 ,100877      ,26-Apr-18,2500,0,Service Level Agreements      
Borough Council of Kings Lynn and West Norfolk,E07000146,30/06/18,Community Projects CRS        ,KINGS LYNN FESTIVAL LTD                 ,100877      ,26-Apr-18,2500,0,Service Level Agreements      
Borough Council of Kings Lynn and West Norfolk,E07000146,30/06/18,Community Projects CRS        ,KINGS LYNN FESTIVAL LTD                 ,100877      ,26-Apr-18,23390,0,Service Level Agreements      
Borough Council of Kings Lynn and West Norfolk,E07000146,30/06/18,Community Projects CRS        ,KINGS LYNN FESTIVAL LTD                 ,100877      ,26-Apr-18,15000,0,Service Level Agreements      
Borough Council of Kings Lynn and West Norfolk,E07000146,30/06/18,Vehicle Recharge On Account   ,WORLDLINE IT SERVICESUK LTD RE FUELGENIE,135817      ,18-Jun-18,12448.78,0,Petrol                        
Borough Council of Kings Lynn and West Norfolk,E07000146,30/06/18,BCKLWN Control Account        ,NEWLYN PLC                              ,143655      ,14-May-18,847.61,0,VAT Input (VAT Only Invoice)  
Borough Council of Kings Lynn and West Norfolk,E07000146,30/06/18,Town Hall Kings Lynn          ,CANNON HYGIENE LIMITED                  ,146947      ,12-Apr-18,531.08,0,Maintenance Contracts         
Borough Council of Kings Lynn and West Norfolk,E07000146,30/06/18,Broad St conversion to Houses ,VINCI CONSTRUCTION UK LTD               ,146957      ,24-May-18,34264.97,0,Professional Fees             
Borough Council of Kings Lynn and West Norfolk,E07000146,30/06/18,Disabled Facilties Grant      ,CHAS D ALLFLATT LTD                     ,100315      ,31-May-18,5486.11,0,Works                         
Borough Council of Kings Lynn and West Norfolk,E07000146,30/06/18,Adapt Grant                   ,CHAS D ALLFLATT LTD                     ,100315      ,07-Jun-18,3713.77,0,Works                         
Borough Council of Kings Lynn and West Norfolk,E07000146,30/06/18,Public Health- BJF Outreach   ,BENJAMIN FOUNDATION                     ,146873      ,31-May-18,2500,0,Homelessness Prevention Fund  
Borough Council of Kings Lynn and West Norfolk,E07000146,30/06/18,DMLC - Refurb Toilets         ,JD COOLING SYSTEMS LTD                  ,119491      ,26-Apr-18,5876,0,Works                         
Borough Council of Kings Lynn and West Norfolk,E07000146,30/06/18,AE11 EUL (GROUNDS CENTRAL)    ,THURLOW NUNN STANDEN LTD                ,101547      ,14-Jun-18,784.06,0,Contract Repairs              
Borough Council of Kings Lynn and West Norfolk,E07000146,30/06/18,Parking Operations - Borough  ,PARKING AND SECURE DOCUMENTS            ,147047      ,26-Apr-18,1216,0,Tools And Equipment           
Borough Council of Kings Lynn and West Norfolk,E07000146,30/06/18,Market Contribution Tesco     ,RAY LINGE MARKET STALLS LTD             ,147166      ,09-Apr-18,1123,0,Works                         
Borough Council of Kings Lynn and West Norfolk,E07000146,30/06/18,Market Contribution Tesco     ,RAY LINGE MARKET STALLS LTD             ,147166      ,09-Apr-18,1123,0,Works                         
Borough Council of Kings Lynn and West Norfolk,E07000146,30/06/18,Community Projects CRS        ,FELLOWHOOD TOURING LTD                  ,147173      ,09-Apr-18,10000,0,Service Level Agreements      
Borough Council of Kings Lynn and West Norfolk,E07000146,30/06/18,Finance & Resource - Legal Com,NORFOLK COUNTY COUNCIL                  ,101142      ,12-Apr-18,2875,0,Commissioning Ext. Legal fees 
Borough Council of Kings Lynn and West Norfolk,E07000146,30/06/18,Greenpark Avenue (Adopted NCC),NORFOLK COUNTY COUNCIL                  ,101142      ,26-Apr-18,7965.8,0,External Fees/Consultancy     
Borough Council of Kings Lynn and West Norfolk,E07000146,30/06/18,Downham Market Sports Centre  ,CORONA ENERGY RETAIL 4 LTD              ,131838      ,21-May-18,2125.41,0,Gas                           
Borough Council of Kings Lynn and West Norfolk,E07000146,30/06/18,Mintlyn Crematorium           ,CORONA ENERGY RETAIL 4 LTD              ,131838      ,21-May-18,3633.94,0,Gas                           
Borough Council of Kings Lynn and West Norfolk,E07000146,30/06/18,St James General Account      ,CORONA ENERGY RETAIL 4 LTD              ,131838      ,21-May-18,2240.98,0,Gas                           
Borough Council of Kings Lynn and West Norfolk,E07000146,30/06/18,Corn Exchange                 ,CORONA ENERGY RETAIL 4 LTD              ,131838      ,21-Jun-18,588.57,0,Gas                           
Borough Council of Kings Lynn and West Norfolk,E07000146,30/06/18,Adapt Grant                   ,T M BROWNE LTD                          ,131470      ,12-Apr-18,2534.69,0,Works                         
Borough Council of Kings Lynn and West Norfolk,E07000146,30/06/18,Housing Standards             ,HAVAS PEOPLE LIMITED                    ,100966      ,30-Apr-18,2065.4,0,Recruitment                   
Borough Council of Kings Lynn and West Norfolk,E07000146,30/06/18,Safety and Welfare            ,HAVAS PEOPLE LIMITED                    ,100966      ,18-Jun-18,2476.64,0,Recruitment                   
Borough Council of Kings Lynn and West Norfolk,E07000146,30/06/18,Public Conveniences           ,MARATHON SERVICES LIMITED               ,101003      ,09-Apr-18,551,0,General Repairs               
Borough Council of Kings Lynn and West Norfolk,E07000146,30/06/18,Kings Court Kings Lynn        ,ADVANCED WATER TREATMENT (UK) LTD       ,136018      ,26-Apr-18,1781,0,Maint Plant & Equip           
Borough Council of Kings Lynn and West Norfolk,E07000146,30/06/18,Resort Seafront               ,PENTY CONTRACTORS LTD                   ,101244      ,24-May-18,805,0,General Repairs               
Borough Council of Kings Lynn and West Norfolk,E07000146,30/06/18,Disabled Facilties Grant      ,STANNAH LIFT SERVICES LTD               ,101479      ,28-Jun-18,2846,0,Works                         
Borough Council of Kings Lynn and West Norfolk,E07000146,30/06/18,Phase -Lynnsport 4 /5 Contract,LOVELL PARTNERSHIPS LTD                 ,143432      ,10-May-18,631556.97,0,Works                         
Borough Council of Kings Lynn and West Norfolk,E07000146,30/06/18,Domestic Refuse               ,KIER SERVICES ENVIRONMENTAL             ,141535      ,26-Apr-18,3835.41,0,Clinical & Medical Waste      
Borough Council of Kings Lynn and West Norfolk,E07000146,30/06/18,Dry Box Collection Scheme     ,KIER SERVICES ENVIRONMENTAL             ,141535      ,26-Apr-18,80882.72,0,Contracted Services           
Borough Council of Kings Lynn and West Norfolk,E07000146,30/06/18,Dry Box Collection Scheme     ,KIER SERVICES ENVIRONMENTAL             ,141535      ,26-Apr-18,3043.34,0,Contracted Services           
Borough Council of Kings Lynn and West Norfolk,E07000146,30/06/18,Recycling Composting          ,KIER SERVICES ENVIRONMENTAL             ,141535      ,26-Apr-18,31001.25,0,Contracted Services           
Borough Council of Kings Lynn and West Norfolk,E07000146,30/06/18,Domestic Refuse               ,KIER SERVICES ENVIRONMENTAL             ,141535      ,26-Apr-18,2872.97,0,Contracted Services           
Borough Council of Kings Lynn and West Norfolk,E07000146,30/06/18,Domestic Refuse               ,KIER SERVICES ENVIRONMENTAL             ,141535      ,26-Apr-18,2999.64,0,Contracted Services           
Borough Council of Kings Lynn and West Norfolk,E07000146,30/06/18,Food Waste                    ,KIER SERVICES ENVIRONMENTAL             ,141535      ,26-Apr-18,548.72,0,Contracted Services           
Borough Council of Kings Lynn and West Norfolk,E07000146,30/06/18,Domestic Refuse               ,KIER SERVICES ENVIRONMENTAL             ,141535      ,26-Apr-18,79375.42,0,Contracted Services           
Borough Council of Kings Lynn and West Norfolk,E07000146,30/06/18,Food Waste                    ,KIER SERVICES ENVIRONMENTAL             ,141535      ,26-Apr-18,29464.54,0,Contracted Services           
Borough Council of Kings Lynn and West Norfolk,E07000146,30/06/18,Food Waste                    ,KIER SERVICES ENVIRONMENTAL             ,141535      ,26-Apr-18,1839.71,0,Contracted Services           
Borough Council of Kings Lynn and West Norfolk,E07000146,30/06/18,Trade Refuse                  ,KIER SERVICES ENVIRONMENTAL             ,141535      ,26-Apr-18,9131.66,0,Contracted Services           
Borough Council of Kings Lynn and West Norfolk,E07000146,30/06/18,Food Waste                    ,KIER SERVICES ENVIRONMENTAL             ,141535      ,26-Apr-18,23186.35,0,Waste Processing Cost         
Borough Council of Kings Lynn and West Norfolk,E07000146,30/06/18,Recycling Commercial          ,KIER SERVICES ENVIRONMENTAL             ,141535      ,26-Apr-18,766.48,0,Contracted Services           
Borough Council of Kings Lynn and West Norfolk,E07000146,30/06/18,Recycling Composting          ,KIER SERVICES ENVIRONMENTAL             ,141535      ,26-Apr-18,15939.91,0,Waste Processing Cost         
Borough Council of Kings Lynn and West Norfolk,E07000146,30/06/18,Domestic Refuse               ,KIER SERVICES ENVIRONMENTAL             ,141535      ,16-Apr-18,3835.41,0,Clinical & Medical Waste      
Borough Council of Kings Lynn and West Norfolk,E07000146,30/06/18,Food Waste                    ,KIER SERVICES ENVIRONMENTAL             ,141535      ,16-Apr-18,1839.71,0,Contracted Services           
Borough Council of Kings Lynn and West Norfolk,E07000146,30/06/18,Food Waste                    ,KIER SERVICES ENVIRONMENTAL             ,141535      ,16-Apr-18,23186.35,0,Waste Processing Cost         
Borough Council of Kings Lynn and West Norfolk,E07000146,30/06/18,Recycling Composting          ,KIER SERVICES ENVIRONMENTAL             ,141535      ,16-Apr-18,15939.91,0,Waste Processing Cost         
Borough Council of Kings Lynn and West Norfolk,E07000146,30/06/18,Recycling Commercial          ,KIER SERVICES ENVIRONMENTAL             ,141535      ,16-Apr-18,766.48,0,Contracted Services           
Borough Council of Kings Lynn and West Norfolk,E07000146,30/06/18,Trade Refuse                  ,KIER SERVICES ENVIRONMENTAL             ,141535      ,16-Apr-18,9131.66,0,Contracted Services           
Borough Council of Kings Lynn and West Norfolk,E07000146,30/06/18,Recycling Composting          ,KIER SERVICES ENVIRONMENTAL             ,141535      ,16-Apr-18,31001.25,0,Contracted Services           
Borough Council of Kings Lynn and West Norfolk,E07000146,30/06/18,Domestic Refuse               ,KIER SERVICES ENVIRONMENTAL             ,141535      ,16-Apr-18,2872.97,0,Contracted Services           
Borough Council of Kings Lynn and West Norfolk,E07000146,30/06/18,Domestic Refuse               ,KIER SERVICES ENVIRONMENTAL             ,141535      ,16-Apr-18,2999.64,0,Contracted Services           
Borough Council of Kings Lynn and West Norfolk,E07000146,30/06/18,Domestic Refuse               ,KIER SERVICES ENVIRONMENTAL             ,141535      ,16-Apr-18,79375.42,0,Contracted Services           
Borough Council of Kings Lynn and West Norfolk,E07000146,30/06/18,Dry Box Collection Scheme     ,KIER SERVICES ENVIRONMENTAL             ,141535      ,16-Apr-18,3043.34,0,Contracted Services           
Borough Council of Kings Lynn and West Norfolk,E07000146,30/06/18,Food Waste                    ,KIER SERVICES ENVIRONMENTAL             ,141535      ,16-Apr-18,29464.54,0,Contracted Services           
Borough Council of Kings Lynn and West Norfolk,E07000146,30/06/18,Dry Box Collection Scheme     ,KIER SERVICES ENVIRONMENTAL             ,141535      ,16-Apr-18,80882.72,0,Contracted Services           
Borough Council of Kings Lynn and West Norfolk,E07000146,30/06/18,Food Waste                    ,KIER SERVICES ENVIRONMENTAL             ,141535      ,16-Apr-18,548.72,0,Contracted Services           
Borough Council of Kings Lynn and West Norfolk,E07000146,30/06/18,Recycling Composting          ,KIER SERVICES ENVIRONMENTAL             ,141535      ,07-Jun-18,90301.34,0,Waste Processing Cost         
Borough Council of Kings Lynn and West Norfolk,E07000146,30/06/18,King's Court - ICT Infrastruct,CORE TECHNOLOGY PROJECTS LTD            ,143597      ,26-Apr-18,690,0,Works                         
Borough Council of Kings Lynn and West Norfolk,E07000146,30/06/18,King's Court - ICT Infrastruct,CORE TECHNOLOGY PROJECTS LTD            ,143597      ,25-Jun-18,2400,0,Works                         
Borough Council of Kings Lynn and West Norfolk,E07000146,30/06/18,Planning & Regen - Legal Com  ,NORTH NORFOLK DISTRICT COUNCIL          ,101156      ,12-Apr-18,5750,0,Commissioning Ext. Legal fees 
Borough Council of Kings Lynn and West Norfolk,E07000146,30/06/18,Planning & Regen - Legal Com  ,NORTH NORFOLK DISTRICT COUNCIL          ,101156      ,03-May-18,650,0,Commissioning Ext. Legal fees 
Borough Council of Kings Lynn and West Norfolk,E07000146,30/06/18,Enforcement                   ,SPEARING WAITE                          ,147285      ,18-Jun-18,2519.9,0,Direct Action Fees            
Borough Council of Kings Lynn and West Norfolk,E07000146,30/06/18,westnorfolkwins               ,YOUR LOCAL PAPER LTD                    ,141051      ,03-May-18,1000,0,Marketing                     
Borough Council of Kings Lynn and West Norfolk,E07000146,30/06/18,Cost of Collection - CTax     ,ROYAL MAIL GROUP LTD                    ,101369      ,12-Apr-18,757.44,0,Postages                      
Borough Council of Kings Lynn and West Norfolk,E07000146,30/06/18,Careline                      ,ROYAL MAIL GROUP LTD                    ,101369      ,24-May-18,591.62,0,Postages                      
Borough Council of Kings Lynn and West Norfolk,E07000146,30/06/18,King's Court - DWP Specific   ,SEW & SEW                               ,147211      ,03-May-18,775,0,Equipment/Materials           
Borough Council of Kings Lynn and West Norfolk,E07000146,30/06/18,MHP HLF Project               ,NORFOLK RIVERS TRUST                    ,147221      ,10-May-18,7131.28,0,External Fees/Consultancy     
Borough Council of Kings Lynn and West Norfolk,E07000146,30/06/18,MHP HLF Project               ,NORFOLK RIVERS TRUST                    ,147221      ,10-May-18,3319.24,0,Works                         
Borough Council of Kings Lynn and West Norfolk,E07000146,30/06/18,YP61 LZR FORD FIESTA ECONETIC ,EAST COAST MOTOR COMPANY LTD            ,138762      ,24-May-18,996.39,0,Contract Repairs              
Borough Council of Kings Lynn and West Norfolk,E07000146,30/06/18,Cafe in the Park              ,EDEN FARM HULLEYS LTD                   ,118383      ,24-May-18,576.29,0,Purchases - Cafe Ices         
Borough Council of Kings Lynn and West Norfolk,E07000146,30/06/18,BCKLWN Control Account        ,ROSSENDALES LTD                         ,101364      ,17-May-18,1055.61,0,VAT Input (VAT Only Invoice)  
Borough Council of Kings Lynn and West Norfolk,E07000146,30/06/18,BCKLWN Control Account        ,ROSSENDALES LTD                         ,101364      ,24-May-18,1199.37,0,VAT Input (VAT Only Invoice)  
Borough Council of Kings Lynn and West Norfolk,E07000146,30/06/18,Parks & Open Spaces           ,CGM GROUP (EAST ANGLIA) LTD             ,100401      ,26-Apr-18,4607,0,General Repairs               
Borough Council of Kings Lynn and West Norfolk,E07000146,30/06/18,Commercial Services           ,BUPA                                    ,100246      ,26-Apr-18,1798.68,0,BUPA                          
Borough Council of Kings Lynn and West Norfolk,E07000146,30/06/18,Central & Community Services  ,BUPA                                    ,100246      ,26-Apr-18,1232.72,0,BUPA                          
Borough Council of Kings Lynn and West Norfolk,E07000146,30/06/18,King's Court - DWP Specific   ,CHUBB FIRE & SECURITY LTD               ,100324      ,10-May-18,597.46,0,Works                         
Borough Council of Kings Lynn and West Norfolk,E07000146,30/06/18,Corporate                     ,ERNST & YOUNG                           ,100576      ,30-Apr-18,17462,0,Audit Fee                     
Borough Council of Kings Lynn and West Norfolk,E07000146,30/06/18,Special Expenses              ,HEACHAM PARISH COUNCIL                  ,100759      ,12-Apr-18,2239,0,Special Expenses Credit       
Borough Council of Kings Lynn and West Norfolk,E07000146,30/06/18,Precepts Of Parish Councils   ,HEACHAM PARISH COUNCIL                  ,100759      ,12-Apr-18,107644,0,Parishes                      
Borough Council of Kings Lynn and West Norfolk,E07000146,30/06/18,Precepts Of Parish Councils   ,MIDDLETON PARISH COUNCIL                ,101055      ,12-Apr-18,21000,0,Parishes                      
Borough Council of Kings Lynn and West Norfolk,E07000146,30/06/18,Community Infrastructure Levy ,MARSHLAND ST JAMES PARISH CNCL          ,101012      ,26-Apr-18,2550,0,Payment to Parishes           
Borough Council of Kings Lynn and West Norfolk,E07000146,30/06/18,Precepts Of Parish Councils   ,RINGSTEAD PARISH CNCL                   ,101350      ,12-Apr-18,10000,0,Parishes                      
Borough Council of Kings Lynn and West Norfolk,E07000146,30/06/18,Precepts Of Parish Councils   ,STOW BARDOLPH PARISH COUNCIL            ,101487      ,12-Apr-18,13680,0,Parishes                      
Borough Council of Kings Lynn and West Norfolk,E07000146,30/06/18,Precepts Of Parish Councils   ,WEST RUDHAM PARISH COUNCIL              ,101640      ,12-Apr-18,3450,0,Parishes                      
Borough Council of Kings Lynn and West Norfolk,E07000146,30/06/18,Precepts Of Parish Councils   ,WALPOLE PARISH COUNCIL                  ,101610      ,12-Apr-18,16979,0,Parishes                      
Borough Council of Kings Lynn and West Norfolk,E07000146,30/06/18,Community Projects CRS        ,NORTH END TRUST                         ,101771      ,03-May-18,2545,0,Service Level Agreements      
Borough Council of Kings Lynn and West Norfolk,E07000146,30/06/18,Playareas Kings Lynn          ,FENLAND LEISURE PRODUCTS LTD            ,117418      ,09-Apr-18,2157.25,0,Play Area Maintenance         
Borough Council of Kings Lynn and West Norfolk,E07000146,30/06/18,Playareas Downham Market      ,FENLAND LEISURE PRODUCTS LTD            ,117418      ,09-Apr-18,1443.64,0,Play Area Maintenance         
Borough Council of Kings Lynn and West Norfolk,E07000146,30/06/18,Discover KL Distribution      ,BARNWELL PRINT LTD                      ,116990      ,12-Apr-18,8385,0,Discover Kings Lynn           
Borough Council of Kings Lynn and West Norfolk,E07000146,30/06/18,King's Court - Meeting Rooms  ,NATURAL INTERIORS LTD                   ,120558      ,14-Jun-18,610,0,Works                         
Borough Council of Kings Lynn and West Norfolk,E07000146,30/06/18,Nursery                       ,RUDY RAES BLOEMZADEN N.V.               ,121484      ,09-Apr-18,3835.55,0,Materials                     
Borough Council of Kings Lynn and West Norfolk,E07000146,30/06/18,Subscriptions                 ,NORTH KESTEVEN DISTRICT COUNCIL         ,121553      ,10-May-18,3002,0,Subscriptions                 
Borough Council of Kings Lynn and West Norfolk,E07000146,30/06/18,Brochure & lead generation    ,TAKE ONE MEDIA LTD                      ,121327      ,16-Apr-18,1601,0,Distribution                  
Borough Council of Kings Lynn and West Norfolk,E07000146,30/06/18,Day visitor awareness         ,TAKE ONE MEDIA LTD                      ,121327      ,31-May-18,2663.67,0,Distribution                  
Borough Council of Kings Lynn and West Norfolk,E07000146,30/06/18,Civic Functions               ,ST MARGARET'S PCC                       ,128286      ,16-Apr-18,1090,0,St Marg. Bellringers/Flowers  
Borough Council of Kings Lynn and West Norfolk,E07000146,30/06/18,The Walks                     ,ANVIL ENGINEERING LTD                   ,130302      ,09-Apr-18,1572,0,General Repairs               
Borough Council of Kings Lynn and West Norfolk,E07000146,30/06/18,Kings Court Kings Lynn        ,UPS SYSTEMS PLC                         ,133035      ,11-Jun-18,1020,0,General Repairs               
Borough Council of Kings Lynn and West Norfolk,E07000146,30/06/18,Careline                      ,SUPRA UK LTD                            ,134960      ,19-Apr-18,1698,0,Items Purchased For Resale    
Borough Council of Kings Lynn and West Norfolk,E07000146,30/06/18,ICT                           ,SATISNET                                ,134023      ,03-May-18,1436,0,Computer Software Maintenance 
Borough Council of Kings Lynn and West Norfolk,E07000146,30/06/18,Adapt Grant                   ,CLIVE CLARK PLUMBING & HEATING          ,133166      ,31-May-18,1470.84,0,Works                         
Borough Council of Kings Lynn and West Norfolk,E07000146,30/06/18,Website & social media mktng  ,NEW VISION GROUP LTD                    ,135836      ,09-Apr-18,2100,0,"DMS licences, data steward    "
Borough Council of Kings Lynn and West Norfolk,E07000146,30/06/18,Food Hygiene General          ,EASTERN IFCA                            ,138100      ,03-May-18,800,0,Shellfish Sampling            
Borough Council of Kings Lynn and West Norfolk,E07000146,30/06/18,L/sport - Bar Furniture       ,OFFICE FURNITURE ONLINE                 ,141168      ,31-May-18,2538,0,Works                         
Borough Council of Kings Lynn and West Norfolk,E07000146,30/06/18,L/sport - Bar Furniture       ,OFFICE FURNITURE ONLINE                 ,141168      ,31-May-18,580,0,Works                         
Borough Council of Kings Lynn and West Norfolk,E07000146,30/06/18,50127                         ,SYSTEMSLINK 2000 LTD                    ,140141      ,09-Apr-18,795,0,In-House Training             
Borough Council of Kings Lynn and West Norfolk,E07000146,30/06/18,Training Holding Account      ,SYSTEMSLINK 2000 LTD                    ,140141      ,09-Apr-18,795,0,In-House Training             
Borough Council of Kings Lynn and West Norfolk,E07000146,30/06/18,Supplier Holding Account      ,NORTH STREET TYRES                      ,119959      ,12-Apr-18,583.93,0,Materials                     
Borough Council of Kings Lynn and West Norfolk,E07000146,30/06/18,52333                         ,ADT FIRE AND SECURITY PLC               ,100036      ,26-Apr-18,982.7,0,Maintenance Contracts         
Borough Council of Kings Lynn and West Norfolk,E07000146,30/06/18,Priory Road Downham Market    ,ADT FIRE AND SECURITY PLC               ,100036      ,26-Apr-18,982.7,0,Maintenance Contracts         
Borough Council of Kings Lynn and West Norfolk,E07000146,30/06/18,ICT                           ,MPS  NETWORKSPLC                        ,136347      ,12-Apr-18,5000,0,Computer Hardware Maintenance 
Borough Council of Kings Lynn and West Norfolk,E07000146,30/06/18,ICT                           ,MPS  NETWORKSPLC                        ,136347      ,12-Apr-18,8000,0,Computer Hardware Maintenance 
Borough Council of Kings Lynn and West Norfolk,E07000146,30/06/18,Precepts Of Parish Councils   ,GAYTON PARISH COUNCIL                   ,100679      ,12-Apr-18,17898.86,0,Parishes                      
Borough Council of Kings Lynn and West Norfolk,E07000146,30/06/18,King's Court - DWP Specific   ,OFFICE UPDATE LTD                       ,105436      ,16-Apr-18,12653,0,Equipment/Materials           
Borough Council of Kings Lynn and West Norfolk,E07000146,30/06/18,King's Court - DWP Specific   ,OFFICE UPDATE LTD                       ,105436      ,28-Jun-18,11480,0,Equipment/Materials           
Borough Council of Kings Lynn and West Norfolk,E07000146,30/06/18,50121                         ,CREATIVE LEARNING SYSTEMS               ,139515      ,26-Apr-18,8158.4,0,E-learning                    
Borough Council of Kings Lynn and West Norfolk,E07000146,30/06/18,Personnel Services            ,CREATIVE LEARNING SYSTEMS               ,139515      ,26-Apr-18,8158.4,0,E-learning                    
Borough Council of Kings Lynn and West Norfolk,E07000146,30/06/18,Printing & Copying - Printroom,WATKISS AUTOMATION SALES LTD            ,125344      ,12-Apr-18,645.75,0,Maint Plant & Equip           
Borough Council of Kings Lynn and West Norfolk,E07000146,30/06/18,Safety and Welfare            ,BOOTS UK LTD                            ,137298      ,16-Apr-18,750,0,Flu Jabs                      
Borough Council of Kings Lynn and West Norfolk,E07000146,30/06/18,Special Expenses              ,TILNEY ST LAWRENCE PARISH CNCL          ,101550      ,12-Apr-18,582,0,Special Expenses Credit       
Borough Council of Kings Lynn and West Norfolk,E07000146,30/06/18,Precepts Of Parish Councils   ,TILNEY ST LAWRENCE PARISH CNCL          ,101550      ,12-Apr-18,20185,0,Parishes                      
Borough Council of Kings Lynn and West Norfolk,E07000146,30/06/18,Flexi homeless Support Grant  ,THE PURFLEET TRUST                      ,102360      ,11-Jun-18,6250,0,Agency Staff                  
Borough Council of Kings Lynn and West Norfolk,E07000146,30/06/18,Precepts Of Parish Councils   ,MARHAM PARISH COUNCIL                   ,101005      ,12-Apr-18,43500,0,Parishes                      
Borough Council of Kings Lynn and West Norfolk,E07000146,30/06/18,Learning Catalyst             ,WEST WALTON EXTENDED SCHOOLS            ,133897      ,12-Apr-18,1690,0,Partnerships                  
Borough Council of Kings Lynn and West Norfolk,E07000146,30/06/18,Subscriptions                 ,DISTRICT COUNCILS' NETWORK              ,139211      ,28-May-18,500,0,Subscriptions                 
Borough Council of Kings Lynn and West Norfolk,E07000146,30/06/18,Public Conveniences           ,WRIGHTS & HOLBEACH ASPHALT LTD          ,120865      ,31-May-18,620,0,Maintenance Contracts         
Borough Council of Kings Lynn and West Norfolk,E07000146,30/06/18,Precepts Of Parish Councils   ,EAST OF OUSE POLVER & NAR IDB           ,100517      ,30-Apr-18,135498.94,0,Drainage Boards               
Borough Council of Kings Lynn and West Norfolk,E07000146,30/06/18,Precepts Of Parish Councils   ,EAST RUDHAM PARISH COUNCIL              ,100518      ,12-Apr-18,11629,0,Parishes                      
Borough Council of Kings Lynn and West Norfolk,E07000146,30/06/18,ICT                           ,OJECTIVE KEYSTONE LTD                   ,122823      ,28-Jun-18,9369,0,Computer Software Maintenance 
Borough Council of Kings Lynn and West Norfolk,E07000146,30/06/18,Licence - Gambling Act 2005   ,FRASER BROWN SOLICITORS                 ,139646      ,11-Jun-18,750,0,Licences - Sundry             
Borough Council of Kings Lynn and West Norfolk,E07000146,30/06/18,Corporate Insurance           ,ZURICH INSURANCE PLC                    ,101688      ,07-May-18,7732.01,0,ZM Shops & Factory            
Borough Council of Kings Lynn and West Norfolk,E07000146,30/06/18,Corporate Insurance           ,ZURICH INSURANCE PLC                    ,101688      ,07-May-18,863.77,0,ZM Premium                    
Borough Council of Kings Lynn and West Norfolk,E07000146,30/06/18,General Properties            ,NEVILLE GODFREY LTD                     ,101117      ,17-May-18,665,0,General Repairs               
Borough Council of Kings Lynn and West Norfolk,E07000146,30/06/18,12301                         ,NEVILLE GODFREY LTD                     ,101117      ,17-May-18,665,0,General Repairs               
Borough Council of Kings Lynn and West Norfolk,E07000146,30/06/18,50318                         ,IDOX SOFTWARE LTD                       ,132346      ,26-Apr-18,895.5,0,Maintenance Contracts         
Borough Council of Kings Lynn and West Norfolk,E07000146,30/06/18,Corporate Scanning Team       ,IDOX SOFTWARE LTD                       ,132346      ,26-Apr-18,895.5,0,Maintenance Contracts         
Borough Council of Kings Lynn and West Norfolk,E07000146,30/06/18,Housing Standards             ,IDOX SOFTWARE LTD                       ,132346      ,24-May-18,2610,0,Miscellaneous                 
Borough Council of Kings Lynn and West Norfolk,E07000146,30/06/18,One Public Estate             ,SLR CONSULTING LTD                      ,128730      ,24-May-18,2483,0,Professional Fees             
Borough Council of Kings Lynn and West Norfolk,E07000146,30/06/18,Town Hall Kings Lynn          ,KL PUBLICATIONS LTD                     ,137190      ,09-Apr-18,576,0,Advertising                   
Borough Council of Kings Lynn and West Norfolk,E07000146,30/06/18,Corporate                     ,REDCENTRIC SOLUTIONS LTD                ,143387      ,03-May-18,1870,0,Miscellaneous                 
Borough Council of Kings Lynn and West Norfolk,E07000146,30/06/18,Precepts Of Parish Councils   ,WIMBOTSHAM PARISH COUNCIL               ,101657      ,12-Apr-18,19322,0,Parishes                      
Borough Council of Kings Lynn and West Norfolk,E07000146,30/06/18,Adapt Grant                   ,A SMITH CONTRACTORS                     ,115351      ,25-Jun-18,880,0,Works                         
Borough Council of Kings Lynn and West Norfolk,E07000146,30/06/18,Special Expenses              ,METHWOLD PARISH COUNCIL                 ,101040      ,12-Apr-18,815,0,Special Expenses Credit       
Borough Council of Kings Lynn and West Norfolk,E07000146,30/06/18,Precepts Of Parish Councils   ,METHWOLD PARISH COUNCIL                 ,101040      ,12-Apr-18,50806.34,0,Parishes                      
Borough Council of Kings Lynn and West Norfolk,E07000146,30/06/18,Public Conveniences           ,UK POWER NETWORKS (OPERATIONS) LTD      ,114412      ,24-May-18,1757,0,General Repairs               
Borough Council of Kings Lynn and West Norfolk,E07000146,30/06/18,ICT                           ,MODERN MINDSET LTD                      ,143530      ,28-Jun-18,3000,0,Computer Software Maintenance 
Borough Council of Kings Lynn and West Norfolk,E07000146,30/06/18,ICT                           ,MODERN MINDSET LTD                      ,143530      ,28-Jun-18,7010,0,Computer Software Maintenance 
Borough Council of Kings Lynn and West Norfolk,E07000146,30/06/18,Precepts Of Parish Councils   ,WIGGENHALL ST GERMANS PSH CNCL          ,101651      ,12-Apr-18,16870.65,0,Parishes                      
Borough Council of Kings Lynn and West Norfolk,E07000146,30/06/18,Community Projects PDS        ,WNDIS                                   ,110004      ,12-Apr-18,1030,0,Service Level Agreements      
Borough Council of Kings Lynn and West Norfolk,E07000146,30/06/18,Precepts Of Parish Councils   ,CASTLE ACRE PARISH COUNCIL              ,100297      ,12-Apr-18,13130,0,Parishes                      
Borough Council of Kings Lynn and West Norfolk,E07000146,30/06/18,Precepts Of Parish Councils   ,WEST WINCH PARISH COUNCIL               ,101642      ,12-Apr-18,29059,0,Parishes                      
Borough Council of Kings Lynn and West Norfolk,E07000146,30/06/18,Disabled Facilties Grant      ,LINDUM GROUP LTD                        ,144896      ,06-Jun-18,5148,0,Works                         
Borough Council of Kings Lynn and West Norfolk,E07000146,30/06/18,Supplier Holding Account      ,PAUL JOHNSON MTR SERVICES LTD           ,104221      ,14-May-18,3168.56,0,Materials                     
Borough Council of Kings Lynn and West Norfolk,E07000146,30/06/18,Refuse - Black Bins           ,WYBONE LTD                              ,116492      ,28-Jun-18,10031.06,0,Equipment/Materials           
Borough Council of Kings Lynn and West Norfolk,E07000146,30/06/18,Refuse - Black Bins           ,WYBONE LTD                              ,116492      ,28-Jun-18,600.53,0,Equipment/Materials           
Borough Council of Kings Lynn and West Norfolk,E07000146,30/06/18,The Walks                     ,E C BENTON T/A GOLDEN TREE SURGEONS     ,145155      ,14-Jun-18,4750,0,Tree Work/Storm Damage etc    
Borough Council of Kings Lynn and West Norfolk,E07000146,30/06/18,Business Development& Start Up,NINION SOLUTIONS LTD T/A HUDDLE         ,145162      ,26-Apr-18,10000,0,START UP PROGRAMME            
Borough Council of Kings Lynn and West Norfolk,E07000146,30/06/18,RX59 FVE IVECO (REPLC HI-AB)  ,HIAB LTD                                ,145199      ,30-Apr-18,504.81,0,Contract Repairs              
Borough Council of Kings Lynn and West Norfolk,E07000146,30/06/18,Head of Legal Services        ,HOWES PERCIVAL                          ,129436      ,07-May-18,4000,0,Commissioning Ext. Legal fees 
Borough Council of Kings Lynn and West Norfolk,E07000146,30/06/18,Food Hygiene General          ,PUBLIC HEALTH ENGLAND                   ,141369      ,03-May-18,900,0,Shellfish Sampling            
Borough Council of Kings Lynn and West Norfolk,E07000146,30/06/18,CCTV Wireless Tran and Camera ,OPENVIEW SECURITY SOLUTIONS LTD         ,145424      ,24-May-18,1867.08,0,Other 3rd Party Contributions 
Borough Council of Kings Lynn and West Norfolk,E07000146,30/06/18,CCTV Wireless Tran and Camera ,OPENVIEW SECURITY SOLUTIONS LTD         ,145424      ,24-May-18,8766.8,0,Other 3rd Party Contributions 
Borough Council of Kings Lynn and West Norfolk,E07000146,30/06/18,CCTV                          ,OPENVIEW SECURITY SOLUTIONS LTD         ,145424      ,25-Jun-18,3111.8,0,Maint Plant & Equip           
Borough Council of Kings Lynn and West Norfolk,E07000146,30/06/18,CCTV                          ,OPENVIEW SECURITY SOLUTIONS LTD         ,145424      ,25-Jun-18,639.1,0,Maint Plant & Equip           
Borough Council of Kings Lynn and West Norfolk,E07000146,30/06/18,MX58 LXO Hook Loader UB       ,LYNN COMMERCIALS  (1989) LTD            ,107430      ,30-Apr-18,500.6,0,Contract Repairs              
Borough Council of Kings Lynn and West Norfolk,E07000146,30/06/18,Public Conveniences           ,BACO-COMPAK (NORFOLK) LTD               ,100137      ,14-Jun-18,740,0,Sewerage/Cesspool Emptying    
Borough Council of Kings Lynn and West Norfolk,E07000146,30/06/18,Parking Operations - Borough  ,LOOMIS UK LTD                           ,140581      ,10-May-18,969.22,0,Security Services Charge      
Borough Council of Kings Lynn and West Norfolk,E07000146,30/06/18,Leisure Management Costs      ,LOOMIS UK LTD                           ,140581      ,10-May-18,540.94,0,Security Services Charge      
Borough Council of Kings Lynn and West Norfolk,E07000146,30/06/18,Cost of Collection - NDR      ,CIVICA  UK LTD                          ,128548      ,14-Jun-18,1250,0,Professional Fees             
Borough Council of Kings Lynn and West Norfolk,E07000146,30/06/18,Dry Box Collection Scheme     ,NORSE ENVIRONMENTAL WASTE SVCS          ,102093      ,26-Apr-18,610.71,0,Waste Processing Cost         
Borough Council of Kings Lynn and West Norfolk,E07000146,30/06/18,Domestic Refuse               ,NORSE ENVIRONMENTAL WASTE SVCS          ,102093      ,21-Jun-18,27322.68,0,Waste Processing Cost         
Borough Council of Kings Lynn and West Norfolk,E07000146,30/06/18,Precepts Of Parish Councils   ,NORDELPH INTERNAL DRAINAGE BOARD        ,101138      ,25-Jun-18,1110,0,Drainage Boards               
Borough Council of Kings Lynn and West Norfolk,E07000146,30/06/18,Postage Services Kings Court  ,POSTAGE BY PHONE                        ,101299      ,19-Apr-18,5000,0,Postages                      
Borough Council of Kings Lynn and West Norfolk,E07000146,30/06/18,Adapt Grant                   ,FREEBRIDGE COMMUNITY HOUSING            ,127987      ,17-May-18,1727.49,0,Works                         
Borough Council of Kings Lynn and West Norfolk,E07000146,30/06/18,Adapt Grant                   ,FREEBRIDGE COMMUNITY HOUSING            ,127987      ,07-Jun-18,2862.53,0,Works                         
Borough Council of Kings Lynn and West Norfolk,E07000146,30/06/18,CCTV                          ,AIRWAVE SOLUTIONS LTD                   ,146470      ,28-Jun-18,14400,0,Rental CCTV - BT              
Borough Council of Kings Lynn and West Norfolk,E07000146,30/06/18,AV in meeting rooms           ,KINGSFIELD COMPUTER PRODUCTS LTD        ,128426      ,28-May-18,635.88,0,Computer Equip (Hardware)     
Borough Council of Kings Lynn and West Norfolk,E07000146,30/06/18,AV in meeting rooms           ,KINGSFIELD COMPUTER PRODUCTS LTD        ,128426      ,28-May-18,1571.94,0,Computer Equip (Hardware)     
Borough Council of Kings Lynn and West Norfolk,E07000146,30/06/18,AV in meeting rooms           ,KINGSFIELD COMPUTER PRODUCTS LTD        ,128426      ,21-Jun-18,2759.96,0,Computer Equip (Hardware)     
Borough Council of Kings Lynn and West Norfolk,E07000146,30/06/18,Telephones                    ,BRITISH TELECOMMUNICATIONS PLC          ,100222      ,16-Apr-18,1057.84,0,Telephones Recharged          
Borough Council of Kings Lynn and West Norfolk,E07000146,30/06/18,Telephones                    ,BRITISH TELECOMMUNICATIONS PLC          ,100222      ,21-May-18,1083.62,0,Broadband Charge              
Borough Council of Kings Lynn and West Norfolk,E07000146,30/06/18,Street Lighting               ,AMEY LG LTD                             ,135835      ,28-Jun-18,1026.77,0,General Repairs               
Borough Council of Kings Lynn and West Norfolk,E07000146,30/06/18,CCTV                          ,FOCUS SECURITY (EAST ANGLIA) LTD        ,136665      ,14-Jun-18,2064.14,0,Maint Plant & Equip           
Borough Council of Kings Lynn and West Norfolk,E07000146,30/06/18,CCTV Breckland                ,FOCUS SECURITY (EAST ANGLIA) LTD        ,136665      ,14-Jun-18,907.8,0,Maint Plant & Equip           
Borough Council of Kings Lynn and West Norfolk,E07000146,30/06/18,BCKLWN Control Account        ,NEWLYN PLC                              ,143655      ,07-May-18,921.54,0,VAT Input (VAT Only Invoice)  
Borough Council of Kings Lynn and West Norfolk,E07000146,30/06/18,Project Mmgt / Marketing      ,AHR BUILDING CONSULTANCY LTD            ,146946      ,10-May-18,55803.48,0,Repair and Conservation       
Borough Council of Kings Lynn and West Norfolk,E07000146,30/06/18,Broad St conversion to Houses ,VINCI CONSTRUCTION UK LTD               ,146957      ,09-Apr-18,24726.96,0,Professional Fees             
Borough Council of Kings Lynn and West Norfolk,E07000146,30/06/18,GM Southern Area & Lynnsport  ,WAVE                                    ,100086      ,26-Apr-18,1344.54,0,General Repairs               
Borough Council of Kings Lynn and West Norfolk,E07000146,30/06/18,Adapt Grant                   ,CHAS D ALLFLATT LTD                     ,100315      ,18-Jun-18,1813.45,0,Works                         
Borough Council of Kings Lynn and West Norfolk,E07000146,30/06/18,Adapt Grant                   ,CHAS D ALLFLATT LTD                     ,100315      ,25-Jun-18,1246.71,0,Works                         
Borough Council of Kings Lynn and West Norfolk,E07000146,30/06/18,Air Quality                   ,IPPC CONSULTANTS LTD                    ,146846      ,03-May-18,840,0,Professional Fees             
Borough Council of Kings Lynn and West Norfolk,E07000146,30/06/18,50127                         ,IMPACT FACTORY LTD                      ,146043      ,14-Jun-18,3000,0,In-House Training             
Borough Council of Kings Lynn and West Norfolk,E07000146,30/06/18,Training Holding Account      ,IMPACT FACTORY LTD                      ,146043      ,14-Jun-18,3000,0,In-House Training             
Borough Council of Kings Lynn and West Norfolk,E07000146,30/06/18,Hunstanton Parks for People   ,BLAKEDOWN ENVIRONMENT & LEISURE PLC     ,146045      ,19-Apr-18,5732.7,0,Repair and Conservation       
Borough Council of Kings Lynn and West Norfolk,E07000146,30/06/18,Kings Court Kings Lynn        ,AMR ELECTRICAL SERVICES LTD             ,126614      ,23-Apr-18,1384,0,Repairs - Services Charges    
Borough Council of Kings Lynn and West Norfolk,E07000146,30/06/18,St Johns Business Park        ,MARTIN FULLER                           ,147008      ,03-May-18,720,0,Repairs - Services Charges    
Borough Council of Kings Lynn and West Norfolk,E07000146,30/06/18,Finance & Resource - Legal Com,NORFOLK COUNTY COUNCIL                  ,101142      ,12-Apr-18,706.3,0,Commissioning Ext. Legal fees 
Borough Council of Kings Lynn and West Norfolk,E07000146,30/06/18,Finance & Resource - Legal Com,NORFOLK COUNTY COUNCIL                  ,101142      ,12-Apr-18,6868,0,Commissioning Ext. Legal fees 
Borough Council of Kings Lynn and West Norfolk,E07000146,30/06/18,Local Land Charges            ,NORFOLK COUNTY COUNCIL                  ,101142      ,17-May-18,5421,0,Agency                        
Borough Council of Kings Lynn and West Norfolk,E07000146,30/06/18,Kings Court Kings Lynn        ,CORONA ENERGY RETAIL 4 LTD              ,131838      ,21-May-18,598.28,0,Gas                           
Borough Council of Kings Lynn and West Norfolk,E07000146,30/06/18,Downham Market Sports Centre  ,CORONA ENERGY RETAIL 4 LTD              ,131838      ,21-Jun-18,1925.84,0,Gas                           
Borough Council of Kings Lynn and West Norfolk,E07000146,30/06/18,Oasis General Account         ,CORONA ENERGY RETAIL 4 LTD              ,131838      ,21-Jun-18,2440.53,0,Gas                           
Borough Council of Kings Lynn and West Norfolk,E07000146,30/06/18,Mintlyn Crematorium           ,CORONA ENERGY RETAIL 4 LTD              ,131838      ,21-Jun-18,3255.98,0,Gas                           
Borough Council of Kings Lynn and West Norfolk,E07000146,30/06/18,BC System Suspense            ,ALIVE MANAGEMENT LTD                    ,143925      ,14-Jun-18,8478.07,0,ER Balance Held               
Borough Council of Kings Lynn and West Norfolk,E07000146,30/06/18,Mintlyn Crematorium           ,1-2 CALL DRAINAGE & GROUNDWORK LTD      ,131800      ,09-Apr-18,950,0,Maint Plant & Equip           
Borough Council of Kings Lynn and West Norfolk,E07000146,30/06/18,Stories of Lynn               ,1-2 CALL DRAINAGE & GROUNDWORK LTD      ,131800      ,04-Jun-18,620,0,Project Costs                 
Borough Council of Kings Lynn and West Norfolk,E07000146,30/06/18,Green Bins/Recycling          ,EGBERT H TAYLOR & CO LTD                ,100545      ,07-Jun-18,5815.32,0,Equipment/Materials           
Borough Council of Kings Lynn and West Norfolk,E07000146,30/06/18,Refuse - Black Bins           ,EGBERT H TAYLOR & CO LTD                ,100545      ,07-Jun-18,1464,0,Equipment/Materials           
Borough Council of Kings Lynn and West Norfolk,E07000146,30/06/18,Re:Fit Project                ,LOCAL PARTNERSHIPS LLP                  ,147116      ,03-May-18,16000,0,Works                         
Borough Council of Kings Lynn and West Norfolk,E07000146,30/06/18,50127                         ,J MAYCOCK                               ,145002      ,21-Jun-18,1995,0,Qualification Training        
Borough Council of Kings Lynn and West Norfolk,E07000146,30/06/18,Training Holding Account      ,J MAYCOCK                               ,145002      ,21-Jun-18,1995,0,Qualification Training        
Borough Council of Kings Lynn and West Norfolk,E07000146,30/06/18,50127                         ,J MAYCOCK                               ,145002      ,21-Jun-18,1995,0,Qualification Training        
Borough Council of Kings Lynn and West Norfolk,E07000146,30/06/18,Training Holding Account      ,J MAYCOCK                               ,145002      ,21-Jun-18,1995,0,Qualification Training        
Borough Council of Kings Lynn and West Norfolk,E07000146,30/06/18,Corporate Project Manager     ,HAVAS PEOPLE LIMITED                    ,100966      ,09-Apr-18,1425.3,0,Recruitment                   
Borough Council of Kings Lynn and West Norfolk,E07000146,30/06/18,50303                         ,HAVAS PEOPLE LIMITED                    ,100966      ,24-May-18,1543.76,0,Recruitment                   
Borough Council of Kings Lynn and West Norfolk,E07000146,30/06/18,Internal Audit                ,HAVAS PEOPLE LIMITED                    ,100966      ,24-May-18,1543.76,0,Recruitment                   
Borough Council of Kings Lynn and West Norfolk,E07000146,30/06/18,Development Control           ,HAVAS PEOPLE LIMITED                    ,100966      ,24-May-18,2704.8,0,Recruitment                   
Borough Council of Kings Lynn and West Norfolk,E07000146,30/06/18,NEWS Depot                    ,MARATHON SERVICES LIMITED               ,101003      ,12-Apr-18,1511.81,0,Contract Cleaning             
Borough Council of Kings Lynn and West Norfolk,E07000146,30/06/18,NEW MOBILE PHONE APP          ,KLFM LTD                                ,102963      ,07-Jun-18,1906.32,0,Website traffic marketing     
Borough Council of Kings Lynn and West Norfolk,E07000146,30/06/18,Regis Place Unit1-Non Inv Care,ADVANCED WATER TREATMENT (UK) LTD       ,136018      ,26-Apr-18,597,0,Maint Plant & Equip           
Borough Council of Kings Lynn and West Norfolk,E07000146,30/06/18,Sports Grounds North          ,PENTY CONTRACTORS LTD                   ,101244      ,21-Jun-18,1244.09,0,General Repairs               
Borough Council of Kings Lynn and West Norfolk,E07000146,30/06/18,Adapt Grant                   ,STANNAH LIFT SERVICES LTD               ,101479      ,09-Apr-18,2729,0,Works                         
Borough Council of Kings Lynn and West Norfolk,E07000146,30/06/18,Phase 1 -  Marsh Lane         ,LOVELL PARTNERSHIPS LTD                 ,143432      ,19-Apr-18,680347.91,0,Works                         
Borough Council of Kings Lynn and West Norfolk,E07000146,30/06/18,NORA Phase 3                  ,LOVELL PARTNERSHIPS LTD                 ,143432      ,14-Jun-18,270048,0,Works                         
Borough Council of Kings Lynn and West Norfolk,E07000146,30/06/18,Domestic Refuse               ,KIER SERVICES ENVIRONMENTAL             ,141535      ,11-Jun-18,1704.38,0,Delivery/Carriage Charge      
Borough Council of Kings Lynn and West Norfolk,E07000146,30/06/18,Domestic Refuse               ,KIER SERVICES ENVIRONMENTAL             ,141535      ,11-Jun-18,1494.42,0,Delivery/Carriage Charge      
Borough Council of Kings Lynn and West Norfolk,E07000146,30/06/18,Planning & Regen - Legal Com  ,NORTH NORFOLK DISTRICT COUNCIL          ,101156      ,18-Jun-18,2091.45,0,Commissioning Ext. Legal fees 
Borough Council of Kings Lynn and West Norfolk,E07000146,30/06/18,Planning Policy               ,JEREMY BENN ASSOCIATES LTD              ,147272      ,02-Jul-18,1500,0,Professional Fees             
Borough Council of Kings Lynn and West Norfolk,E07000146,30/06/18,Postage Services Kings Court  ,ROYAL MAIL GROUP LTD                    ,101369      ,10-May-18,1110.71,0,Postages                      
Borough Council of Kings Lynn and West Norfolk,E07000146,30/06/18,Cost of Collection - CTax     ,ROYAL MAIL GROUP LTD                    ,101369      ,21-May-18,2165.96,0,Postages                      
Borough Council of Kings Lynn and West Norfolk,E07000146,30/06/18,Postage Services Kings Court  ,ROYAL MAIL GROUP LTD                    ,101369      ,25-Jun-18,765.09,0,Postages                      
Borough Council of Kings Lynn and West Norfolk,E07000146,30/06/18,Hardwick Industrial Est       ,GARY STRATTON                           ,147222      ,28-Jun-18,608,0,General Repairs               
Borough Council of Kings Lynn and West Norfolk,E07000146,30/06/18,Townscape Heritage Initiative ,UNIQ DEVELOPMENTS LTD                   ,147246      ,21-May-18,3295.92,0,THI Priority Grant Projects   
Borough Council of Kings Lynn and West Norfolk,E07000146,30/06/18,Domestic Refuse               ,KIER SERVICES ENVIRONMENTAL             ,141535      ,28-Jun-18,543.46,0,Dayworks and Addnl Works      
Borough Council of Kings Lynn and West Norfolk,E07000146,30/06/18,ICT                           ,VODAFONE LTD                            ,100275      ,26-Apr-18,3849.44,0,Communications                
Borough Council of Kings Lynn and West Norfolk,E07000146,30/06/18,ICT                           ,CAPITA BUSINESS SERVICES LTD            ,100288      ,03-May-18,2321.02,0,Computer Software Maintenance 
Borough Council of Kings Lynn and West Norfolk,E07000146,30/06/18,ICT                           ,CAPITA BUSINESS SERVICES LTD            ,100288      ,03-May-18,17151.92,0,Computer Software Maintenance 
Borough Council of Kings Lynn and West Norfolk,E07000146,30/06/18,Special Expenses              ,EMNETH PARISH COUNCIL                   ,100559      ,12-Apr-18,767,0,Special Expenses Credit       
Borough Council of Kings Lynn and West Norfolk,E07000146,30/06/18,Precepts Of Parish Councils   ,EMNETH PARISH COUNCIL                   ,100559      ,12-Apr-18,32233,0,Parishes                      
Borough Council of Kings Lynn and West Norfolk,E07000146,30/06/18,Corporate                     ,ERNST & YOUNG                           ,100576      ,02-Jul-18,4116,0,Audit Fee                     
Borough Council of Kings Lynn and West Norfolk,E07000146,30/06/18,Cost of Collection - CTax     ,EXPERIAN LTD                            ,100601      ,26-Apr-18,4838,0,Tracing Fees                  
Borough Council of Kings Lynn and West Norfolk,E07000146,30/06/18,Urban Open Spaces             ,KINGS & BARNHAMS                        ,100875      ,19-Apr-18,1253,0,Christmas Lighting            
Borough Council of Kings Lynn and West Norfolk,E07000146,30/06/18,Kings Court Grnd Floor Modify ,MILLAR WEST                             ,101066      ,26-Apr-18,558.55,0,Works                         
Borough Council of Kings Lynn and West Norfolk,E07000146,30/06/18,Adapt Grant                   ,TOTAL HYGIENE LTD                       ,101557      ,28-Jun-18,4050,0,Works                         
Borough Council of Kings Lynn and West Norfolk,E07000146,30/06/18,Precepts Of Parish Councils   ,TOTTENHILL PARISH COUNCIL               ,101559      ,12-Apr-18,2600,0,Parishes                      
Borough Council of Kings Lynn and West Norfolk,E07000146,30/06/18,Precepts Of Parish Councils   ,WALPOLE HIGHWAY PARISH COUNCIL          ,101609      ,12-Apr-18,9715,0,Parishes                      
Borough Council of Kings Lynn and West Norfolk,E07000146,30/06/18,PH & HC Taxi Licensing        ,MR SIGNS LTD                            ,101766      ,25-Jun-18,896,0,Vehicle Stickers- Taxi        
Borough Council of Kings Lynn and West Norfolk,E07000146,30/06/18,Improving Attainment          ,WEST LYNN PRIMARY SCHOOL                ,103966      ,02-Jul-18,866.66,0,Small Projects                
Borough Council of Kings Lynn and West Norfolk,E07000146,30/06/18,Playareas Kings Lynn          ,FENLAND LEISURE PRODUCTS LTD            ,117418      ,25-Jun-18,620,0,Play Area Maintenance         
Borough Council of Kings Lynn and West Norfolk,E07000146,30/06/18,Broad St conversion to Houses ,INGLETON WOOD LLP                       ,119162      ,26-Apr-18,1000,0,Professional Fees             
Borough Council of Kings Lynn and West Norfolk,E07000146,30/06/18,Broad St conversion to Houses ,INGLETON WOOD LLP                       ,119162      ,04-Jun-18,1000,0,Professional Fees             
Borough Council of Kings Lynn and West Norfolk,E07000146,30/06/18,Community Projects CS         ,WEST NORFOLK BEFRIENDING                ,126133      ,03-May-18,1050,0,Service Level Agreements      
Borough Council of Kings Lynn and West Norfolk,E07000146,30/06/18,Grounds Maintenance Equipment ,ERNEST DOE & SONS LTD                   ,127733      ,28-May-18,2694,0,Equipment/Materials           
Borough Council of Kings Lynn and West Norfolk,E07000146,30/06/18,Cultural & Other Activities   ,ORCHESTRAS LIVE                         ,132100      ,03-May-18,4758.35,0,Subscriptions                 
Borough Council of Kings Lynn and West Norfolk,E07000146,30/06/18,Disabled Facilties Grant      ,CLIVE CLARK PLUMBING & HEATING          ,133166      ,09-Apr-18,9966.41,0,Works                         
Borough Council of Kings Lynn and West Norfolk,E07000146,30/06/18,Adapt Grant                   ,CLIVE CLARK PLUMBING & HEATING          ,133166      ,07-Jun-18,3018.48,0,Works                         
Borough Council of Kings Lynn and West Norfolk,E07000146,30/06/18,Disabled Facilties Grant      ,CLIVE CLARK PLUMBING & HEATING          ,133166      ,07-Jun-18,6384.2,0,Works                         
Borough Council of Kings Lynn and West Norfolk,E07000146,30/06/18,Valentine Road Hunstanton     ,COOKS BLINDS & SHUTTERS LTD             ,133671      ,26-Apr-18,3250,0,General Repairs               
Borough Council of Kings Lynn and West Norfolk,E07000146,30/06/18,Salaries Oncost Account       ,EAST OF ENGLAND LGA                     ,136515      ,16-Apr-18,2190,0,Miscellaneous                 
Borough Council of Kings Lynn and West Norfolk,E07000146,30/06/18,Website & social media mktng  ,NEW VISION GROUP LTD                    ,135836      ,09-Apr-18,1600,0,"DMS licences, data steward    "
Borough Council of Kings Lynn and West Norfolk,E07000146,30/06/18,Coastal Defence/Protection    ,AECOM LTD                               ,139739      ,18-Jun-18,29000,0,Professional Fees             
Borough Council of Kings Lynn and West Norfolk,E07000146,30/06/18,H&M New Store                 ,VANCOUVER GP LTD                        ,142742      ,14-Jun-18,97134.3,0,Works                         
Borough Council of Kings Lynn and West Norfolk,E07000146,30/06/18,Community Projects CRS        ,NORFOLK COMMUNITY FOUNDATION            ,136248      ,24-May-18,14200,0,Donations                     
Borough Council of Kings Lynn and West Norfolk,E07000146,30/06/18,Community Projects CRS        ,NORFOLK COMMUNITY FOUNDATION            ,136248      ,24-May-18,5250,0,Admin Costs                   
Borough Council of Kings Lynn and West Norfolk,E07000146,30/06/18,Community Projects            ,NORFOLK COMMUNITY FOUNDATION            ,136248      ,24-May-18,50000,0,Works                         
Borough Council of Kings Lynn and West Norfolk,E07000146,30/06/18,Subscriptions                 ,LOCAL GOVERNMENT ASSOCIATION            ,101774      ,03-May-18,10450,0,Subscriptions                 
Borough Council of Kings Lynn and West Norfolk,E07000146,30/06/18,Mintlyn Crematorium           ,TELESHORE (UK) LTD                      ,119322      ,31-May-18,768,0,Tools And Equipment           
Borough Council of Kings Lynn and West Norfolk,E07000146,30/06/18,Flexi homeless Support Grant  ,THE PURFLEET TRUST                      ,102360      ,21-May-18,2880,0,Homelessness Prevention Fund  
Borough Council of Kings Lynn and West Norfolk,E07000146,30/06/18,Air Quality                   ,TURNKEY INSTRUMENTS LTD                 ,109966      ,28-Jun-18,2580,0,Servicing                     
Borough Council of Kings Lynn and West Norfolk,E07000146,30/06/18,BCKLWN Control Account        ,HMRC VAT                                ,136625      ,07-Jun-18,26861,0,VAT HMC&E (Reclaimed) / Paid  
Borough Council of Kings Lynn and West Norfolk,E07000146,30/06/18,ICT                           ,ESRI (UK) LTD                           ,121747      ,11-Jun-18,14696,0,Computer Software Maintenance 
Borough Council of Kings Lynn and West Norfolk,E07000146,30/06/18,Precepts Of Parish Councils   ,RUNCTON HOLME PARISH COUNCIL            ,101378      ,12-Apr-18,11790,0,Parishes                      
Borough Council of Kings Lynn and West Norfolk,E07000146,30/06/18,Improving Attainment          ,GAYWOOD COMMUNITY PRIMARY SCHOOL        ,125051      ,18-Jun-18,866.66,0,Small Projects                
Borough Council of Kings Lynn and West Norfolk,E07000146,30/06/18,Corporate Insurance           ,ZURICH INSURANCE PLC                    ,101688      ,07-May-18,14278.13,0,ZM Premium                    
Borough Council of Kings Lynn and West Norfolk,E07000146,30/06/18,Corporate Insurance           ,ZURICH INSURANCE PLC                    ,101688      ,07-May-18,262127.12,0,ZM Premium                    
Borough Council of Kings Lynn and West Norfolk,E07000146,30/06/18,Air Quality                   ,GRADKO INTERNATIONAL LTD                ,121423      ,11-Jun-18,2623.5,0,Tools And Equipment           
Borough Council of Kings Lynn and West Norfolk,E07000146,30/06/18,Adapt Grant                   ,PARS LTD                                ,135713      ,16-Apr-18,712,0,Works                         
Borough Council of Kings Lynn and West Norfolk,E07000146,30/06/18,One Public Estate             ,SLR CONSULTING LTD                      ,128730      ,19-Apr-18,3020,0,Professional Fees             
Borough Council of Kings Lynn and West Norfolk,E07000146,30/06/18,Corporate                     ,REDCENTRIC SOLUTIONS LTD                ,143387      ,04-Jun-18,1870,0,Miscellaneous                 
Borough Council of Kings Lynn and West Norfolk,E07000146,30/06/18,Air Quality                   ,AIR MONITORS LTD                        ,144122      ,25-Jun-18,6440,0,Servicing                     
Borough Council of Kings Lynn and West Norfolk,E07000146,30/06/18,Precepts Of Parish Councils   ,INGOLDISTHORPE PARISH COUNCIL           ,100808      ,12-Apr-18,12000,0,Parishes                      
Borough Council of Kings Lynn and West Norfolk,E07000146,30/06/18,Precepts Of Parish Councils   ,TERRINGTON ST CLEMENT PSH CNCL          ,101533      ,12-Apr-18,126000,0,Parishes                      
Borough Council of Kings Lynn and West Norfolk,E07000146,30/06/18,Special Expenses              ,TERRINGTON ST CLEMENT PSH CNCL          ,101533      ,12-Apr-18,2851,0,Special Expenses Credit       
Borough Council of Kings Lynn and West Norfolk,E07000146,30/06/18,Precepts Of Parish Councils   ,HARPLEY PARISH COUNCIL                  ,100745      ,12-Apr-18,5000,0,Parishes                      
Borough Council of Kings Lynn and West Norfolk,E07000146,30/06/18,DMLC - Flooring Replacement   ,STEVEN SEALS BUILDER LTD                ,108597      ,09-Apr-18,3542.64,0,Works                         
Borough Council of Kings Lynn and West Norfolk,E07000146,30/06/18,DMLC - Flooring Replacement   ,STEVEN SEALS BUILDER LTD                ,108597      ,09-Apr-18,3202.04,0,Works                         
Borough Council of Kings Lynn and West Norfolk,E07000146,30/06/18,Special Expenses              ,HILGAY PARISH COUNCIL                   ,102405      ,12-Apr-18,684,0,Special Expenses Credit       
Borough Council of Kings Lynn and West Norfolk,E07000146,30/06/18,Precepts Of Parish Councils   ,HILGAY PARISH COUNCIL                   ,102405      ,12-Apr-18,26237.38,0,Parishes                      
Borough Council of Kings Lynn and West Norfolk,E07000146,30/06/18,Day visitor awareness         ,APL MEDIA LTD                           ,144256      ,24-May-18,650,0,Advertising                   
Borough Council of Kings Lynn and West Norfolk,E07000146,30/06/18,ICT                           ,BYTES SOFTWARE SERVICES LTD             ,145245      ,31-May-18,1235.72,0,Computer Hardware Maintenance 
Borough Council of Kings Lynn and West Norfolk,E07000146,30/06/18,ICT                           ,BYTES SOFTWARE SERVICES LTD             ,145245      ,31-May-18,2471.44,0,Computer Hardware Maintenance 
Borough Council of Kings Lynn and West Norfolk,E07000146,30/06/18,Recycling Reward Scheme       ,LOCAL GREEN POINTS LLP                  ,145082      ,24-May-18,12200,0,Small Projects                
Borough Council of Kings Lynn and West Norfolk,E07000146,30/06/18,The Walks                     ,E C BENTON T/A GOLDEN TREE SURGEONS     ,145155      ,12-Apr-18,9550,0,Tree Work/Storm Damage etc    
Borough Council of Kings Lynn and West Norfolk,E07000146,30/06/18,Project Mmgt / Marketing      ,E C BENTON T/A GOLDEN TREE SURGEONS     ,145155      ,14-Jun-18,780,0,Works                         
Borough Council of Kings Lynn and West Norfolk,E07000146,30/06/18,The Walks                     ,E C BENTON T/A GOLDEN TREE SURGEONS     ,145155      ,14-Jun-18,2000,0,Tree Work/Storm Damage etc    
Borough Council of Kings Lynn and West Norfolk,E07000146,30/06/18,Public Cleansing              ,SHAUN GILBERT                           ,144240      ,24-May-18,500,0,Initiatives                   
Borough Council of Kings Lynn and West Norfolk,E07000146,30/06/18,"17 Archers Avenue,Feltwell- HM",MR BRIGHTS LTD                          ,100981      ,25-Jun-18,1020,0,Rechargeable Works            
Borough Council of Kings Lynn and West Norfolk,E07000146,30/06/18,Sports Grounds North          ,COLLIER TURF CARE LTD                   ,100362      ,23-Apr-18,796.05,0,Materials                     
Borough Council of Kings Lynn and West Norfolk,E07000146,30/06/18,RV14 DTX Johnston V651 Dual Sw,FORD & SLATER DAF KINGS LYNN            ,100682      ,14-May-18,1526.15,0,Materials                     
Borough Council of Kings Lynn and West Norfolk,E07000146,30/06/18,Mintlyn Crematorium           ,FACULTATIEVE TECHNOLOGIESLTD            ,125759      ,28-Jun-18,1614.96,0,Maint Plant & Equip           
Borough Council of Kings Lynn and West Norfolk,E07000146,30/06/18,Lease Car Revenue Account     ,COMMERCIAL SERVICES KENT LTD            ,146328      ,19-Apr-18,2612.6,0,Leasing                       
Borough Council of Kings Lynn and West Norfolk,E07000146,30/06/18,Lease Car Revenue Account     ,COMMERCIAL SERVICES KENT LTD            ,146328      ,19-Apr-18,2223.07,0,Leasing                       
Borough Council of Kings Lynn and West Norfolk,E07000146,30/06/18,Careline-Replacement Alarm Uni,TUNSTALL HEALTHCARE (UK) LTD            ,101569      ,10-May-18,9900,0,Equipment/Materials           
Borough Council of Kings Lynn and West Norfolk,E07000146,30/06/18,Precepts Of Parish Councils   ,NORDELPH PARISH CNCL                    ,101139      ,12-Apr-18,6320,0,Parishes                      
Borough Council of Kings Lynn and West Norfolk,E07000146,30/06/18,Postage Services Kings Court  ,POSTAGE BY PHONE                        ,101299      ,28-Jun-18,5000,0,Postages                      
Borough Council of Kings Lynn and West Norfolk,E07000146,30/06/18,Kings Court Grnd Floor Modify ,SMITH BUILDING SERVICES LTD             ,101443      ,16-Apr-18,567.86,0,Works                         
Borough Council of Kings Lynn and West Norfolk,E07000146,30/06/18,Adapt Grant                   ,FREEBRIDGE COMMUNITY HOUSING            ,127987      ,03-May-18,3785.56,0,Works                         
Borough Council of Kings Lynn and West Norfolk,E07000146,30/06/18,Purfleet Floating Restaurant  ,SURVEY SOLUTIONS (UTILITIES)            ,136469      ,28-Jun-18,850,0,External Fees/Consultancy     
Borough Council of Kings Lynn and West Norfolk,E07000146,30/06/18,Mintlyn Crematorium           ,YABOO CO. T/A WESLEY MEDIA              ,127145      ,19-Apr-18,6842.4,0,CD/DVD Recordings             
Borough Council of Kings Lynn and West Norfolk,E07000146,30/06/18,Telephones                    ,BRITISH TELECOMMUNICATIONS PLC          ,100222      ,16-Apr-18,1083.62,0,Broadband Charge              
Borough Council of Kings Lynn and West Norfolk,E07000146,30/06/18,Telephones                    ,BRITISH TELECOMMUNICATIONS PLC          ,100222      ,30-Apr-18,1307.12,0,Broadband Charge              
Borough Council of Kings Lynn and West Norfolk,E07000146,30/06/18,Enabler Role                  ,ROSSI LONG CONSULTING LTD               ,146395      ,23-Apr-18,935,0,Professional Fees             
Borough Council of Kings Lynn and West Norfolk,E07000146,30/06/18,Community Projects CS         ,COMMUNITY ACTION NORFOLK                ,145473      ,24-May-18,10161.5,0,Service Level Agreements      
Borough Council of Kings Lynn and West Norfolk,E07000146,30/06/18,King's Court - DWP Specific   ,FOCUS SECURITY (EAST ANGLIA) LTD        ,136665      ,19-Apr-18,1385.24,0,Equipment/Materials           
Borough Council of Kings Lynn and West Norfolk,E07000146,30/06/18,Supplier Holding Account      ,CERTAS ENERGY T/A PACE FUELCARE         ,142805      ,18-Jun-18,1125.24,0,Derv.                         
Borough Council of Kings Lynn and West Norfolk,E07000146,30/06/18,BCKLWN Control Account        ,ROSSENDALES LTD                         ,101364      ,03-May-18,1043.27,0,VAT Input (VAT Only Invoice)  
Borough Council of Kings Lynn and West Norfolk,E07000146,30/06/18,Disabled Facilties Grant      ,CHAS D ALLFLATT LTD                     ,100315      ,12-Apr-18,3608.6,0,Works                         
Borough Council of Kings Lynn and West Norfolk,E07000146,30/06/18,Adapt Grant                   ,CHAS D ALLFLATT LTD                     ,100315      ,31-May-18,4462.21,0,Works                         
Borough Council of Kings Lynn and West Norfolk,E07000146,30/06/18,Disabled Facilties Grant      ,CHAS D ALLFLATT LTD                     ,100315      ,07-Jun-18,1370.6,0,Works                         
Borough Council of Kings Lynn and West Norfolk,E07000146,30/06/18,Disabled Facilties Grant      ,CHAS D ALLFLATT LTD                     ,100315      ,25-Jun-18,2785.52,0,Works                         
Borough Council of Kings Lynn and West Norfolk,E07000146,30/06/18,PH & HC Taxi Licensing        ,DISCLOSURE & BARRING SERVICE            ,119457      ,24-May-18,616,0,CRB Forms - Expenditure       
Borough Council of Kings Lynn and West Norfolk,E07000146,30/06/18,50127                         ,IMPACT FACTORY LTD                      ,146043      ,05-Jul-18,3000,0,In-House Training             
Borough Council of Kings Lynn and West Norfolk,E07000146,30/06/18,Training Holding Account      ,IMPACT FACTORY LTD                      ,146043      ,05-Jul-18,3000,0,In-House Training             
Borough Council of Kings Lynn and West Norfolk,E07000146,30/06/18,Crematorium Trading AC        ,FALON NAMEPLATES LTD                    ,100611      ,14-May-18,810.45,0,Memorial Plates               
Borough Council of Kings Lynn and West Norfolk,E07000146,30/06/18,Crematorium Trading AC        ,FALON NAMEPLATES LTD                    ,100611      ,14-May-18,504.8,0,Renewal Plates - Expenditure  
Borough Council of Kings Lynn and West Norfolk,E07000146,30/06/18,Crematorium Trading AC        ,FALON NAMEPLATES LTD                    ,100611      ,28-Jun-18,720.4,0,Memorial Plates               
Borough Council of Kings Lynn and West Norfolk,E07000146,30/06/18,Market Contribution Tesco     ,RAY LINGE MARKET STALLS LTD             ,147166      ,12-Apr-18,1060,0,Works                         
Borough Council of Kings Lynn and West Norfolk,E07000146,30/06/18,Event 2                       ,RAY LINGE MARKET STALLS LTD             ,147166      ,11-Jun-18,945,0,Tools And Equipment           
Borough Council of Kings Lynn and West Norfolk,E07000146,30/06/18,Purfleet Floating Restaurant  ,EA PAYMENTS                             ,147193      ,21-May-18,777.5,0,Professional Fees             
Borough Council of Kings Lynn and West Norfolk,E07000146,30/06/18,Local Land Charges            ,NORFOLK COUNTY COUNCIL                  ,101142      ,09-Apr-18,5734.05,0,Agency                        
Borough Council of Kings Lynn and West Norfolk,E07000146,30/06/18,SOUTHGATES HLF SCHEME         ,NORFOLK COUNTY COUNCIL                  ,101142      ,30-Apr-18,3720.02,0,External Fees/Consultancy     
Borough Council of Kings Lynn and West Norfolk,E07000146,30/06/18,Finance & Resource - Legal Com,NORFOLK COUNTY COUNCIL                  ,101142      ,11-Jun-18,2634.34,0,Commissioning Ext. Legal fees 
Borough Council of Kings Lynn and West Norfolk,E07000146,30/06/18,Local Land Charges            ,NORFOLK COUNTY COUNCIL                  ,101142      ,21-Jun-18,5412.45,0,Agency                        
Borough Council of Kings Lynn and West Norfolk,E07000146,30/06/18,KL Arts Centre                ,CORONA ENERGY RETAIL 4 LTD              ,131838      ,23-Apr-18,641.95,0,Gas                           
Borough Council of Kings Lynn and West Norfolk,E07000146,30/06/18,Oasis General Account         ,CORONA ENERGY RETAIL 4 LTD              ,131838      ,23-Apr-18,3539.18,0,Gas                           
Borough Council of Kings Lynn and West Norfolk,E07000146,30/06/18,KL Arts Centre                ,CORONA ENERGY RETAIL 4 LTD              ,131838      ,21-Jun-18,677.92,0,Gas                           
Borough Council of Kings Lynn and West Norfolk,E07000146,30/06/18,Adapt Grant                   ,T M BROWNE LTD                          ,131470      ,09-Apr-18,3997.19,0,Works                         
Borough Council of Kings Lynn and West Norfolk,E07000146,30/06/18,Adapt Grant                   ,T M BROWNE LTD                          ,131470      ,12-Apr-18,3608.89,0,Works                         
Borough Council of Kings Lynn and West Norfolk,E07000146,30/06/18,Adapt Grant                   ,T M BROWNE LTD                          ,131470      ,25-Jun-18,5077.49,0,Works                         
Borough Council of Kings Lynn and West Norfolk,E07000146,30/06/18,BC System Suspense            ,ALIVE MANAGEMENT LTD                    ,143925      ,24-May-18,12035.13,0,ER Balance Held               
Borough Council of Kings Lynn and West Norfolk,E07000146,30/06/18,Leisure Management Costs      ,ALIVE MANAGEMENT LTD                    ,143925      ,28-Jun-18,2900,0,Central Support Services      
Borough Council of Kings Lynn and West Norfolk,E07000146,30/06/18,The Walks                     ,RIDGEONS LTD                            ,101348      ,19-Apr-18,4895,0,General Repairs               
Borough Council of Kings Lynn and West Norfolk,E07000146,30/06/18,MNP HLF Project               ,DR C J BOND                             ,132055      ,14-May-18,557.24,0,Project Costs                 
Borough Council of Kings Lynn and West Norfolk,E07000146,30/06/18,Resort Seafront               ,PENTY CONTRACTORS LTD                   ,101244      ,24-May-18,4300,0,General Repairs               
Borough Council of Kings Lynn and West Norfolk,E07000146,30/06/18,Disabled Facilties Grant      ,STANNAH LIFT SERVICES LTD               ,101479      ,17-May-18,5830,0,Works                         
Borough Council of Kings Lynn and West Norfolk,E07000146,30/06/18,NORA Phase 3                  ,LOVELL PARTNERSHIPS LTD                 ,143432      ,09-Apr-18,407982,0,Works                         
Borough Council of Kings Lynn and West Norfolk,E07000146,30/06/18,Phase -Lynnsport 4 /5 Contract,LOVELL PARTNERSHIPS LTD                 ,143432      ,19-Apr-18,470798.66,0,Works                         
Borough Council of Kings Lynn and West Norfolk,E07000146,30/06/18,Food Waste                    ,KIER SERVICES ENVIRONMENTAL             ,141535      ,28-Jun-18,23018.6,0,Waste Processing Cost         
Borough Council of Kings Lynn and West Norfolk,E07000146,30/06/18,Food Waste                    ,KIER SERVICES ENVIRONMENTAL             ,141535      ,28-Jun-18,1883.53,0,Contracted Services           
Borough Council of Kings Lynn and West Norfolk,E07000146,30/06/18,Trade Refuse                  ,KIER SERVICES ENVIRONMENTAL             ,141535      ,28-Jun-18,9065.59,0,Contracted Services           
Borough Council of Kings Lynn and West Norfolk,E07000146,30/06/18,Recycling Commercial          ,KIER SERVICES ENVIRONMENTAL             ,141535      ,28-Jun-18,760.94,0,Contracted Services           
Borough Council of Kings Lynn and West Norfolk,E07000146,30/06/18,Food Waste                    ,KIER SERVICES ENVIRONMENTAL             ,141535      ,28-Jun-18,561.78,0,Contracted Services           
Borough Council of Kings Lynn and West Norfolk,E07000146,30/06/18,Recycling Composting          ,KIER SERVICES ENVIRONMENTAL             ,141535      ,28-Jun-18,31095.19,0,Contracted Services           
Borough Council of Kings Lynn and West Norfolk,E07000146,30/06/18,Dry Box Collection Scheme     ,KIER SERVICES ENVIRONMENTAL             ,141535      ,28-Jun-18,3021.33,0,Contracted Services           
Borough Council of Kings Lynn and West Norfolk,E07000146,30/06/18,Recycling Composting          ,KIER SERVICES ENVIRONMENTAL             ,141535      ,28-Jun-18,15824.59,0,Waste Processing Cost         
Borough Council of Kings Lynn and West Norfolk,E07000146,30/06/18,Dry Box Collection Scheme     ,KIER SERVICES ENVIRONMENTAL             ,141535      ,28-Jun-18,80297.55,0,Contracted Services           
Borough Council of Kings Lynn and West Norfolk,E07000146,30/06/18,Domestic Refuse               ,KIER SERVICES ENVIRONMENTAL             ,141535      ,28-Jun-18,3807.66,0,Clinical & Medical Waste      
Borough Council of Kings Lynn and West Norfolk,E07000146,30/06/18,Domestic Refuse               ,KIER SERVICES ENVIRONMENTAL             ,141535      ,28-Jun-18,2852.22,0,Contracted Services           
Borough Council of Kings Lynn and West Norfolk,E07000146,30/06/18,Domestic Refuse               ,KIER SERVICES ENVIRONMENTAL             ,141535      ,28-Jun-18,2977.93,0,Contracted Services           
Borough Council of Kings Lynn and West Norfolk,E07000146,30/06/18,Food Waste                    ,KIER SERVICES ENVIRONMENTAL             ,141535      ,28-Jun-18,27367.84,0,Contracted Services           
Borough Council of Kings Lynn and West Norfolk,E07000146,30/06/18,Domestic Refuse               ,KIER SERVICES ENVIRONMENTAL             ,141535      ,28-Jun-18,78801.15,0,Contracted Services           
Borough Council of Kings Lynn and West Norfolk,E07000146,30/06/18,Street Sweeping               ,PEACEFUL PETS LTD                       ,120185      ,19-Apr-18,630,0,Animal Removal                
Borough Council of Kings Lynn and West Norfolk,E07000146,30/06/18,Street Sweeping               ,PEACEFUL PETS LTD                       ,120185      ,21-May-18,685,0,Animal Removal                
Borough Council of Kings Lynn and West Norfolk,E07000146,30/06/18,Parking Operations - Borough  ,BEMROSE BOOTH PARAGON LTD               ,119101      ,24-May-18,1995,0,Stationery & Office Supplies  
Borough Council of Kings Lynn and West Norfolk,E07000146,30/06/18,Resort Seafront               ,E AKERS                                 ,100500      ,30-Apr-18,654,0,General Repairs               
Borough Council of Kings Lynn and West Norfolk,E07000146,30/06/18,Benefit Administration        ,ROYAL MAIL GROUP LTD                    ,101369      ,02-Jul-18,658.16,0,Postages                      
Borough Council of Kings Lynn and West Norfolk,E07000146,30/06/18,Cost of Collection - CTax     ,ROYAL MAIL GROUP LTD                    ,101369      ,02-Jul-18,763.48,0,Postages                      
Borough Council of Kings Lynn and West Norfolk,E07000146,30/06/18,ICT                           ,CLARANET LTD                            ,119601      ,07-Jun-18,1162.56,0,Communications                
Borough Council of Kings Lynn and West Norfolk,E07000146,30/06/18,ICT                           ,CLARANET LTD                            ,119601      ,07-Jun-18,5530.56,0,Communications                
Borough Council of Kings Lynn and West Norfolk,E07000146,30/06/18,Townscape Heritage Initiative ,M & L CLEAVER                           ,147248      ,28-Jun-18,2697.84,0,THI Priority Grant Projects   
Borough Council of Kings Lynn and West Norfolk,E07000146,30/06/18,BCKLWN Control Account        ,ROSSENDALES LTD                         ,101364      ,07-Jun-18,758.87,0,VAT Input (VAT Only Invoice)  
Borough Council of Kings Lynn and West Norfolk,E07000146,30/06/18,BCKLWN Control Account        ,ROSSENDALES LTD                         ,101364      ,05-Jul-18,1360.46,0,VAT Input (VAT Only Invoice)  
Borough Council of Kings Lynn and West Norfolk,E07000146,30/06/18,Precepts Of Parish Councils   ,BIRCHAM PARISH COUNCIL                  ,100179      ,12-Apr-18,10582,0,Parishes                      
Borough Council of Kings Lynn and West Norfolk,E07000146,30/06/18,50303                         ,FENLAND DISTRICT COUNCIL                ,100625      ,19-Apr-18,5848.88,0,Contracted Services           
Borough Council of Kings Lynn and West Norfolk,E07000146,30/06/18,Internal Audit                ,FENLAND DISTRICT COUNCIL                ,100625      ,19-Apr-18,5848.88,0,Contracted Services           
Borough Council of Kings Lynn and West Norfolk,E07000146,30/06/18,Precepts Of Parish Councils   ,GREAT MASSINGHAM PARISH CNCL            ,100712      ,12-Apr-18,13000,0,Parishes                      
Borough Council of Kings Lynn and West Norfolk,E07000146,30/06/18,Hunstanton TIC                ,HUNSTANTON TOWN COUNCIL                 ,100794      ,11-Jun-18,21840,0,Management Fee                
Borough Council of Kings Lynn and West Norfolk,E07000146,30/06/18,Precepts Of Parish Councils   ,LITTLE MASSINGHAM PRSH CNCL             ,100948      ,12-Apr-18,730,0,Parishes                      
Borough Council of Kings Lynn and West Norfolk,E07000146,30/06/18,Precepts Of Parish Councils   ,STOKE FERRY INTERNAL DRAINAGE BRD       ,101484      ,30-Apr-18,22532.97,0,Drainage Boards               
Borough Council of Kings Lynn and West Norfolk,E07000146,30/06/18,Precepts Of Parish Councils   ,WELNEY PARISH COUNCIL                   ,101631      ,12-Apr-18,16077.15,0,Parishes                      
Borough Council of Kings Lynn and West Norfolk,E07000146,30/06/18,Special Expenses              ,UPWELL PARISH COUNCIL                   ,101588      ,12-Apr-18,996,0,Special Expenses Credit       
Borough Council of Kings Lynn and West Norfolk,E07000146,30/06/18,Precepts Of Parish Councils   ,UPWELL PARISH COUNCIL                   ,101588      ,12-Apr-18,36030,0,Parishes                      
Borough Council of Kings Lynn and West Norfolk,E07000146,30/06/18,Precepts Of Parish Councils   ,WALSOKEN PARISH COUNCIL                 ,101611      ,12-Apr-18,9676,0,Parishes                      
Borough Council of Kings Lynn and West Norfolk,E07000146,30/06/18,BCKLWN Control Account        ,KL OPERATIC & DRAMATIC SOCIETY          ,102001      ,02-May-18,844.67,0,VAT Output                    
Borough Council of Kings Lynn and West Norfolk,E07000146,30/06/18,KL Arts Centre                ,KL OPERATIC & DRAMATIC SOCIETY          ,102001      ,02-May-18,4223.33,0,Hirings Ticketed              
Borough Council of Kings Lynn and West Norfolk,E07000146,30/06/18,Adapt Grant                   ,ELY BUILDING & MAINTENANCE SERVICES LTD ,106268      ,07-Jun-18,2282.47,0,Works                         
Borough Council of Kings Lynn and West Norfolk,E07000146,30/06/18,Nursery                       ,DEJEX SUPPLIES LTD                      ,115871      ,03-May-18,969.12,0,Tools And Equipment           
Borough Council of Kings Lynn and West Norfolk,E07000146,30/06/18,Improving Attainment          ,ST MARTHAS RC VA PRIMARY SCHOOL         ,118783      ,18-Jun-18,600,0,Small Projects                
Borough Council of Kings Lynn and West Norfolk,E07000146,30/06/18,Day visitor awareness         ,TAKE ONE MEDIA LTD                      ,121327      ,12-Apr-18,2663.67,0,Distribution                  
